{"text_format":"1","workbook":"xlsx","n_sheets":13,"sheets":["Dt","General","Resumen","Estado_del_arte","Objetivos","Etica","Metodología","Cronograma","Productos","Integrantes","Presupuesto","Impactos","Bibliografía"],"not_rendered":{"charts":0,"images":1,"macros":1,"external_links":0,"defined_names":56,"comments":7,"pivot_tables":0},"unopened":[],"bounds":{"document_bytes":16777216,"sheet_cells":100000,"rows_first":2000,"rows_last":500,"rows_between":2000,"halvings":0,"cell_chars":16384,"cell_head_chars":4096},"cells_cut":0,"cells_raw":0,"read":"whole","date_system":"1900"}

{"sheet":"Dt","index":0,"n_rows":2006,"n_cols":644,"rows_kept":2006,"cut":false,"hidden":true,"merged":[]}
[null,"No eliminar Hoja … :)))",null,null,null,null,null,"Cronograma",null,null,"Integrante",null,null,null,null,null,null,null,null,null,null,null,null,null,null,null,"No","Campo ","1_Opcion","2_Opcion",null,"Avaya1719",null,null,null,null,null,null,null,null,null,"2018-03-16","http://scienti.colciencias.gov.co:8080/gruplac/jsp/visualiza/visualizagr.jsp?nro="]
[null,null,null,null,null,"Tipo","Objetivo","Actividad","Mes Inicio","Duracion","CC","Nombre","Apellidos","Nivel","Mes","Horas","Rol","Vin","NBC","Cvlac","Nombre Completo",null,null,null,null,null,1,"Sedes","Bogotá",null,null,null,null,null,null,null,null,null,null,null,null,null,null,null,null,"BB",null,{"$f":"MIN(BD3:BD293)","v":4},{"$f":"MAX(BD3:BD293)","v":293}]
[null,null,"Dato",null," ",{"$f":"ROW()-3","v":0},{"$f":"CLEAN(TRIM(Objetivos!C8))","v":""},"NA","NA","NA","NA","NA","NA","NA","NA","NA","NA","NA","NA","NA","NA",null,null,null,null,null,2,"Sedes","Campus Nueva Granada",null,null,null,null,null,null,null,"Hoja",null,null,"Hoja","FAC","Grupo","COD","Clas","Link","Lineas","Fila Grupo","Min","Max","FAC",null,null,"COD","Linea","Cel","Fila","E:Gp",null,null,"Hora","Agente","Agente"]
[null,null,"Titulo",{"$f":"TRIM(CLEAN(General!B9))","v":"Formato: actualizado a 06 Nov 2019"},null,{"$f":"ROW()-3","v":1},{"$f":"CLEAN(TRIM(Objetivos!C9))","v":""},{"$f":"CLEAN(TRIM(Cronograma!C8))","v":""},{"$f":"Cronograma!D8","v":0},{"$f":"Cronograma!E8","v":0},{"$f":"INDEX(Dt_Integ,2+($F4-1)*3,(COLUMN()-9))","v":0},"a",0,0,24,0,{"$f":"INDEX(Dt_Integ,3+($F4-1)*3,(COLUMN()-14))","v":"Investigador Principal"},{"$f":"INDEX(Dt_Integ,3+($F4-1)*3,(COLUMN()-14))","v":"Doc. Carrera TC"},{"$f":"INDEX(Dt_Integ,3+($F4-1)*3,(COLUMN()-14))","v":0},{"$f":"INDEX(Dt_Integ,4+($F4-1)*3,(COLUMN()-17))","v":0},{"$f":"(TRIM(L4&\" \"&M4))","v":"a 0"},null,null,null,null,null,3,"Sedes","Medicina","No habilitada 2018",null,null,null,null,null,null,3,1,{"$f":"COUNTIF($AN$4:$AN$806,AL4)","v":1},1,"CIAS","Fitoplasmas y Virus","COL0028687","C","http://scienti.colciencias.gov.co:8085/gruplac/jsp/visualiza/visualizagr.jsp?nro=00000000008436",{"$f":"$AT$2&AV4&\":\"&$AT$2&AW4","v":"BB10:BB11"},{"$f":"ROW()","v":4},{"$f":"MINA(IF(AQ4=$BA$4:$BA$401,$BD$4:$BD$401))","v":10},{"$f":"MAXA(IF(AQ4=$BA$4:$BA$401,$BD$4:$BD$401))","v":11},{"$f":"AO4","v":"CIAS"},null,null,"COL0049659","Medios de comunicación, educación y salud",{"$f":"COUNTIF(BA$4:BA4,BA4)","v":1},{"$f":"ROW()","v":4},{"$f":"COUNTIF($AQ$3:$AQ$80,BA4)","v":1},null,null,"19:54:00","a","a",{"$f":"DMIN(BH3:BI12,\"hora\",BJ3:BJ4)","v":0.4548611111111111},"|"]
[null,null,"Lider",{"$f":"TRIM(CLEAN(General!C10))","v":""},null,{"$f":"ROW()-3","v":2},{"$f":"CLEAN(TRIM(Objetivos!C10))","v":""},{"$f":"CLEAN(TRIM(Cronograma!C9))","v":""},{"$f":"Cronograma!D9","v":0},{"$f":"Cronograma!E9","v":0},0,0,0,0,10,0,{"$f":"INDEX(Dt_Integ,3+($F5-1)*3,(COLUMN()-14))","v":"Auxiliar de Investigación."},"Estímulo a estudiante",null,0,{"$f":"TRIM(L5&\" \"&M5)","v":"0 0"},null,null,null,null,null,4,"Sedes","Otros","No habilitada 2018",null,null,null,null,null,null,4,2,1,{"$f":"AN4+1","v":2},"CIAS","Grupo de investigación en Biodiversidad y ecología de abejas silvestres","COL0031959","B","http://scienti.colciencias.gov.co:8085/gruplac/jsp/visualiza/visualizagr.jsp?nro=00000000001366",{"$f":"$AT$2&AV5&\":\"&$AT$2&AW5","v":"BB12:BB16"},{"$f":"ROW()","v":5},{"$f":"MINA(IF(AQ5=$BA$4:$BA$401,$BD$4:$BD$401))","v":12},{"$f":"MAXA(IF(AQ5=$BA$4:$BA$401,$BD$4:$BD$401))","v":16},{"$f":"AO5","v":"CIAS"},null,null,"COL0049659","Salud Pública y Nutrición, Prevención de la Enfermedad y Promoción de la Salud",{"$f":"COUNTIF(BA$4:BA5,BA5)","v":2},{"$f":"ROW()","v":5},1,null,null,"09:54:00","b","B"]
[null,null,"Sede",{"$f":"General!H12","v":0},null,3,{"$f":"CLEAN(TRIM(Objetivos!C11))","v":""},{"$f":"CLEAN(TRIM(Cronograma!C10))","v":""},{"$f":"Cronograma!D10","v":0},{"$f":"Cronograma!E10","v":0},0,0,0,0,10,0,0,0,null,0,"0 0",null,null,null,null,null,1,"Facultad","Ciencias Básicas y Aplicadas","CIAS",null,null,null,null,null,null,12,3,1,{"$f":"AN5+1","v":3},"CIAS","MATRIX","COL0039321","C","http://scienti.colciencias.gov.co:8085/gruplac/jsp/visualiza/visualizagr.jsp?nro=00000000002208","BB38:BB42",{"$f":"ROW()","v":6},{"$f":"MINA(IF(AQ6=$BA$4:$BA$401,$BD$4:$BD$401))","v":38},{"$f":"MAXA(IF(AQ6=$BA$4:$BA$401,$BD$4:$BD$401))","v":42},"CIAS",null,null,"COL0062704","Procesos Organizacionales (Prospectiva de las Organizaciones), Programáticos y Políticos para la Promoción del Desarrollo.",{"$f":"COUNTIF(BA$4:BA6,BA6)","v":1},{"$f":"ROW()","v":6},1,null,null,"17:54:00","c","c"]
[null,null,"Facultad",{"$f":"General!C13","v":0},null,4,{"$f":"CLEAN(TRIM(Objetivos!C12))","v":""},{"$f":"CLEAN(TRIM(Cronograma!C11))","v":""},{"$f":"Cronograma!D11","v":0},{"$f":"Cronograma!E11","v":0},0,0,0,0,10,0,0,0,null,0,"0 0",null,null,null,null,null,2,"Facultad","Ciencias Económicas","ECO",null,null,null,null,null,null,18,4,1,4,"CIAS","Desarrollo e integración de estrategias alternativas para la protección de cultivos de importancia económica, con énfasis en control biológico.","COL0032278","A","http://scienti.colciencias.gov.co:8085/gruplac/jsp/visualiza/visualizagr.jsp?nro=00000000001399","BB64:BB65",{"$f":"ROW()","v":7},{"$f":"MINA(IF(AQ7=$BA$4:$BA$401,$BD$4:$BD$401))","v":64},{"$f":"MAXA(IF(AQ7=$BA$4:$BA$401,$BD$4:$BD$401))","v":65},"CIAS",null,null,"COL0062704","Prospectiva de las Organizaciones",{"$f":"COUNTIF(BA$4:BA7,BA7)","v":2},{"$f":"ROW()","v":7},1,null,null,"10:55:00","a"]
[null,null,"Programa",{"$f":"CLEAN(General!H13)","v":""},null,5,{"$f":"CLEAN(TRIM(Objetivos!C13))","v":""},{"$f":"CLEAN(TRIM(Cronograma!C12))","v":""},{"$f":"Cronograma!D12","v":0},{"$f":"Cronograma!E12","v":0},0,0,0,0,10,0,0,0,null,0,"0 0",null,null,null,null,null,3,"Facultad","Derecho","DER",null,null,null,null,null,null,28,6,1,5,"CIAS","Fitopatologia molecular","COL0086179","C","http://scienti.colciencias.gov.co:8085/gruplac/jsp/visualiza/visualizagr.jsp?nro=00000000007907","BB118:BB120",{"$f":"ROW()","v":8},{"$f":"MINA(IF(AQ8=$BA$4:$BA$401,$BD$4:$BD$401))","v":118},{"$f":"MAXA(IF(AQ8=$BA$4:$BA$401,$BD$4:$BD$401))","v":120},"CIAS",null,null,"COL0062704","Responsabilidad Ambiental",{"$f":"COUNTIF(BA$4:BA8,BA8)","v":3},{"$f":"ROW()","v":8},1,null,null,"11:45:00","a"]
[null,null,"Correo",{"$f":"TRIM(CLEAN(General!C11))","v":""},null,6,{"$f":"CLEAN(TRIM(Objetivos!C14))","v":""},{"$f":"CLEAN(TRIM(Cronograma!C13))","v":""},{"$f":"Cronograma!D13","v":0},{"$f":"Cronograma!E13","v":0},0,0,0,0,0,0,0,0,null,0,"0 0",null,null,null,null,null,4,"Facultad","Educación y Humanidades","HUM",null,null,null,null,null,null,32,8,1,6,"CIAS","Grupo de Ecotoxicología, Evolución, Medio ambiente y conservación (E = mc2)","COL0038084","C","http://scienti.colciencias.gov.co:8085/gruplac/jsp/visualiza/visualizagr.jsp?nro=00000000002068","BB134:BB138",{"$f":"ROW()","v":9},{"$f":"MINA(IF(AQ9=$BA$4:$BA$401,$BD$4:$BD$401))","v":134},{"$f":"MAXA(IF(AQ9=$BA$4:$BA$401,$BD$4:$BD$401))","v":138},"CIAS",null,null,"COL0062704","Responsabilidad Social Empresarial",{"$f":"COUNTIF(BA$4:BA9,BA9)","v":4},{"$f":"ROW()","v":9},1,null,null,"15:12:00","b"]
[null,null,"Fase",{"$f":"General!F12","v":"No"},null,7,{"$f":"CLEAN(TRIM(Objetivos!C15))","v":""},{"$f":"CLEAN(TRIM(Cronograma!C14))","v":""},{"$f":"Cronograma!D14","v":0},{"$f":"Cronograma!E14","v":0},0,0,0,0,0,0,0,0,null,0,"0 0",null,null,null,null,null,5,"Facultad","Estudios a Distancia","DIS",null,null,null,null,null,null,41,9,1,7,"CIAS","Grupo de Investigación en Hidrobiología Aplicada (HIDROBIA)","COL0048492","C","http://scienti.colciencias.gov.co:8085/gruplac/jsp/visualiza/visualizagr.jsp?nro=00000000005664","BB167:BB170",{"$f":"ROW()","v":10},{"$f":"MINA(IF(AQ10=$BA$4:$BA$401,$BD$4:$BD$401))","v":167},{"$f":"MAXA(IF(AQ10=$BA$4:$BA$401,$BD$4:$BD$401))","v":170},"CIAS",null,null,"COL0028687","Fitoplasmas",{"$f":"COUNTIF(BA$4:BA10,BA10)","v":1},{"$f":"ROW()","v":10},1,null,null,"23:12:00","b"]
[null,null,"Finan Antes",{"$f":"General!I12","v":"No"},null,8,{"$f":"CLEAN(TRIM(Objetivos!C16))","v":""},{"$f":"CLEAN(TRIM(Cronograma!C15))","v":""},{"$f":"Cronograma!D15","v":0},{"$f":"Cronograma!E15","v":0},0,0,0,0,0,0,0,0,null,0,"0 0",null,null,null,null,null,6,"Facultad","Ingeniería","ING",null,null,null,null,null,null,42,10,1,8,"CIAS","Agrobiología de especies vegetales promisorias de clima frío","COL0077814","C","http://scienti.colciencias.gov.co:8085/gruplac/jsp/visualiza/visualizagr.jsp?nro=00000000006560","BB171:BB171",{"$f":"ROW()","v":11},{"$f":"MINA(IF(AQ11=$BA$4:$BA$401,$BD$4:$BD$401))","v":171},{"$f":"MAXA(IF(AQ11=$BA$4:$BA$401,$BD$4:$BD$401))","v":171},"CIAS",null,null,"COL0028687","Virus",{"$f":"COUNTIF(BA$4:BA11,BA11)","v":2},{"$f":"ROW()","v":11},1,null,null,"06:20:00","c"]
[null,null,"Resumen",{"$f":" CLEAN(TRIM(Resumen!C7&\" \"&Resumen!C8&\" \"&Resumen!C9&\" \"&Resumen!C10&\" \"&Resumen!C11&\" \"&Resumen!C12&\" \"&Resumen!C13&\" \"&Resumen!C14))","v":""},null,9,{"$f":"CLEAN(TRIM(Objetivos!C17))","v":""},{"$f":"CLEAN(TRIM(Cronograma!C16))","v":""},{"$f":"Cronograma!D16","v":0},{"$f":"Cronograma!E16","v":0},0,0,0,0,0,0,0,0,null,0,"0 0",null,null,null,null,null,7,"Facultad","Medicina y Ciencias de la Salud","MED",null,null,null,null,null,null,43,11,1,9,"CIAS","Grupo Integrado de Investigaciones en Química y Biología (InQuiBio)","COL0077707","A1","http://scienti.colciencias.gov.co:8085/gruplac/jsp/visualiza/visualizagr.jsp?nro=00000000008358","BB172:BB180",{"$f":"ROW()","v":12},{"$f":"MINA(IF(AQ12=$BA$4:$BA$401,$BD$4:$BD$401))","v":172},{"$f":"MAXA(IF(AQ12=$BA$4:$BA$401,$BD$4:$BD$401))","v":180},"CIAS",null,null,"COL0031959","Análisis de redes de interacción planta-polinizador a partir de técnicas palinológicas",{"$f":"COUNTIF(BA$4:BA12,BA12)","v":1},{"$f":"ROW()","v":12},1,null,null,"12:30:00","a"]
[null,null,"Total Vicen",{"$f":"General!G51","v":0},null,10,{"$f":"CLEAN(TRIM(Objetivos!C18))","v":""},{"$f":"CLEAN(TRIM(Cronograma!C17))","v":""},{"$f":"Cronograma!D17","v":0},{"$f":"Cronograma!E17","v":0},0,0,0,0,0,0,0,0,null,0,"0 0",null,null,null,null,null,8,"Facultad","Relaciones Internacionales, Estrategia y Seguridad","EES",null,null,null,null,null,null,44,12,1,10,"CIAS","Grupo de investigación en química ambiental y tecnologías limpias - QUATELI","COL0110436","C","http://scienti.colciencias.gov.co:8085/gruplac/jsp/visualiza/visualizagr.jsp?nro=00000000011141","BB181:BB185",{"$f":"ROW()","v":13},{"$f":"MINA(IF(AQ13=$BA$4:$BA$401,$BD$4:$BD$401))","v":181},{"$f":"MAXA(IF(AQ13=$BA$4:$BA$401,$BD$4:$BD$401))","v":185},"CIAS",null,null,"COL0031959","Cría de especies del género Bombus para su utilización como polinizadores en cultivos de la sabana Cundi-boyacense.",{"$f":"COUNTIF(BA$4:BA13,BA13)","v":2},{"$f":"ROW()","v":13},1]
[null,null,"Total Pts",{"$f":"General!D51","v":0},null,11,{"$f":"CLEAN(TRIM(Objetivos!C19))","v":""},{"$f":"CLEAN(TRIM(Cronograma!C18))","v":""},{"$f":"Cronograma!D18","v":0},{"$f":"Cronograma!E18","v":0},null,null,null,null,null,null,null,null,null,null,null,null,null,null,null,null,1,"Programa","CIAS","Biología Aplicada",2,null,null,null,null,null,56,13,1,11,"CIAS","ECMU (Evaluacion en Competencias y Matemáticas Universitarias)","COL0110329","C","http://scienti.colciencias.gov.co:8085/gruplac/jsp/visualiza/visualizagr.jsp?nro=00000000011130","BB240:BB242",{"$f":"ROW()","v":14},{"$f":"MINA(IF(AQ14=$BA$4:$BA$401,$BD$4:$BD$401))","v":240},{"$f":"MAXA(IF(AQ14=$BA$4:$BA$401,$BD$4:$BD$401))","v":242},"CIAS",null,null,"COL0031959","Diversidad, biología y taxonomia de polinizadores colombianos",{"$f":"COUNTIF(BA$4:BA14,BA14)","v":3},{"$f":"ROW()","v":14},1]
[null,null,null,null,null,12,{"$f":"CLEAN(TRIM(Objetivos!C20))","v":""},{"$f":"CLEAN(TRIM(Cronograma!C19))","v":""},{"$f":"Cronograma!D19","v":0},{"$f":"Cronograma!E19","v":0},null,"Datos de Grupos de  Investigación  Integrantes",null,null,null,null,null,null,null,null,null,null,null,null,null,null,2,"Programa","CIAS","Tecnologia en Gestion y Produccion horticola",3,null,null,null,null,null,58,14,1,12,"CIAS","Grupo de Docencia e Investigación en Física","COL0138796","C","http://scienti.colciencias.gov.co:8085/gruplac/jsp/visualiza/visualizagr.jsp?nro=00000000014082",{"$f":"$AT$2&AV15&\":\"&$AT$2&AW15","v":"BB248:BB252"},{"$f":"ROW()","v":15},{"$f":"MINA(IF(AQ15=$BA$4:$BA$401,$BD$4:$BD$401))","v":248},{"$f":"MAXA(IF(AQ15=$BA$4:$BA$401,$BD$4:$BD$401))","v":252},{"$f":"AO15","v":"CIAS"},null,null,"COL0031959","Ecología de la polinización: estudios del uso sostenible de especies de abejas silvestres como polinizadores de hortalizas y frutales",{"$f":"COUNTIF(BA$4:BA15,BA15)","v":4},{"$f":"ROW()","v":15},1]
[null,null,null,null,null,13,{"$f":"CLEAN(TRIM(Objetivos!C21))","v":""},{"$f":"CLEAN(TRIM(Cronograma!C20))","v":""},{"$f":"Cronograma!D20","v":0},{"$f":"Cronograma!E20","v":0},null,"Fila\\ Columna","D",null,null,null,null,null,null,null,null,null,null,null,null,null,3,"Programa","CIAS","Maestría en Biología Aplicada",33,null,null,null,null,null,71,71,0,13,"CIAS","DIVERSITAS","COL0178619","NR","http://scienti.colciencias.gov.co:8085/gruplac/jsp/visualiza/visualizagr.jsp?nro=00000000018063",{"$f":"$AT$2&AV16&\":\"&$AT$2&AW16","v":"BB296:BB301"},{"$f":"ROW()","v":16},{"$f":"MINA(IF(AQ16=$BA$4:$BA$401,$BD$4:$BD$401))","v":296},{"$f":"MAXA(IF(AQ16=$BA$4:$BA$401,$BD$4:$BD$401))","v":301},{"$f":"AO16","v":"CIAS"},null,null,"COL0031959","Modelos biológicos y ecológicos de insectos benéficos",{"$f":"COUNTIF(BA$4:BA16,BA16)","v":5},{"$f":"ROW()","v":16},1]
[null,null,null,null,null,14,{"$f":"CLEAN(TRIM(Objetivos!C22))","v":""},{"$f":"CLEAN(TRIM(Cronograma!C21))","v":""},{"$f":"Cronograma!D21","v":0},{"$f":"Cronograma!E21","v":0},null,"General","Nombre","Cod","Clas","Fac","Linea","Cvlac","Ref",null,null,null,null,null,null,null,3,"Programa","CIAS","Departamento de Matemáticas",34,null,null,null,null,null,72,72,0,14,"CIAS","Nanofab","COL0179618","NR","http://scienti.colciencias.gov.co:8085/gruplac/jsp/visualiza/visualizagr.jsp?nro=00000000018163",{"$f":"$AT$2&AV17&\":\"&$AT$2&AW17","v":"BB302:BB305"},{"$f":"ROW()","v":17},{"$f":"MINA(IF(AQ17=$BA$4:$BA$401,$BD$4:$BD$401))","v":302},{"$f":"MAXA(IF(AQ17=$BA$4:$BA$401,$BD$4:$BD$401))","v":305},{"$f":"AO17","v":"CIAS"},null,null,"COL0044859","Multimedia Educativa",{"$f":"COUNTIF(BA$4:BA17,BA17)","v":1},{"$f":"ROW()","v":17},1]
[null,null,null,null,null,15,{"$f":"CLEAN(TRIM(Objetivos!C23))","v":""},{"$f":"CLEAN(TRIM(Cronograma!C22))","v":""},{"$f":"Cronograma!D22","v":0},{"$f":"Cronograma!E22","v":0},null,1,{"$f":"General!D17","v":0},{"$f":"General!L17","v":0},{"$f":"General!I18","v":""},{"$f":"General!C17","v":0},{"$f":"General!C19","v":0},{"$f":"General!C18","v":""},{"$f":"General!L19","v":0},null,null,null,null,null,null,null,3,"Programa","CIAS","Departamento de Física",35,null,null,null,null,null,11,15,1,15,"DER","Grupo de derecho público ","COL0028918","B","http://scienti.colciencias.gov.co:8085/gruplac/jsp/visualiza/visualizagr.jsp?nro=00000000001079","BB33:BB37",{"$f":"ROW()","v":18},{"$f":"MINA(IF(AQ18=$BA$4:$BA$401,$BD$4:$BD$401))","v":33},{"$f":"MAXA(IF(AQ18=$BA$4:$BA$401,$BD$4:$BD$401))","v":37},"DER",null,null,"COL0044859","Procesamiento digital de imágenes y Visión por computador",{"$f":"COUNTIF(BA$4:BA18,BA18)","v":2},{"$f":"ROW()","v":18},1]
[null,null,null,null,null,16,null,{"$f":"CLEAN(TRIM(Cronograma!C23))","v":""},{"$f":"Cronograma!D23","v":0},{"$f":"Cronograma!E23","v":0},null,2,{"$f":"General!D21","v":0},{"$f":"General!L21","v":0},{"$f":"General!I22","v":""},{"$f":"General!C21","v":0},{"$f":"General!C23","v":0},{"$f":"General!C22","v":""},{"$f":"General!L23","v":0},null,null,null,null,null,null,null,3,"Programa","CIAS","Departamento de Química",36,null,null,null,null,null,47,16,1,16,"DER","Grupo de Derecho Privado","COL0128047","R","http://scienti.colciencias.gov.co:8085/gruplac/jsp/visualiza/visualizagr.jsp?nro=00000000012964","BB198:BB199",{"$f":"ROW()","v":19},{"$f":"MINA(IF(AQ19=$BA$4:$BA$401,$BD$4:$BD$401))","v":198},{"$f":"MAXA(IF(AQ19=$BA$4:$BA$401,$BD$4:$BD$401))","v":199},"DER",null,null,"COL0044859","Sistemas Multimedia",{"$f":"COUNTIF(BA$4:BA19,BA19)","v":3},{"$f":"ROW()","v":19},1]
[null,null,null,null,null,17,null,{"$f":"CLEAN(TRIM(Cronograma!C24))","v":""},{"$f":"Cronograma!D24","v":0},{"$f":"Cronograma!E24","v":0},null,3,{"$f":"General!D25","v":0},{"$f":"General!L25","v":0},{"$f":"General!I26","v":""},{"$f":"General!C25","v":0},{"$f":"General!C27","v":0},{"$f":"General!C26","v":""},{"$f":"General!L27","v":0},null,null,null,null,null,null,null,3,"Programa","CIAS","Doctorado en Ciencias Aplicadas",33,null,null,null,null,null,68,17,1,17,"DER","Red de estudios sociojurídicos comparados y políticas públicas","COL0142449","NR","http://scienti.colciencias.gov.co:8085/gruplac/jsp/visualiza/visualizagr.jsp?nro=00000000014449","BB273:BB278",{"$f":"ROW()","v":20},{"$f":"MINA(IF(AQ20=$BA$4:$BA$401,$BD$4:$BD$401))","v":273},{"$f":"MAXA(IF(AQ20=$BA$4:$BA$401,$BD$4:$BD$401))","v":278},"DER",null,null,"COL0044859","Visualización y Computación Gráfica",{"$f":"COUNTIF(BA$4:BA20,BA20)","v":4},{"$f":"ROW()","v":20},1]
[null,null,null,null,null,18,null,{"$f":"CLEAN(TRIM(Cronograma!C25))","v":""},{"$f":"Cronograma!D25","v":0},{"$f":"Cronograma!E25","v":0},null,null,null,null,null,null,null,null,null,null,null,null,null,null,null,null,4,"Programa","DER","Derecho",16,null,null,null,null,null,2,18,1,18,"DIS","PROPPIO: Procesos organizacionales, programaticos y políticos para la promoción del desarrollo","COL0062704","R","http://scienti.colciencias.gov.co:8085/gruplac/jsp/visualiza/visualizagr.jsp?nro=00000000006477","BB6:BB9",{"$f":"ROW()","v":21},{"$f":"MINA(IF(AQ21=$BA$4:$BA$401,$BD$4:$BD$401))","v":6},{"$f":"MAXA(IF(AQ21=$BA$4:$BA$401,$BD$4:$BD$401))","v":9},"DIS",null,null,"COL0047762","Desarrollo de modelos de ingeniería de tejido humano",{"$f":"COUNTIF(BA$4:BA21,BA21)","v":1},{"$f":"ROW()","v":21},1]
[null,null,null,null,null,19,null,{"$f":"CLEAN(TRIM(Cronograma!C26))","v":""},{"$f":"Cronograma!D26","v":0},{"$f":"Cronograma!E26","v":0},null,null,null,null,null,null,null,null,null,null,null,null,null,null,null,null,5,"Programa","DER","Maestría en Derecho Procesal Penal",47,null,null,null,null,null,8,19,1,19,"DIS","INCONDIS","COL0127649","NR","http://scienti.colciencias.gov.co:8085/gruplac/jsp/visualiza/visualizagr.jsp?nro=00000000012918","BB25:BB25",{"$f":"ROW()","v":22},{"$f":"MINA(IF(AQ22=$BA$4:$BA$401,$BD$4:$BD$401))","v":25},{"$f":"MAXA(IF(AQ22=$BA$4:$BA$401,$BD$4:$BD$401))","v":25},"DIS",null,null,"COL0047762","Metabolismo oseo - bone metabolism",{"$f":"COUNTIF(BA$4:BA22,BA22)","v":2},{"$f":"ROW()","v":22},1]
[null,null,null,null,null,20,null,{"$f":"CLEAN(TRIM(Cronograma!C27))","v":""},{"$f":"Cronograma!D27","v":0},{"$f":"Cronograma!E27","v":0},null,null,null,null,null,null,null,null,null,null,null,null,null,null,null,null,6,"Programa","DER","Maestría en Derecho Administrativo",48,null,null,null,null,null,20,20,1,20,"DIS","\"PYDES\" Pedagogía y didáctica en la educación superior","COL0018448","A","http://scienti.colciencias.gov.co:8085/gruplac/jsp/visualiza/visualizagr.jsp?nro=00000000000929","BB69:BB72",{"$f":"ROW()","v":23},{"$f":"MINA(IF(AQ23=$BA$4:$BA$401,$BD$4:$BD$401))","v":69},{"$f":"MAXA(IF(AQ23=$BA$4:$BA$401,$BD$4:$BD$401))","v":72},"DIS",null,null,"COL0126015","Inmunodermatologia",{"$f":"COUNTIF(BA$4:BA23,BA23)","v":1},{"$f":"ROW()","v":23},1]
[null,null,null,null,null,"Col",1,{"$f":"G24+1","v":2},{"$f":"H24+1","v":3},4,5,6,7,8,9,10,11,12,13,14,15,16,null,null,null,null,7,"Programa","DER","Maestría en Instituciones Jurídicas de la Fuerza Pública",49,null,null,null,null,null,22,21,1,21,"DIS","Medios, Mediaciones y Procesos en Educación a Distancia","COL0067504","C","http://scienti.colciencias.gov.co:8085/gruplac/jsp/visualiza/visualizagr.jsp?nro=00000000004308","BB79:BB84",{"$f":"ROW()","v":24},{"$f":"MINA(IF(AQ24=$BA$4:$BA$401,$BD$4:$BD$401))","v":79},{"$f":"MAXA(IF(AQ24=$BA$4:$BA$401,$BD$4:$BD$401))","v":84},"DIS",null,null,"COL0126015","Psoriasis",{"$f":"COUNTIF(BA$4:BA24,BA24)","v":2},{"$f":"ROW()","v":24},1]
[null,null,null,null,null,null,null,null,null,null,null,null,null,null,null,null,null,null,null,null,null,null,null,null,null,null,8,"Programa","DER","Especialización en Derecho Administrativo",50,null,null,null,null,null,39,22,1,22,"DIS","PIREO \"Procesos de Integración, Regionalización y Estructuras Organizacionales\"","COL0066229","C","http://scienti.colciencias.gov.co:8085/gruplac/jsp/visualiza/visualizagr.jsp?nro=00000000004242","BB162:BB164",{"$f":"ROW()","v":25},{"$f":"MINA(IF(AQ25=$BA$4:$BA$401,$BD$4:$BD$401))","v":162},{"$f":"MAXA(IF(AQ25=$BA$4:$BA$401,$BD$4:$BD$401))","v":164},"DIS",null,null,"COL0127649","Línea en contabilidad integral",{"$f":"COUNTIF(BA$4:BA25,BA25)","v":1},{"$f":"ROW()","v":25},1]
[null,null,null,null,null,null,null,null,null,null,null,null,null,null,null,null,null,null,null,null,null,null,null,null,null,null,9,"Programa","DER","Especialización en Procedimiento Penal, Constitucional y Justicia Militar",51,null,null,null,null,null,61,23,1,23,"DIS","Modelos de simulación ICDIST","COL0069296","C","http://scienti.colciencias.gov.co:8085/gruplac/jsp/visualiza/visualizagr.jsp?nro=00000000004423","BB259:BB259",{"$f":"ROW()","v":26},{"$f":"MINA(IF(AQ26=$BA$4:$BA$401,$BD$4:$BD$401))","v":259},{"$f":"MAXA(IF(AQ26=$BA$4:$BA$401,$BD$4:$BD$401))","v":259},"DIS",null,null,"COL0015722","Bioética, biopolítica y biojurídica",{"$f":"COUNTIF(BA$4:BA26,BA26)","v":1},{"$f":"ROW()","v":26},1]
[null,null,null,null,null,null,null,null,"Totales",null,{"$f":"SUM(K31:K52)","v":0},null,null,null,null,null,{"$f":"SUM(Q30:Q52)","v":0},null,null,null,null,{"$f":"SUM(V30:V52)","v":0},{"$f":"SUM(W30:W52)","v":0},{"$f":"SUM(X30:X52)","v":0},null,null,10,"Programa","DER","Especialización en Derecho Sancionatorio",52,null,null,null,null,null,67,24,1,24,"DIS","INAMPE","COL0142331","NR","http://scienti.colciencias.gov.co:8085/gruplac/jsp/visualiza/visualizagr.jsp?nro=00000000014438","BB270:BB272",{"$f":"ROW()","v":27},{"$f":"MINA(IF(AQ27=$BA$4:$BA$401,$BD$4:$BD$401))","v":270},{"$f":"MAXA(IF(AQ27=$BA$4:$BA$401,$BD$4:$BD$401))","v":272},"DIS",null,null,"COL0015722","Liderazgo",{"$f":"COUNTIF(BA$4:BA27,BA27)","v":2},{"$f":"ROW()","v":27},1]
[null,null,null,null,null,"Valores Presupuestales",null,null,null,null,null,null,null,null,null,null,null,null,null,null,null,null,null,null,null,null,11,"Programa","DER","Especialización en Derechos Humanos y Sistemas de Protección",53,null,null,null,null,null,13,25,1,25,"ECO","Grupo de Estudios en Ciencias Económicas - CIE","COL0050294","C","http://scienti.colciencias.gov.co:8085/gruplac/jsp/visualiza/visualizagr.jsp?nro=00000000003322","BB43:BB45",{"$f":"ROW()","v":28},{"$f":"MINA(IF(AQ28=$BA$4:$BA$401,$BD$4:$BD$401))","v":43},{"$f":"MAXA(IF(AQ28=$BA$4:$BA$401,$BD$4:$BD$401))","v":45},"ECO",null,null,"COL0005439","Modelación numérica",{"$f":"COUNTIF(BA$4:BA28,BA28)","v":1},{"$f":"ROW()","v":28},1]
[null,null,null,null,null,null,"Datos de Contrapartida",null,null,null,null,"Datos OPS",null,null,null,null,null,null,null,null,null,null,null,null,null,null,12,"Programa","DIS","Administración de Empresas",17,null,null,null,null,null,17,26,1,26,"ECO","Grupo de Estudios Macroeconómicos","COL0027367","C","http://scienti.colciencias.gov.co:8085/gruplac/jsp/visualiza/visualizagr.jsp?nro=00000000000855","BB61:BB63",{"$f":"ROW()","v":29},{"$f":"MINA(IF(AQ29=$BA$4:$BA$401,$BD$4:$BD$401))","v":61},{"$f":"MAXA(IF(AQ29=$BA$4:$BA$401,$BD$4:$BD$401))","v":63},"ECO",null,null,"COL0005439","Ordenación del territorio",{"$f":"COUNTIF(BA$4:BA29,BA29)","v":2},{"$f":"ROW()","v":29},1]
[null,null,null,null,null,"No","Identidad",{"$f":"Presupuesto!E13","v":"Tipo de Vinculo UMNG"},{"$f":"Presupuesto!F13","v":"Numero de meses "},{"$f":"Presupuesto!G13","v":"Número Horas / Semanal"},{"$f":"Presupuesto!H13","v":"Valor Final"},{"$f":"Presupuesto!C29","v":"Valor mensual"},{"$f":"Presupuesto!D29","v":"Factor Salarial"},{"$f":"Presupuesto!E29","v":"Tipo de vinculación"},"mes","Horas",{"$f":"Presupuesto!H29","v":"Valor total"},{"$f":"Presupuesto!C50","v":"Rubro / Destino"},{"$f":"Presupuesto!D50","v":"Año de Vigencia"},{"$f":"Presupuesto!E50","v":"Descripción"},{"$f":"Presupuesto!F50","v":0},{"$f":"Presupuesto!G50","v":"Finaciación Vicein $"},{"$f":"Presupuesto!H50","v":"$ Contrapartida Facultad"},{"$f":"Presupuesto!I50","v":"Contrapartida Otros $"},null,null,12,"Programa","DIS","Administración de seguridad y Salud Ocupacional ","X",null,null,null,null,null,40,27,1,27,"ECO","Grupo de estudios contemporáneos en contabilidad, gestión y organizaciones - GECCGO","COL0028767","B","http://scienti.colciencias.gov.co:8085/gruplac/jsp/visualiza/visualizagr.jsp?nro=00000000001069","BB165:BB166",{"$f":"ROW()","v":30},{"$f":"MINA(IF(AQ30=$BA$4:$BA$401,$BD$4:$BD$401))","v":165},{"$f":"MAXA(IF(AQ30=$BA$4:$BA$401,$BD$4:$BD$401))","v":166},"ECO",null,null,"COL0005439","Pavimentos",{"$f":"COUNTIF(BA$4:BA30,BA30)","v":3},{"$f":"ROW()","v":30},1]
[null,null,null,null,null,{"$f":"ROW()-30","v":1},{"$f":"Presupuesto!I14","v":0},{"$f":"Presupuesto!E14","v":"Doc. Carrera TC"},{"$f":"Presupuesto!F14","v":24},{"$f":"Presupuesto!G14","v":0},{"$f":"Presupuesto!H14","v":0},{"$f":"Presupuesto!C30","v":0},{"$f":"Presupuesto!D30","v":0},{"$f":"Presupuesto!E30","v":0},{"$f":"Presupuesto!F30","v":10},{"$f":"Presupuesto!G30","v":0},{"$f":"Presupuesto!H30","v":0},{"$f":"Presupuesto!C51","v":"Personal"},{"$f":"Presupuesto!D51","v":1},{"$f":"Presupuesto!E51","v":"Horas de descarga académica"},{"$f":"Presupuesto!F51","v":0},{"$f":"Presupuesto!G51","v":0},{"$f":"Presupuesto!H51","v":0},{"$f":"Presupuesto!I51","v":0},null,null,13,"Programa","DIS","Contaduría Pública",18,null,null,null,null,null,64,28,1,28,"ECO","GECS (Grupo de Investigación en Contabilidad y Sociedad)","COL0117722","R","http://scienti.colciencias.gov.co:8085/gruplac/jsp/visualiza/visualizagr.jsp?nro=00000000011887","BB264:BB265",{"$f":"ROW()","v":31},{"$f":"MINA(IF(AQ31=$BA$4:$BA$401,$BD$4:$BD$401))","v":264},{"$f":"MAXA(IF(AQ31=$BA$4:$BA$401,$BD$4:$BD$401))","v":265},"ECO",null,null,"COL0005439","Suelos",{"$f":"COUNTIF(BA$4:BA31,BA31)","v":4},{"$f":"ROW()","v":31},1]
[null,null,null,null,null,{"$f":"ROW()-30","v":2},{"$f":"Presupuesto!I15","v":0},{"$f":"Presupuesto!E15","v":"Estímulo a estudiante"},{"$f":"Presupuesto!F15","v":10},{"$f":"Presupuesto!G15","v":0},{"$f":"Presupuesto!H15","v":0},{"$f":"Presupuesto!C31","v":0},{"$f":"Presupuesto!D31","v":0},{"$f":"Presupuesto!E31","v":0},{"$f":"Presupuesto!F31","v":10},{"$f":"Presupuesto!G31","v":0},{"$f":"Presupuesto!H31","v":0},{"$f":"Presupuesto!C52","v":0},{"$f":"Presupuesto!D52","v":1},{"$f":"Presupuesto!E52","v":0},{"$f":"Presupuesto!F52","v":0},{"$f":"Presupuesto!G52","v":0},{"$f":"Presupuesto!H52","v":0},{"$f":"Presupuesto!I52","v":0},null,null,14,"Programa","DIS","Ingeniería Civil",19,null,null,null,null,null,21,29,1,29,"EES","Estudios Internacionales y Políticos","COL0066768","C","http://scienti.colciencias.gov.co:8085/gruplac/jsp/visualiza/visualizagr.jsp?nro=00000000004270","BB73:BB78",{"$f":"ROW()","v":32},{"$f":"MINA(IF(AQ32=$BA$4:$BA$401,$BD$4:$BD$401))","v":73},{"$f":"MAXA(IF(AQ32=$BA$4:$BA$401,$BD$4:$BD$401))","v":78},"EES",null,null,"COL0005439","Transportes",{"$f":"COUNTIF(BA$4:BA32,BA32)","v":5},{"$f":"ROW()","v":32},1]
[null,null,null,null,null,3,{"$f":"Presupuesto!I16","v":0},{"$f":"Presupuesto!E16","v":0},{"$f":"Presupuesto!F16","v":10},{"$f":"Presupuesto!G16","v":0},{"$f":"Presupuesto!H16","v":0},{"$f":"Presupuesto!C32","v":0},{"$f":"Presupuesto!D32","v":0},{"$f":"Presupuesto!E32","v":0},{"$f":"Presupuesto!F32","v":10},{"$f":"Presupuesto!G32","v":0},{"$f":"Presupuesto!H32","v":0},{"$f":"Presupuesto!C53","v":0},{"$f":"Presupuesto!D53","v":1},{"$f":"Presupuesto!E53","v":0},{"$f":"Presupuesto!F53","v":0},{"$f":"Presupuesto!G53","v":0},{"$f":"Presupuesto!H53","v":0},{"$f":"Presupuesto!I53","v":0},null,null,15,"Programa","DIS","Ingeniería Industrial",20,null,null,null,null,null,53,30,1,30,"EES","Sociedad, Estrategia y Seguridad","COL0066669","C","http://scienti.colciencias.gov.co:8085/gruplac/jsp/visualiza/visualizagr.jsp?nro=00000000004263","BB221:BB224",{"$f":"ROW()","v":33},{"$f":"MINA(IF(AQ33=$BA$4:$BA$401,$BD$4:$BD$401))","v":221},{"$f":"MAXA(IF(AQ33=$BA$4:$BA$401,$BD$4:$BD$401))","v":224},"EES",null,null,"COL0028918","Constitución, derecho público y estado",{"$f":"COUNTIF(BA$4:BA33,BA33)","v":1},{"$f":"ROW()","v":33},1]
[null,null,null,null,null,4,{"$f":"Presupuesto!I17","v":0},{"$f":"Presupuesto!E17","v":0},{"$f":"Presupuesto!F17","v":10},{"$f":"Presupuesto!G17","v":0},{"$f":"Presupuesto!H17","v":0},{"$f":"Presupuesto!C33","v":0},{"$f":"Presupuesto!D33","v":0},{"$f":"Presupuesto!E33","v":0},{"$f":"Presupuesto!F33","v":10},{"$f":"Presupuesto!G33","v":0},{"$f":"Presupuesto!H33","v":0},{"$f":"Presupuesto!C54","v":0},{"$f":"Presupuesto!D54","v":1},{"$f":"Presupuesto!E54","v":0},{"$f":"Presupuesto!F54","v":0},{"$f":"Presupuesto!G54","v":0},{"$f":"Presupuesto!H54","v":0},{"$f":"Presupuesto!I54","v":0},null,null,16,"Programa","DIS","Ingeniería Informática",21,null,null,null,null,null,9,31,1,31,"HUM","LIDERAZGO","COL0015722","A","http://scienti.colciencias.gov.co:8085/gruplac/jsp/visualiza/visualizagr.jsp?nro=00000000000744","BB26:BB27",{"$f":"ROW()","v":34},{"$f":"MINA(IF(AQ34=$BA$4:$BA$401,$BD$4:$BD$401))","v":26},{"$f":"MAXA(IF(AQ34=$BA$4:$BA$401,$BD$4:$BD$401))","v":27},"HUM",null,null,"COL0028918","Derecho historia y filosofía",{"$f":"COUNTIF(BA$4:BA34,BA34)","v":2},{"$f":"ROW()","v":34},1]
[null,null,null,null,null,5,{"$f":"Presupuesto!I18","v":0},{"$f":"Presupuesto!E18","v":0},{"$f":"Presupuesto!F18","v":10},{"$f":"Presupuesto!G18","v":0},{"$f":"Presupuesto!H18","v":0},{"$f":"Presupuesto!C34","v":0},{"$f":"Presupuesto!D34","v":0},{"$f":"Presupuesto!E34","v":0},{"$f":"Presupuesto!F34","v":10},{"$f":"Presupuesto!G34","v":0},{"$f":"Presupuesto!H34","v":0},{"$f":"Presupuesto!C55","v":0},{"$f":"Presupuesto!D55","v":1},{"$f":"Presupuesto!E55","v":0},{"$f":"Presupuesto!F55","v":0},{"$f":"Presupuesto!G55","v":0},{"$f":"Presupuesto!H55","v":0},{"$f":"Presupuesto!I55","v":0},null,null,16,"Programa","DIS","Relaciones Internacionales y Estudios Políticos","X",null,null,null,null,null,23,32,1,32,"HUM","HUMANITAS","COL0101099","B","http://scienti.colciencias.gov.co:8085/gruplac/jsp/visualiza/visualizagr.jsp?nro=00000000010165","BB85:BB88",{"$f":"ROW()","v":35},{"$f":"MINA(IF(AQ35=$BA$4:$BA$401,$BD$4:$BD$401))","v":85},{"$f":"MAXA(IF(AQ35=$BA$4:$BA$401,$BD$4:$BD$401))","v":88},"HUM",null,null,"COL0028918","Derecho internacional, derechos humanos, derecho internacional humanitario",{"$f":"COUNTIF(BA$4:BA35,BA35)","v":3},{"$f":"ROW()","v":35},1]
[null,null,null,null,null,6,{"$f":"Presupuesto!I19","v":0},{"$f":"Presupuesto!E19","v":0},{"$f":"Presupuesto!F19","v":0},{"$f":"Presupuesto!G19","v":0},{"$f":"Presupuesto!H19","v":0},{"$f":"Presupuesto!C35","v":0},{"$f":"Presupuesto!D35","v":0},{"$f":"Presupuesto!E35","v":0},{"$f":"Presupuesto!F35","v":10},{"$f":"Presupuesto!G35","v":0},{"$f":"Presupuesto!H35","v":0},{"$f":"Presupuesto!C56","v":0},{"$f":"Presupuesto!D56","v":1},{"$f":"Presupuesto!E56","v":0},{"$f":"Presupuesto!F56","v":0},{"$f":"Presupuesto!G56","v":0},{"$f":"Presupuesto!H56","v":0},{"$f":"Presupuesto!I56","v":0},null,null,17,"Programa","DIS","Ingeniería Informática","X",null,null,null,null,null,38,33,{"$f":"COUNTIF($AN$4:$AN$806,AL36)","v":1},33,"HUM","Cultura y Desarrollo Humano","COL0002896","R","http://scienti.colciencias.gov.co:8085/gruplac/jsp/visualiza/visualizagr.jsp?nro=00000000000740","BB159:BB161",{"$f":"ROW()","v":36},{"$f":"MINA(IF(AQ36=$BA$4:$BA$401,$BD$4:$BD$401))","v":159},{"$f":"MAXA(IF(AQ36=$BA$4:$BA$401,$BD$4:$BD$401))","v":161},"HUM",null,null,"COL0028918","Derecho penal y justicia militar",{"$f":"COUNTIF(BA$4:BA36,BA36)","v":4},{"$f":"ROW()","v":36},1]
[null,null,null,null,null,7,{"$f":"Presupuesto!I20","v":0},{"$f":"Presupuesto!E20","v":0},{"$f":"Presupuesto!F20","v":0},{"$f":"Presupuesto!G20","v":0},{"$f":"Presupuesto!H20","v":0},{"$f":"Presupuesto!C36","v":0},{"$f":"Presupuesto!D36","v":0},{"$f":"Presupuesto!E36","v":0},{"$f":"Presupuesto!F36","v":10},{"$f":"Presupuesto!G36","v":0},{"$f":"Presupuesto!H36","v":0},{"$f":"Presupuesto!C57","v":0},{"$f":"Presupuesto!D57","v":1},{"$f":"Presupuesto!E57","v":0},{"$f":"Presupuesto!F57","v":0},{"$f":"Presupuesto!G57","v":0},{"$f":"Presupuesto!H57","v":0},{"$f":"Presupuesto!I57","v":0},null,null,17,"Programa","DIS","Especialización en Alta Gerencia",54,null,null,null,null,null,50,34,1,34,"HUM","BioethicsGroup","COL0031824","A","http://scienti.colciencias.gov.co:8085/gruplac/jsp/visualiza/visualizagr.jsp?nro=00000000001353","BB209:BB212",{"$f":"ROW()","v":37},{"$f":"MINA(IF(AQ37=$BA$4:$BA$401,$BD$4:$BD$401))","v":209},{"$f":"MAXA(IF(AQ37=$BA$4:$BA$401,$BD$4:$BD$401))","v":212},"HUM",null,null,"COL0028918","Derecho, educación y sociedad",{"$f":"COUNTIF(BA$4:BA37,BA37)","v":5},{"$f":"ROW()","v":37},1]
[null,null,null,null,null,8,{"$f":"Presupuesto!I21","v":0},{"$f":"Presupuesto!E21","v":0},{"$f":"Presupuesto!F21","v":0},{"$f":"Presupuesto!G21","v":0},{"$f":"Presupuesto!H21","v":0},{"$f":"Presupuesto!C37","v":0},{"$f":"Presupuesto!D37","v":0},{"$f":"Presupuesto!E37","v":0},{"$f":"Presupuesto!F37","v":0},{"$f":"Presupuesto!G37","v":0},{"$f":"Presupuesto!H37","v":0},{"$f":"Presupuesto!C58","v":0},{"$f":"Presupuesto!D58","v":1},{"$f":"Presupuesto!E58","v":0},{"$f":"Presupuesto!F58","v":0},{"$f":"Presupuesto!G58","v":0},{"$f":"Presupuesto!H58","v":0},{"$f":"Presupuesto!I58","v":0},null,null,18,"Programa","ECO","Administración de Empresas","X",null,null,null,null,null,5,35,1,35,"ING","Grupo de Investigación en Multimedia -GIM-","COL0044859","C","http://scienti.colciencias.gov.co:8085/gruplac/jsp/visualiza/visualizagr.jsp?nro=00000000002706","BB17:BB20",{"$f":"ROW()","v":38},{"$f":"MINA(IF(AQ38=$BA$4:$BA$401,$BD$4:$BD$401))","v":17},{"$f":"MAXA(IF(AQ38=$BA$4:$BA$401,$BD$4:$BD$401))","v":20},"ING",null,null,"COL0039321","Análisis de matrices",{"$f":"COUNTIF(BA$4:BA38,BA38)","v":1},{"$f":"ROW()","v":38},1]
[null,null,null,null,null,9,{"$f":"Presupuesto!I22","v":0},{"$f":"Presupuesto!E22","v":0},{"$f":"Presupuesto!F22","v":0},{"$f":"Presupuesto!G22","v":0},{"$f":"Presupuesto!H22","v":0},{"$f":"Presupuesto!C38","v":0},{"$f":"Presupuesto!D38","v":0},{"$f":"Presupuesto!E38","v":0},{"$f":"Presupuesto!F38","v":0},{"$f":"Presupuesto!G38","v":0},{"$f":"Presupuesto!H38","v":0},{"$f":"Presupuesto!C59","v":0},{"$f":"Presupuesto!D59","v":1},{"$f":"Presupuesto!E59","v":0},{"$f":"Presupuesto!F59","v":0},{"$f":"Presupuesto!G59","v":0},{"$f":"Presupuesto!H59","v":0},{"$f":"Presupuesto!I59","v":0},null,null,18,"Programa","ECO","Contaduría Pública","X",null,null,null,null,null,10,36,1,36,"ING","GEOTECNIA","COL0005439","C","http://scienti.colciencias.gov.co:8085/gruplac/jsp/visualiza/visualizagr.jsp?nro=00000000000739","BB28:BB32",{"$f":"ROW()","v":39},{"$f":"MINA(IF(AQ39=$BA$4:$BA$401,$BD$4:$BD$401))","v":28},{"$f":"MAXA(IF(AQ39=$BA$4:$BA$401,$BD$4:$BD$401))","v":32},"ING",null,null,"COL0039321","Filosofía de la ciencia: filosofía de la física",{"$f":"COUNTIF(BA$4:BA39,BA39)","v":2},{"$f":"ROW()","v":39},1]
[null,null,null,null,null,10,{"$f":"Presupuesto!I23","v":0},{"$f":"Presupuesto!E23","v":0},{"$f":"Presupuesto!F23","v":0},{"$f":"Presupuesto!G23","v":0},{"$f":"Presupuesto!H23","v":0},{"$f":"Presupuesto!C39","v":0},{"$f":"Presupuesto!D39","v":0},{"$f":"Presupuesto!E39","v":0},{"$f":"Presupuesto!F39","v":0},{"$f":"Presupuesto!G39","v":0},{"$f":"Presupuesto!H39","v":0},{"$f":"Presupuesto!C60","v":0},{"$f":"Presupuesto!D60","v":1},{"$f":"Presupuesto!E60","v":0},{"$f":"Presupuesto!F60","v":0},{"$f":"Presupuesto!G60","v":0},{"$f":"Presupuesto!H60","v":0},{"$f":"Presupuesto!I60","v":0},null,null,18,"Programa","ECO","Economía","X",null,null,null,null,null,14,37,1,37,"ING","TIGUM: Grupo de Investigacion en Telemedicina Universidad Militar","COL0052181","C","http://scienti.colciencias.gov.co:8085/gruplac/jsp/visualiza/visualizagr.jsp?nro=00000000003508","BB46:BB50",{"$f":"ROW()","v":40},{"$f":"MINA(IF(AQ40=$BA$4:$BA$401,$BD$4:$BD$401))","v":46},{"$f":"MAXA(IF(AQ40=$BA$4:$BA$401,$BD$4:$BD$401))","v":50},"ING",null,null,"COL0039321","Leyes de conservación hiperbólica",{"$f":"COUNTIF(BA$4:BA40,BA40)","v":3},{"$f":"ROW()","v":40},1]
[null,null,null,null,null,11," "," "," "," "," ",{"$f":"Presupuesto!C40","v":0},{"$f":"Presupuesto!D40","v":0},{"$f":"Presupuesto!E40","v":0},{"$f":"Presupuesto!F40","v":0},{"$f":"Presupuesto!G40","v":0},{"$f":"Presupuesto!H40","v":0},{"$f":"Presupuesto!C61","v":0},{"$f":"Presupuesto!D61","v":1},{"$f":"Presupuesto!E61","v":0},{"$f":"Presupuesto!F61","v":0},{"$f":"Presupuesto!G61","v":0},{"$f":"Presupuesto!H61","v":0},{"$f":"Presupuesto!I61","v":0},null,null,18,"Programa","ECO","Tecnología en Contabilidad y Tributaria","X",null,null,null,null,null,16,38,1,38,"ING","VOLTA - GMCDP","COL0065804","A1","http://scienti.colciencias.gov.co:8085/gruplac/jsp/visualiza/visualizagr.jsp?nro=00000000004193","BB56:BB60",{"$f":"ROW()","v":41},{"$f":"MINA(IF(AQ41=$BA$4:$BA$401,$BD$4:$BD$401))","v":56},{"$f":"MAXA(IF(AQ41=$BA$4:$BA$401,$BD$4:$BD$401))","v":60},"ING",null,null,"COL0039321","Matemáticas aplicadas",{"$f":"COUNTIF(BA$4:BA41,BA41)","v":4},{"$f":"ROW()","v":41},1]
[null,null,null,null,null,12," "," "," "," "," ",{"$f":"Presupuesto!C41","v":0},{"$f":"Presupuesto!D41","v":0},{"$f":"Presupuesto!E41","v":0},{"$f":"Presupuesto!F41","v":0},{"$f":"Presupuesto!G41","v":0},{"$f":"Presupuesto!H41","v":0},{"$f":"Presupuesto!C62","v":0},{"$f":"Presupuesto!D62","v":1},{"$f":"Presupuesto!E62","v":0},{"$f":"Presupuesto!F62","v":0},{"$f":"Presupuesto!G62","v":0},{"$f":"Presupuesto!H62","v":0},{"$f":"Presupuesto!I62","v":0},null,null,18,"Programa","ECO","Maestría en Gestión de Organizaciones ",24,null,null,null,null,null,27,39,1,39,"ING","PRODUCCION, INNOVACION Y TECNOLOGIA","COL0049999","C","http://scienti.colciencias.gov.co:8085/gruplac/jsp/visualiza/visualizagr.jsp?nro=00000000003290","BB112:BB117",{"$f":"ROW()","v":42},{"$f":"MINA(IF(AQ42=$BA$4:$BA$401,$BD$4:$BD$401))","v":112},{"$f":"MAXA(IF(AQ42=$BA$4:$BA$401,$BD$4:$BD$401))","v":117},"ING",null,null,"COL0039321","Solución numérica de ecuaciones diferenciales parciales",{"$f":"COUNTIF(BA$4:BA42,BA42)","v":5},{"$f":"ROW()","v":42},1]
[null,null,null,null,null,13," "," "," "," "," ",{"$f":"Presupuesto!C42","v":0},{"$f":"Presupuesto!D42","v":0},{"$f":"Presupuesto!E42","v":0},{"$f":"Presupuesto!F42","v":0},{"$f":"Presupuesto!G42","v":0},{"$f":"Presupuesto!H42","v":0},{"$f":"Presupuesto!C63","v":0},{"$f":"Presupuesto!D63","v":1},{"$f":"Presupuesto!E63","v":0},{"$f":"Presupuesto!F63","v":0},{"$f":"Presupuesto!G63","v":0},{"$f":"Presupuesto!H63","v":0},{"$f":"Presupuesto!I63","v":0},null,null,19,"Programa","ECO","Especialización en Alta Gerencia",25,null,null,null,null,null,29,40,1,40,"ING","GIDAM","COL0116636","C","http://scienti.colciencias.gov.co:8085/gruplac/jsp/visualiza/visualizagr.jsp?nro=00000000011773","BB121:BB124",{"$f":"ROW()","v":43},{"$f":"MINA(IF(AQ43=$BA$4:$BA$401,$BD$4:$BD$401))","v":121},{"$f":"MAXA(IF(AQ43=$BA$4:$BA$401,$BD$4:$BD$401))","v":124},"ING",null,null,"COL0050294","Economía de la defensa y del conflicto",{"$f":"COUNTIF(BA$4:BA43,BA43)","v":1},{"$f":"ROW()","v":43},1]
[null,null,null,null,null,14," "," "," "," "," ",{"$f":"Presupuesto!C43","v":0},{"$f":"Presupuesto!D43","v":0},{"$f":"Presupuesto!E43","v":0},{"$f":"Presupuesto!F43","v":0},{"$f":"Presupuesto!G43","v":0},{"$f":"Presupuesto!H43","v":0},{"$f":"Presupuesto!C64","v":0},{"$f":"Presupuesto!D64","v":1},{"$f":"Presupuesto!E64","v":0},{"$f":"Presupuesto!F64","v":0},{"$f":"Presupuesto!G64","v":0},{"$f":"Presupuesto!H64","v":0},{"$f":"Presupuesto!I64","v":0},null,null,20,"Programa","ECO","Especialización en Administración Aeronáutica y Aeroespacial",26,null,null,null,null,null,31,41,1,41,"ING","DAVINCI","COL0036025","A","http://scienti.colciencias.gov.co:8085/gruplac/jsp/visualiza/visualizagr.jsp?nro=00000000001843","BB130:BB133",{"$f":"ROW()","v":44},{"$f":"MINA(IF(AQ44=$BA$4:$BA$401,$BD$4:$BD$401))","v":130},{"$f":"MAXA(IF(AQ44=$BA$4:$BA$401,$BD$4:$BD$401))","v":133},"ING",null,null,"COL0050294","Gestión Ambiental",{"$f":"COUNTIF(BA$4:BA44,BA44)","v":2},{"$f":"ROW()","v":44},1]
[null,null,null,null,null,15," "," "," "," "," "," "," "," "," "," "," ",{"$f":"Presupuesto!C65","v":0},{"$f":"Presupuesto!D65","v":1},{"$f":"Presupuesto!E65","v":0},{"$f":"Presupuesto!F65","v":0},{"$f":"Presupuesto!G65","v":0},{"$f":"Presupuesto!H65","v":0},{"$f":"Presupuesto!I65","v":0},null,null,21,"Programa","ECO","Especialización en Control Interno",27,null,null,null,null,null,33,42,1,42,"ING","Estructuras y sísmica","COL0016999","C","http://scienti.colciencias.gov.co:8085/gruplac/jsp/visualiza/visualizagr.jsp?nro=00000000000737","BB139:BB143",{"$f":"ROW()","v":45},{"$f":"MINA(IF(AQ45=$BA$4:$BA$401,$BD$4:$BD$401))","v":139},{"$f":"MAXA(IF(AQ45=$BA$4:$BA$401,$BD$4:$BD$401))","v":143},"ING",null,null,"COL0050294","Política Económica",{"$f":"COUNTIF(BA$4:BA45,BA45)","v":3},{"$f":"ROW()","v":45},1]
[null,null,null,null,null,16," "," "," "," "," "," "," "," "," "," "," ",{"$f":"Presupuesto!C66","v":0},{"$f":"Presupuesto!D66","v":1},{"$f":"Presupuesto!E66","v":0},{"$f":"Presupuesto!F66","v":0},{"$f":"Presupuesto!G66","v":0},{"$f":"Presupuesto!H66","v":0},{"$f":"Presupuesto!I66","v":0},null,null,22,"Programa","ECO","Especialización en Gestión de Desarrollo Administrativo",28,null,null,null,null,null,34,43,1,43,"ING","INGENIERÍA, GEOMÁTICA Y EDUCACIÓN (IGE)","COL0047566","C","http://scienti.colciencias.gov.co:8085/gruplac/jsp/visualiza/visualizagr.jsp?nro=00000000003044","BB144:BB149",{"$f":"ROW()","v":46},{"$f":"MINA(IF(AQ46=$BA$4:$BA$401,$BD$4:$BD$401))","v":144},{"$f":"MAXA(IF(AQ46=$BA$4:$BA$401,$BD$4:$BD$401))","v":149},"ING",null,null,"COL0052181","Big Data Analytics",{"$f":"COUNTIF(BA$4:BA46,BA46)","v":1},{"$f":"ROW()","v":46},1]
[null,null,null,null,null,17," "," "," "," "," "," "," "," "," "," "," ",{"$f":"Presupuesto!C67","v":0},{"$f":"Presupuesto!D67","v":1},{"$f":"Presupuesto!E67","v":0},{"$f":"Presupuesto!F67","v":0},{"$f":"Presupuesto!G67","v":0},{"$f":"Presupuesto!H67","v":0},{"$f":"Presupuesto!I67","v":0},null,null,23,"Programa","ECO","Especialización en Gerencia en Comercio Internacional",29,null,null,null,null,null,37,44,1,44,"ING","ACCEDER","COL0036749","C","http://scienti.colciencias.gov.co:8085/gruplac/jsp/visualiza/visualizagr.jsp?nro=00000000012996","BB157:BB158",{"$f":"ROW()","v":47},{"$f":"MINA(IF(AQ47=$BA$4:$BA$401,$BD$4:$BD$401))","v":157},{"$f":"MAXA(IF(AQ47=$BA$4:$BA$401,$BD$4:$BD$401))","v":158},"ING",null,null,"COL0052181","Gestión hospitalaria",{"$f":"COUNTIF(BA$4:BA47,BA47)","v":2},{"$f":"ROW()","v":47},1]
[null,null,null,null,null,18," "," "," "," "," "," "," "," "," "," "," ",{"$f":"Presupuesto!C68","v":0},{"$f":"Presupuesto!D68","v":1},{"$f":"Presupuesto!E68","v":0},{"$f":"Presupuesto!F68","v":0},{"$f":"Presupuesto!G68","v":0},{"$f":"Presupuesto!H68","v":0},{"$f":"Presupuesto!I68","v":0},null,null,24,"Programa","ECO","Especialización en Finanzas y Administración Pública",30,null,null,null,null,null,49,45,1,45,"ING","Tratamiento de agua","COL0026486","C","http://scienti.colciencias.gov.co:8085/gruplac/jsp/visualiza/visualizagr.jsp?nro=00000000000767","BB206:BB208",{"$f":"ROW()","v":48},{"$f":"MINA(IF(AQ48=$BA$4:$BA$401,$BD$4:$BD$401))","v":206},{"$f":"MAXA(IF(AQ48=$BA$4:$BA$401,$BD$4:$BD$401))","v":208},"ING",null,null,"COL0052181","Procesamiento de seńales, datos, imagen y video",{"$f":"COUNTIF(BA$4:BA48,BA48)","v":3},{"$f":"ROW()","v":48},1]
[null,null,null,null,null,19," "," "," "," "," "," "," "," "," "," "," ",{"$f":"Presupuesto!C84","v":0},{"$f":"Presupuesto!D84","v":1},{"$f":"Presupuesto!E84","v":0},{"$f":"Presupuesto!F84","v":0},{"$f":"Presupuesto!G84","v":0},{"$f":"Presupuesto!H84","v":0},{"$f":"Presupuesto!I84","v":0},null,null,25,"Programa","ECO","Especialización en Mercadeo de Servicios",31,null,null,null,null,null,52,46,1,46,"ING","GISSIC: Grupo de Investigacion en Seguridad y Sistemas de Comunicaciones","COL0052163","A","http://scienti.colciencias.gov.co:8085/gruplac/jsp/visualiza/visualizagr.jsp?nro=00000000003506","BB216:BB220",{"$f":"ROW()","v":49},{"$f":"MINA(IF(AQ49=$BA$4:$BA$401,$BD$4:$BD$401))","v":216},{"$f":"MAXA(IF(AQ49=$BA$4:$BA$401,$BD$4:$BD$401))","v":220},"ING",null,null,"COL0052181","Tele-cardiología y prevención",{"$f":"COUNTIF(BA$4:BA49,BA49)","v":4},{"$f":"ROW()","v":49},1]
[null,null,null,null,null,20," "," "," "," "," "," "," "," "," "," "," ",{"$f":"Presupuesto!C85","v":0},{"$f":"Presupuesto!D85","v":1},{"$f":"Presupuesto!E85","v":0},{"$f":"Presupuesto!F85","v":0},{"$f":"Presupuesto!G85","v":0},{"$f":"Presupuesto!H85","v":0},{"$f":"Presupuesto!I85","v":0},null,null,26,"Programa","ECO","Especialización en Revisoría Fiscal y Auditoría Internacional",32,null,null,null,null,null,54,47,1,47,"ING","GAV","COL0068762","A","http://scienti.colciencias.gov.co:8085/gruplac/jsp/visualiza/visualizagr.jsp?nro=00000000004391","BB225:BB230",{"$f":"ROW()","v":50},{"$f":"MINA(IF(AQ50=$BA$4:$BA$401,$BD$4:$BD$401))","v":225},{"$f":"MAXA(IF(AQ50=$BA$4:$BA$401,$BD$4:$BD$401))","v":230},"ING",null,null,"COL0052181","Telemetría (IoT-Routing)",{"$f":"COUNTIF(BA$4:BA50,BA50)","v":5},{"$f":"ROW()","v":50},1]
[null,null,null,null,null,21," "," "," "," "," "," "," "," "," "," "," ",{"$f":"Presupuesto!C86","v":0},{"$f":"Presupuesto!D86","v":0},{"$f":"Presupuesto!E86","v":0},{"$f":"Presupuesto!F86","v":0},{"$f":"Presupuesto!G86","v":0},{"$f":"Presupuesto!H86","v":0},{"$f":"Presupuesto!I86","v":0},null,null,27,"Programa","EES","Relaciones Internacionales y Estudios Políticos",12,null,null,null,null,null,57,48,1,48,"ING","Energia alternativa, Centro Multidisciplinario de Investigación","COL0117052","C","http://scienti.colciencias.gov.co:8085/gruplac/jsp/visualiza/visualizagr.jsp?nro=00000000011817","BB243:BB247",{"$f":"ROW()","v":51},{"$f":"MINA(IF(AQ51=$BA$4:$BA$401,$BD$4:$BD$401))","v":243},{"$f":"MAXA(IF(AQ51=$BA$4:$BA$401,$BD$4:$BD$401))","v":247},"ING",null,null,"COL0107771","Calidad de Vida de las enfermedades respiratorias en la nińez",{"$f":"COUNTIF(BA$4:BA51,BA51)","v":1},{"$f":"ROW()","v":51},1]
[null,null,null,null,null,22," "," "," "," "," "," "," "," "," "," "," ",null,null,null,null,null,null,null,null,null,28,"Programa","EES","Administración de la Seguridad y Salud Ocupacional",13,null,null,null,null,null,60,49,1,49,"ING","GI-iTEC - Grupo de Investigación e innovación Tecnológica en Electrónica y Comunicaciones","COL0143731","C","http://scienti.colciencias.gov.co:8085/gruplac/jsp/visualiza/visualizagr.jsp?nro=00000000014576","BB256:BB258",{"$f":"ROW()","v":52},{"$f":"MINA(IF(AQ52=$BA$4:$BA$401,$BD$4:$BD$401))","v":256},{"$f":"MAXA(IF(AQ52=$BA$4:$BA$401,$BD$4:$BD$401))","v":258},"ING",null,null,"COL0107771","Enfermedad bronquial obstructiva recurrente en nińos (Asma, sibilancias inducidas por virus, sibilancias recurrentes, sibilancias persistentes de múltiples desencadenantes)",{"$f":"COUNTIF(BA$4:BA52,BA52)","v":2},{"$f":"ROW()","v":52},1]
[null,null,null,null,null,null,null,null,null,null,null,null,null,null,null,null,null,null,null,null,null,null,null,null,null,null,31,"Programa","EES","Maestría en Relaciones y Negocios Internacionales",44,null,null,null,null,null,66,50,1,50,"ING","LA TRAMOYA","COL0126777","C","http://scienti.colciencias.gov.co:8085/gruplac/jsp/visualiza/visualizagr.jsp?nro=00000000012813","BB266:BB269",{"$f":"ROW()","v":53},{"$f":"MINA(IF(AQ53=$BA$4:$BA$401,$BD$4:$BD$401))","v":266},{"$f":"MAXA(IF(AQ53=$BA$4:$BA$401,$BD$4:$BD$401))","v":269},"ING",null,null,"COL0107771","Enfermedad pulmonar obstructiva crónica del Recién Nacido",{"$f":"COUNTIF(BA$4:BA53,BA53)","v":3},{"$f":"ROW()","v":53},1]
[null,null,null,null,null,null,null,null,null,null,null,null,"Recopilación deTextos",null,null,null,null,null,null,null,null,null,null,null,null,null,32,"Programa","EES","Especialización en Administración de la Seguridad",45,null,null,null,null,null,70,51,1,51,"ING","GREST","COL0151789","C","http://scienti.colciencias.gov.co:8085/gruplac/jsp/visualiza/visualizagr.jsp?nro=00000000015386","BB282:BB288",{"$f":"ROW()","v":54},{"$f":"MINA(IF(AQ54=$BA$4:$BA$401,$BD$4:$BD$401))","v":282},{"$f":"MAXA(IF(AQ54=$BA$4:$BA$401,$BD$4:$BD$401))","v":288},"ING",null,null,"COL0107771","Enfermedades infecciosas de la infancia (Rinosinusitis, Croup, Bronquiolitis, Neumonía, Tuberculosis, Infección por VIH con afectación pulmonar)",{"$f":"COUNTIF(BA$4:BA54,BA54)","v":4},{"$f":"ROW()","v":54},1]
[null,null,null,null,null,"No","Impacto","Categoria","Plazo"," "," ","No","No. Hoja","Hoja","Letra","No","Texto","Diferencia",null,null,null,null,null,null,null,null,33,"Programa","EES","Especialización en Alta Gerencia de la Seguridad y Defensa",46,null,null,null,null,null,1,52,1,52,"MED","CATCH","COL0049659","C","http://scienti.colciencias.gov.co:8085/gruplac/jsp/visualiza/visualizagr.jsp?nro=00000000003253","BB4:BB5",{"$f":"ROW()","v":55},{"$f":"MINA(IF(AQ55=$BA$4:$BA$401,$BD$4:$BD$401))","v":4},{"$f":"MAXA(IF(AQ55=$BA$4:$BA$401,$BD$4:$BD$401))","v":5},"MED",null,null,"COL0107771","Fármaco economía de las enfermedades respiratorias en la infancia",{"$f":"COUNTIF(BA$4:BA55,BA55)","v":5},{"$f":"ROW()","v":55},1]
[null,null,null,null,null,{"$f":"ROW()-55","v":1},{"$f":"CLEAN(TRIM(Impactos!C8))","v":"Impacto principal"},{"$f":"Impactos!F8","v":0},{"$f":"Impactos!G8","v":0}," "," ",{"$f":"COUNTIF(N$56:N56,N56)","v":1},3,{"$f":"NbHoja(M56)","v":"Resumen"},"C",1,{"$f":"CLEAN(TRIM(INDIRECT($N56&\"!\"&$O56&(P56+R56),1)))","v":""},6,null,null,null,null,null,null,null,null,34,"Programa","HUM","Especialización en Docencia Universitaria",55,null,null,null,null,null,6,53,1,53,"MED","BONE","COL0047762","C","http://scienti.colciencias.gov.co:8085/gruplac/jsp/visualiza/visualizagr.jsp?nro=00000000003064","BB21:BB22",{"$f":"ROW()","v":56},{"$f":"MINA(IF(AQ56=$BA$4:$BA$401,$BD$4:$BD$401))","v":21},{"$f":"MAXA(IF(AQ56=$BA$4:$BA$401,$BD$4:$BD$401))","v":22},"MED",null,null,"COL0065804","Biomecánica",{"$f":"COUNTIF(BA$4:BA56,BA56)","v":1},{"$f":"ROW()","v":56},1]
[null,null,null,null,null,{"$f":"ROW()-55","v":2},{"$f":"CLEAN(TRIM(Impactos!C9))","v":"Alcance"},{"$f":"Impactos!F9","v":0},{"$f":"Impactos!G9","v":0}," "," ",{"$f":"COUNTIF(N$56:N57,N57)","v":2},3,{"$f":"NbHoja(M57)","v":"Resumen"},{"$f":"O56","v":"C"},{"$f":"P56+1","v":2},{"$f":"CLEAN(TRIM(INDIRECT($N57&\"!\"&$O57&(P57+R57),1)))","v":""},{"$f":"R56","v":6},null,null,null,null,null,null,null,null,34,"Programa","HUM","Maestría en Educación",55,null,null,null,null,null,7,54,1,54,"MED","Grupo de Psoriasis e Inmunodermatologia","COL0126015","C","http://scienti.colciencias.gov.co:8085/gruplac/jsp/visualiza/visualizagr.jsp?nro=00000000012737","BB23:BB24",{"$f":"ROW()","v":57},{"$f":"MINA(IF(AQ57=$BA$4:$BA$401,$BD$4:$BD$401))","v":23},{"$f":"MAXA(IF(AQ57=$BA$4:$BA$401,$BD$4:$BD$401))","v":24},"MED",null,null,"COL0065804","Desarrollos mecatrónicos",{"$f":"COUNTIF(BA$4:BA57,BA57)","v":2},{"$f":"ROW()","v":57},1]
[null,null,null,null,null,3,{"$f":"CLEAN(TRIM(Impactos!C10))","v":""},{"$f":"Impactos!F10","v":0},{"$f":"Impactos!G10","v":0}," "," ",{"$f":"COUNTIF(N$56:N58,N58)","v":3},3,"Resumen",{"$f":"O57","v":"C"},{"$f":"P57+1","v":3},"",{"$f":"R57","v":6},null,null,null,null,null,null,null,null,35,"Programa","HUM","Doctorado de Bioética",55,null,null,null,null,null,15,55,1,55,"MED","Grupo para el estudio de enfermedades respiratorias en nińos. Respira","COL0107771","C","http://scienti.colciencias.gov.co:8085/gruplac/jsp/visualiza/visualizagr.jsp?nro=00000000010842","BB51:BB55",{"$f":"ROW()","v":58},{"$f":"MINA(IF(AQ58=$BA$4:$BA$401,$BD$4:$BD$401))","v":51},{"$f":"MAXA(IF(AQ58=$BA$4:$BA$401,$BD$4:$BD$401))","v":55},"MED",null,null,"COL0065804","Energías Renovables",{"$f":"COUNTIF(BA$4:BA58,BA58)","v":3},{"$f":"ROW()","v":58},1]
[null,null,null,null,null,4,{"$f":"CLEAN(TRIM(Impactos!C11))","v":""},{"$f":"Impactos!F11","v":0},{"$f":"Impactos!G11","v":0}," "," ",{"$f":"COUNTIF(N$56:N59,N59)","v":4},3,"Resumen","C",4,"",6,null,null,null,null,null,null,null,null,36,"Programa","ING","Ingeniería Ambiental",4,null,null,null,null,null,19,56,1,56,"MED","Salud y Comportamiento","COL0033239","NR","http://scienti.colciencias.gov.co:8085/gruplac/jsp/visualiza/visualizagr.jsp?nro=00000000001536","BB66:BB68",{"$f":"ROW()","v":59},{"$f":"MINA(IF(AQ59=$BA$4:$BA$401,$BD$4:$BD$401))","v":66},{"$f":"MAXA(IF(AQ59=$BA$4:$BA$401,$BD$4:$BD$401))","v":68},"MED",null,null,"COL0065804","Gerencia Proyectos Ingeniería",{"$f":"COUNTIF(BA$4:BA59,BA59)","v":4},{"$f":"ROW()","v":59},1]
[null,null,null,null,null,5,{"$f":"CLEAN(TRIM(Impactos!C12))","v":"Nivel adaptación social del impacto del proyecto según los SRL (Societal Readiness Levels)"},{"$f":"Impactos!F12","v":0},{"$f":"Impactos!G12","v":0}," "," ",{"$f":"COUNTIF(N$56:N60,N60)","v":5},3,"Resumen","C",5,"",6,null,null,null,null,null,null,null,null,37,"Programa","ING","Ingeniería Biomédica",5,null,null,null,null,null,24,57,1,57,"MED","GRUPO NEUROCIENCIAS HMC","COL0138698","B","http://scienti.colciencias.gov.co:8085/gruplac/jsp/visualiza/visualizagr.jsp?nro=00000000014072","BB89:BB101",{"$f":"ROW()","v":60},{"$f":"MINA(IF(AQ60=$BA$4:$BA$401,$BD$4:$BD$401))","v":89},{"$f":"MAXA(IF(AQ60=$BA$4:$BA$401,$BD$4:$BD$401))","v":101},"MED",null,null,"COL0065804","Materiales y Procesos de Manufactura",{"$f":"COUNTIF(BA$4:BA60,BA60)","v":5},{"$f":"ROW()","v":60},1]
[null,null,null,null,null,6,{"$f":"CLEAN(TRIM(Impactos!C13))","v":"Estado actual del SRL"},{"$f":"Impactos!F13","v":0},{"$f":"Impactos!G13","v":0}," "," ",{"$f":"COUNTIF(N$56:N61,N61)","v":6},3,"Resumen","C",6,"",6,null,null,null,null,null,null,null,null,38,"Programa","ING","Ingeniería Civil",6,null,null,null,null,null,25,58,1,58,"MED","Grupo de Investigacion en Dermatologia HMC","COL0116439","C","http://scienti.colciencias.gov.co:8085/gruplac/jsp/visualiza/visualizagr.jsp?nro=00000000011753","BB102:BB106",{"$f":"ROW()","v":61},{"$f":"MINA(IF(AQ61=$BA$4:$BA$401,$BD$4:$BD$401))","v":102},{"$f":"MAXA(IF(AQ61=$BA$4:$BA$401,$BD$4:$BD$401))","v":106},"MED",null,null,"COL0027367","Aprendizaje en Economía",{"$f":"COUNTIF(BA$4:BA61,BA61)","v":1},{"$f":"ROW()","v":61},1]
[null,null,null,null,null,7,{"$f":"CLEAN(TRIM(Impactos!C14))","v":"SRL Comprometido al finalizar el proyecto"},{"$f":"Impactos!F14","v":0},{"$f":"Impactos!G14","v":0}," "," ",{"$f":"COUNTIF(N$56:N62,N62)","v":7},3,"Resumen","C",7,"",6,null,null,null,null,null,null,null,null,39,"Programa","ING","Ingeniería Industrial",7,null,null,null,null,null,35,59,1,59,"MED","Células Stem Adultas","COL0050982","C","http://scienti.colciencias.gov.co:8085/gruplac/jsp/visualiza/visualizagr.jsp?nro=00000000005735","BB150:BB153",{"$f":"ROW()","v":62},{"$f":"MINA(IF(AQ62=$BA$4:$BA$401,$BD$4:$BD$401))","v":150},{"$f":"MAXA(IF(AQ62=$BA$4:$BA$401,$BD$4:$BD$401))","v":153},"MED",null,null,"COL0027367","Demografía y Economía Laboral",{"$f":"COUNTIF(BA$4:BA62,BA62)","v":2},{"$f":"ROW()","v":62},1]
[null,null,null,null,null,8,{"$f":"CLEAN(TRIM(Impactos!C15))","v":""},{"$f":"Impactos!F15","v":0},{"$f":"Impactos!G15","v":0}," "," ",{"$f":"COUNTIF(N$56:N63,N63)","v":8},3,"Resumen","C",8,"",6,null,null,null,null,null,null,null,null,40,"Programa","ING","Ingeniería en Mecatrónica",8,null,null,null,null,null,36,60,1,60,"MED","Grupo de Salud Oral y Cirugia Maxilofacial","COL0129689","C","http://scienti.colciencias.gov.co:8085/gruplac/jsp/visualiza/visualizagr.jsp?nro=00000000013172","BB154:BB156",{"$f":"ROW()","v":63},{"$f":"MINA(IF(AQ63=$BA$4:$BA$401,$BD$4:$BD$401))","v":154},{"$f":"MAXA(IF(AQ63=$BA$4:$BA$401,$BD$4:$BD$401))","v":156},"MED",null,null,"COL0027367","Polětica Monetaria y Desarrollo Financiero",{"$f":"COUNTIF(BA$4:BA63,BA63)","v":3},{"$f":"ROW()","v":63},1]
[null,null,null,null,null,9,{"$f":"CLEAN(TRIM(Impactos!C16))","v":"Evolución del impacto alcanzado como resultado de proyectos anteriores"},{"$f":"Impactos!F16","v":0},{"$f":"Impactos!G16","v":0}," "," ",{"$f":"COUNTIF(N$56:N64,N64)","v":9},3,"Resumen","C",9,"",6,null,null,null,null,null,null,null,null,41,"Programa","ING","Ingeniería en Multimedia",9,null,null,null,null,null,45,61,1,61,"MED","Kokhlias.","COL0125134","C","http://scienti.colciencias.gov.co:8085/gruplac/jsp/visualiza/visualizagr.jsp?nro=00000000012649","BB186:BB192",{"$f":"ROW()","v":64},{"$f":"MINA(IF(AQ64=$BA$4:$BA$401,$BD$4:$BD$401))","v":186},{"$f":"MAXA(IF(AQ64=$BA$4:$BA$401,$BD$4:$BD$401))","v":192},"MED",null,null,"COL0032278","Biología y Ecología de plagas y enemigos naturales de cultivos de importancia económica",{"$f":"COUNTIF(BA$4:BA64,BA64)","v":1},{"$f":"ROW()","v":64},1]
[null,null,null,null,null,10,{"$f":"CLEAN(TRIM(Impactos!C17))","v":""},{"$f":"Impactos!F17","v":0},{"$f":"Impactos!G17","v":0}," "," ",{"$f":"COUNTIF(N$56:N65,N65)","v":10},3,"Resumen",{"$f":"O64","v":"C"},10,"-",{"$f":"R64","v":6},null,null,null,null,null,null,null,null,42,"Programa","ING","Ingenieria en Telecomunicaciones",10,null,null,null,null,null,46,62,1,62,"MED","Grupo de Rehabilitacion HOMIC-UMNG","COL0120281","NR","http://scienti.colciencias.gov.co:8085/gruplac/jsp/visualiza/visualizagr.jsp?nro=00000000012152","BB193:BB197",{"$f":"ROW()","v":65},{"$f":"MINA(IF(AQ65=$BA$4:$BA$401,$BD$4:$BD$401))","v":193},{"$f":"MAXA(IF(AQ65=$BA$4:$BA$401,$BD$4:$BD$401))","v":197},"MED",null,null,"COL0032278","Generación de recomendaciones para el manejo integrado de plagas, mediante el diseńo de modelos de simulación de agroecosistemas",{"$f":"COUNTIF(BA$4:BA65,BA65)","v":2},{"$f":"ROW()","v":65},1]
[null,null,null,null,null,11,{"$f":"CLEAN(TRIM(Impactos!C18))","v":"Descripción de los Beneficiario(s) del impacto del proyecto"},{"$f":"Impactos!F18","v":0},{"$f":"Impactos!G18","v":0}," "," ",{"$f":"COUNTIF(N$56:N66,N66)","v":11},3,"Resumen","C",11,"",6,null,null,null,null,null,null,null,null,43,"Programa","ING","Tecnología en Electrónica y Comunicaciones",11,null,null,null,null,null,48,63,1,63,"MED","Grupo de Investigacion en Urologia HMC","COL0116538","C","http://scienti.colciencias.gov.co:8085/gruplac/jsp/visualiza/visualizagr.jsp?nro=00000000011763","BB200:BB205",{"$f":"ROW()","v":66},{"$f":"MINA(IF(AQ66=$BA$4:$BA$401,$BD$4:$BD$401))","v":200},{"$f":"MAXA(IF(AQ66=$BA$4:$BA$401,$BD$4:$BD$401))","v":205},"MED",null,null,"COL0033239","Prevención de la enfermedad y promoción de la salud",{"$f":"COUNTIF(BA$4:BA66,BA66)","v":1},{"$f":"ROW()","v":66},1]
[null,null,null,null,null,12,{"$f":"CLEAN(TRIM(Impactos!C19))","v":""},{"$f":"Impactos!F19","v":0},{"$f":"Impactos!G19","v":0}," "," ",{"$f":"COUNTIF(N$56:N67,N67)","v":12},3,"Resumen","C",12,"Planteamiento y justificación de la propuesta.",6,null,null,null,null,null,null,null,null,44,"Programa","ING","Maestría en Ingeniería Mecatrónica",34,null,null,null,null,null,51,64,1,64,"MED","Epidemiología molecular de enfermedades endocrinas","COL0045848","NR","http://scienti.colciencias.gov.co:8085/gruplac/jsp/visualiza/visualizagr.jsp?nro=00000000002874","BB213:BB215",{"$f":"ROW()","v":67},{"$f":"MINA(IF(AQ67=$BA$4:$BA$401,$BD$4:$BD$401))","v":213},{"$f":"MAXA(IF(AQ67=$BA$4:$BA$401,$BD$4:$BD$401))","v":215},"MED",null,null,"COL0033239","Salud Mental y Calidad de Vida",{"$f":"COUNTIF(BA$4:BA67,BA67)","v":2},{"$f":"ROW()","v":67},1]
[null,null,null,null,null,13,{"$f":"CLEAN(TRIM(Impactos!C20))","v":"Descripción del impacto esperado."},{"$f":"Impactos!F20","v":0},{"$f":"Impactos!G20","v":0}," "," ",{"$f":"COUNTIF(N$56:N68,N68)","v":13},3,"Resumen","C",13,"",6,null,null,null,null,null,null,null,null,45,"Programa","ING","Maestría en Ingeniería Civil",35,null,null,null,null,null,59,66,{"$f":"COUNTIF($AN$4:$AN$806,AL68)","v":1},65,"MED","EDUMECIS","COL0152463","R","http://scienti.colciencias.gov.co:8085/gruplac/jsp/visualiza/visualizagr.jsp?nro=00000000015421",{"$f":"$AT$2&AV68&\":\"&$AT$2&AW68","v":"BB253:BB255"},{"$f":"ROW()","v":68},{"$f":"MINA(IF(AQ68=$BA$4:$BA$401,$BD$4:$BD$401))","v":253},{"$f":"MAXA(IF(AQ68=$BA$4:$BA$401,$BD$4:$BD$401))","v":255},{"$f":"AO68","v":"MED"},null,null,"COL0033239","Salud Sexual y Reproductiva",{"$f":"COUNTIF(BA$4:BA68,BA68)","v":3},{"$f":"ROW()","v":68},{"$f":"COUNTIF($AQ$3:$AQ$80,BA68)","v":1}]
[null,null,null,null,null,14,{"$f":"CLEAN(TRIM(Impactos!C21))","v":""},{"$f":"Impactos!F21","v":0},{"$f":"Impactos!G21","v":0}," "," ",{"$f":"COUNTIF(N$56:N69,N69)","v":14},3,"Resumen","C",14,"",6,null,null,null,null,null,null,null,null,46,"Programa","ING","Maestría en Logística Integral",36,null,null,null,null,null,62,67,1,66,"MED","BioGenEtica & BioDerecho","COL0096032","C","http://scienti.colciencias.gov.co:8085/gruplac/jsp/visualiza/visualizagr.jsp?nro=00000000009651","BB260:BB263",{"$f":"ROW()","v":69},{"$f":"MINA(IF(AQ69=$BA$4:$BA$401,$BD$4:$BD$401))","v":260},{"$f":"MAXA(IF(AQ69=$BA$4:$BA$401,$BD$4:$BD$401))","v":263},"MED",null,null,"COL0018448","Ambiente Virtuales de Aprendizaje",{"$f":"COUNTIF(BA$4:BA69,BA69)","v":1},{"$f":"ROW()","v":69},1]
[null,null,null,null,null,15,{"$f":"CLEAN(TRIM(Impactos!C22))","v":""},{"$f":"Impactos!F22","v":0},{"$f":"Impactos!G22","v":0}," "," ",{"$f":"COUNTIF(N$56:N70,N70)","v":15},3,"Resumen","C",15,"",6,null,null,null,null,null,null,null,null,47,"Programa","ING","Maestría en Gerencia de Proyectos",37,null,null,null,null,null,69,70,1,{"$f":"AN69+1","v":67},"MED","GAFRED","COL0149359","R","http://scienti.colciencias.gov.co:8085/gruplac/jsp/visualiza/visualizagr.jsp?nro=00000000015141","BB279:BB281",{"$f":"ROW()","v":70},{"$f":"MINA(IF(AQ70=$BA$4:$BA$401,$BD$4:$BD$401))","v":279},{"$f":"MAXA(IF(AQ70=$BA$4:$BA$401,$BD$4:$BD$401))","v":281},"MED",null,null,"COL0018448","Formación pedagógica para el posconflicto en Colombia",{"$f":"COUNTIF(BA$4:BA70,BA70)","v":2},{"$f":"ROW()","v":70},1]
[null,null,null,null,null,16,{"$f":"CLEAN(TRIM(Impactos!C23))","v":""},{"$f":"Impactos!F23","v":0},{"$f":"Impactos!G23","v":0}," "," ",{"$f":"COUNTIF(N$56:N71,N71)","v":16},3,"Resumen","C",16,"",6,null,null,null,null,null,null,null,null,47,"Programa","ING","Maestría en Ingeniería Mecatrónica","x",null,null,null,null,null,71,71,0,68,"MED","Grupo de inmunología Clínica Aplicada (GICA)","COL0152472","C","http://scienti.colciencias.gov.co:8085/gruplac/jsp/visualiza/visualizagr.jsp?nro=00000000015414","BB289:BB290",{"$f":"ROW()","v":71},{"$f":"MINA(IF(AQ71=$BA$4:$BA$401,$BD$4:$BD$401))","v":289},{"$f":"MAXA(IF(AQ71=$BA$4:$BA$401,$BD$4:$BD$401))","v":290},"MED",null,null,"COL0018448","Formación pedagógica para el posconflicto en Colombia",{"$f":"COUNTIF(BA$4:BA71,BA71)","v":3},{"$f":"ROW()","v":71},1]
[null,null,null,null,null,17,{"$f":"CLEAN(TRIM(Impactos!C24))","v":""},{"$f":"Impactos!F24","v":0},{"$f":"Impactos!G24","v":0}," "," ",{"$f":"COUNTIF(N$56:N72,N72)","v":17},3,"Resumen","C",17,"",6,null,null,null,null,null,null,null,null,48,"Programa","ING","Especialización en Geomática",38,null,null,null,null,null,70,70,1,69,"MED","Epidemiología y Salud Colectiva ","COL0152319","C","http://scienti.colciencias.gov.co:8085/gruplac/jsp/visualiza/visualizagr.jsp?nro=00000000015438",{"$f":"$AT$2&AV72&\":\"&$AT$2&AW72","v":"BB291:BB295"},{"$f":"ROW()","v":72},{"$f":"MINA(IF(AQ72=$BA$4:$BA$401,$BD$4:$BD$401))","v":291},{"$f":"MAXA(IF(AQ72=$BA$4:$BA$401,$BD$4:$BD$401))","v":295},{"$f":"AO72","v":"MED"},null,null,"COL0018448","Gestión del conocimiento y calidad de la educación superior",{"$f":"COUNTIF(BA$4:BA72,BA72)","v":4},{"$f":"ROW()","v":72},1]
[null,null,null,null,null,18,{"$f":"CLEAN(TRIM(Impactos!C25))","v":""},{"$f":"Impactos!F25","v":0},{"$f":"Impactos!G25","v":0}," "," ",{"$f":"COUNTIF(N$56:N73,N73)","v":18},3,"Resumen","C",18,"",6,null,null,null,null,null,null,null,null,49,"Programa","ING","Especialización en Gerencia de la Calidad",39,null,null,null,null,null,73,73,0,70,"MED","Grupo de investigaciones sobre agentes radiológicos, biológicos y químicos","COL0191078","NR","http://scienti.colciencias.gov.co:8085/gruplac/jsp/visualiza/visualizagr.jsp?nro=00000000019309","BB306:BB308",{"$f":"ROW()","v":73},{"$f":"MINA(IF(AQ73=$BA$4:$BA$401,$BD$4:$BD$401))","v":306},{"$f":"MAXA(IF(AQ73=$BA$4:$BA$401,$BD$4:$BD$401))","v":308},"MED",null,null,"COL0066768","Derecho de las relaciones internacionales",{"$f":"COUNTIF(BA$4:BA73,BA73)","v":1},{"$f":"ROW()","v":73},1]
[null,null,null,null,null,19,{"$f":"CLEAN(TRIM(Impactos!C26))","v":""},{"$f":"Impactos!F26","v":0},{"$f":"Impactos!G26","v":0}," "," ",{"$f":"COUNTIF(N$56:N74,N74)","v":19},3,"Resumen","C",19,"",6,null,null,null,null,null,null,null,null,50,"Programa","ING","Especialización en Gerencia en Logística Integral",40,null,null,null,null,null,null,null,null,null,null,null,null,null,null,null,null,null,null,null,null,null,"COL0066768","Economía y negocios internacionales",{"$f":"COUNTIF(BA$4:BA74,BA74)","v":2},{"$f":"ROW()","v":74},1]
[null,null,null,null,null,20,{"$f":"CLEAN(TRIM(Impactos!C27))","v":""},{"$f":"Impactos!F27","v":0},{"$f":"Impactos!G27","v":0}," "," ",{"$f":"COUNTIF(N$56:N75,N75)","v":20},3,"Resumen","C",20,"",6,null,null,null,null,null,null,null,null,51,"Programa","ING","Especialización en Gerencia Integral de Proyectos",41,null,null,null,null,null,null,null,null,null,null,null,null,null,null,null,null,null,null,null,null,null,"COL0066768","Estudios políticos",{"$f":"COUNTIF(BA$4:BA75,BA75)","v":3},{"$f":"ROW()","v":75},1]
[null,null,null,null,null,null,null,null,null,null,null,{"$f":"COUNTIF(N$56:N76,N76)","v":21},3,"Resumen","C",21,"",6,null,null,null,null,null,null,null,null,52,"Programa","ING","Especialización en Ingeniería de Pavimentos",42,null,null,null,null,null,null,null,null,null,null,null,null,null,null,null,null,null,null,null,null,null,"COL0066768","Estudios regionales",{"$f":"COUNTIF(BA$4:BA76,BA76)","v":4},{"$f":"ROW()","v":76},1]
[null,null,null,null,null,null,null,null,null,null,null,{"$f":"COUNTIF(N$56:N77,N77)","v":22},3,"Resumen","C",22,"",6,null,null,null,null,null,null,null,null,53,"Programa","ING","Especialización en Planeación Ambiental y Manejo Integral de los Recursos Naturales",43,null,null,null,null,null,null,null,null,null,null,null,null,null,null,null,null,null,null,null,null,null,"COL0066768","Historia internacional",{"$f":"COUNTIF(BA$4:BA77,BA77)","v":5},{"$f":"ROW()","v":77},1]
[null,null,"No","Nombre Inst","Grupo","Clasif","Investig","Presupuesto","Alcance","Link",null,{"$f":"COUNTIF(N$56:N78,N78)","v":23},3,"Resumen","C",23,"",6,null,null,null,null,null,null,null,null,53,"Programa","ING","Doctorado en Ciencias Aplicadas",43,null,null,null,null,null,null,null,null,null,null,null,null,null,null,null,null,null,null,null,null,null,"COL0066768","Relaciones internacionales",{"$f":"COUNTIF(BA$4:BA78,BA78)","v":6},{"$f":"ROW()","v":78},1]
[null,null,1,{"$f":"General!C31","v":0},{"$f":"General!C32","v":0},{"$f":"General!I32","v":0},{"$f":"General!C33","v":0},{"$f":"General!I33","v":0},{"$f":"General!G34","v":0},{"$f":"General!C35","v":0},null,{"$f":"COUNTIF(N$56:N79,N79)","v":24},3,"Resumen",{"$f":"O78","v":"C"},{"$f":"P78+1","v":24},"",{"$f":"R78","v":6},null,null,null,null,null,null,null,null,54,"Programa","MED","Medicina",14,null,null,null,null,null,null,null,null,null,null,null,null,null,null,null,null,null,null,null,null,null,"COL0067504","Gestión Tecnológica",{"$f":"COUNTIF(BA$4:BA79,BA79)","v":1},{"$f":"ROW()","v":79},1]
[null,null,2,{"$f":"General!C37","v":0},{"$f":"General!C38","v":0},{"$f":"General!I38","v":0},{"$f":"General!C39","v":0},{"$f":"General!I39","v":0},{"$f":"General!G40","v":0},{"$f":"General!C41","v":0},null,{"$f":"COUNTIF(N$56:N80,N80)","v":25},3,"Resumen","C",25,"",6,null,null,null,null,null,null,null,null,55,"Programa","MED","Tecnología en Atención Prehospitalaria",15,null,null,null,null,null,null,null,null,null,null,null,null,null,null,null,null,null,null,null,null,null,"COL0067504","Gestión del conocimiento",{"$f":"COUNTIF(BA$4:BA80,BA80)","v":2},{"$f":"ROW()","v":80},1]
[null,null,3,{"$f":"General!C43","v":0},{"$f":"General!C44","v":0},{"$f":"General!I44","v":0},{"$f":"General!C45","v":0},{"$f":"General!I45","v":0},{"$f":"General!G46","v":0},{"$f":"General!C47","v":0},null,{"$f":"COUNTIF(N$56:N81,N81)","v":26},3,"Resumen","C",26,"",6,null,null,null,null,null,null,null,null,1,"Tipo Proyecto","POS","Fortalecimiento Posgrados","POS",null,null,null,null,null,null,null,null,null,null,null,null,null,null,null,null,null,null,null,null,null,"COL0067504","Los Estilos de enseńanza y Aprendizaje",{"$f":"COUNTIF(BA$4:BA81,BA81)","v":3},{"$f":"ROW()","v":81},1]
[null,null,null,null,null,null,null,null,null,null,null,{"$f":"COUNTIF(N$56:N82,N82)","v":27},3,"Resumen","C",27,"",6,null,null,null,null,null,null,null,null,2,"Tipo Proyecto",null,null,null,null,null,null,null,null,null,null,null,null,null,null,null,null,null,null,null,null,null,null,null,null,"COL0067504","Mercadeo Cuántico",{"$f":"COUNTIF(BA$4:BA82,BA82)","v":4},{"$f":"ROW()","v":82},1]
[null,null,null,null,null,null,null,null,null,null,null,{"$f":"COUNTIF(N$56:N83,N83)","v":28},3,"Resumen","C",28,"",6,null,null,null,null,null,null,null,null,1,"Función","Investigador Principal","Investigador Principal o lider del proyecto","IP",null,null,null,null,null,null,null,null,null,null,null,null,null,null,null,null,null,null,null,null,null,"COL0067504","Mineria Web",{"$f":"COUNTIF(BA$4:BA83,BA83)","v":5},{"$f":"ROW()","v":83},1]
[null,null,null,null,null,null,null,null,null,null,null,{"$f":"COUNTIF(N$56:N84,N84)","v":29},3,"Resumen","C",29,"",6,null,null,null,null,null,null,null,null,2,"Función","Co_Tutores","Investigador que apoya la dirección de grado","CO",null,null,null,null,null,null,null,null,null,null,null,null,null,null,null,null,null,null,null,null,null,"COL0067504","Salud Pública, Bioética e Ingeniería",{"$f":"COUNTIF(BA$4:BA84,BA84)","v":6},{"$f":"ROW()","v":84},1]
[null,null,null,null,null,null,null,null,null,null,null,{"$f":"COUNTIF(N$56:N85,N85)","v":1},4,"Estado_del_arte",{"$f":"O84","v":"C"},{"$f":"P84+1","v":30},"",-23,null,null,null,null,null,null,null,null,3,"Función","Auxiliar de Investigación.","Asistente Graduado para proyectos de alto impacto","AG",null,null,null,null,null,null,null,null,null,null,null,null,null,null,null,null,null,null,null,null,null,"COL0101099","Educación y Sociedad",{"$f":"COUNTIF(BA$4:BA85,BA85)","v":1},{"$f":"ROW()","v":85},1]
[null,null,null,null,null,null,null,null,null,null,null,{"$f":"COUNTIF(N$56:N86,N86)","v":2},4,"Estado_del_arte",{"$f":"O85","v":"C"},{"$f":"P85+1","v":31},"",-23,null,null,null,null,"Asistente OPS","Asistente de Investigacion contratado OPS","OPS",null,4,"Función",null,null,null,null,null,null,null,null,null,null,null,null,null,null,null,null,null,null,null,null,null,null,null,null,"COL0101099","Filosofía política y responsabilidad social",{"$f":"COUNTIF(BA$4:BA86,BA86)","v":2},{"$f":"ROW()","v":86},1]
[null,null,null,null,null,null,null,null,null,null,null,{"$f":"COUNTIF(N$56:N87,N87)","v":3},4,"Estado_del_arte","C",32,"",-23,null,null,null,null,"Joven Investigador","Joven investigador UMNG o Colciencias","JV",null,5,"Función",null,null,null,null,null,null,null,null,null,null,null,null,null,null,null,null,null,null,null,null,null,null,null,null,"COL0101099","Humanidades, cultura y universidad",{"$f":"COUNTIF(BA$4:BA87,BA87)","v":3},{"$f":"ROW()","v":87},1]
[null,null,null,null,null,null,null,null,null,null,null,{"$f":"COUNTIF(N$56:N88,N88)","v":4},4,"Estado_del_arte","C",33,"",-23,null,null,null,null,"Auxiliar de Investigación.","Estudiante apoya el proyecto","EST",null,6,"Función",null,null,null,null,null,null,null,null,null,null,null,null,null,null,null,null,null,null,null,null,null,null,null,null,"COL0101099","Liderazgo y gestión en educación.",{"$f":"COUNTIF(BA$4:BA88,BA88)","v":4},{"$f":"ROW()","v":88},1]
[null,null,null,null,null,null,null,null,null,null,null,{"$f":"COUNTIF(N$56:N89,N89)","v":5},4,"Estado_del_arte","C",34,"",-23,null,null,null,null,"Asesor","Asesor externo no vinculado a ninguna entidad","AR",null,7,"Función",null,null,null,null,null,null,null,null,null,null,null,null,null,null,null,null,null,null,null,null,null,null,null,null,"COL0138698","Bioetica",{"$f":"COUNTIF(BA$4:BA89,BA89)","v":1},{"$f":"ROW()","v":89},1]
[null,null,null,null,null,null,null,null,null,null,null,{"$f":"COUNTIF(N$56:N90,N90)","v":6},4,"Estado_del_arte","C",35,"",-23,null,null,null,null,null,null,null,null,1,"Vinculo","Doc. Carrera TC","Docente de Carrera Tiempo Completo","DTC",null,null,null,null,null,null,null,null,null,null,null,null,null,null,null,null,null,null,null,null,null,"COL0138698","Cerebrovascular",{"$f":"COUNTIF(BA$4:BA90,BA90)","v":2},{"$f":"ROW()","v":90},1]
[null,null,null,null,null,null,null,null,null,null,null,{"$f":"COUNTIF(N$56:N91,N91)","v":7},4,"Estado_del_arte","C",36,"",-23,null,null,null,null,null,null,null,null,2,"Vinculo","Doc. Carrera MT","Docente de Carrera Medio Tiempo","DMT",null,null,null,null,null,null,null,null,null,null,null,null,null,null,null,null,null,null,null,null,null,"COL0138698","Demencias",{"$f":"COUNTIF(BA$4:BA91,BA91)","v":3},{"$f":"ROW()","v":91},1]
[null,null,null,null,null,null,null,null,null,null,null,{"$f":"COUNTIF(N$56:N92,N92)","v":8},4,"Estado_del_arte","C",37,"",-23,null,null,null,null,null,null,null,null,3,"Vinculo","Doc. Ocasional","Docente de Ocasional","OCA",null,null,null,null,null,null,null,null,null,null,null,null,null,null,null,null,null,null,null,null,null,"COL0138698","Distonias",{"$f":"COUNTIF(BA$4:BA92,BA92)","v":4},{"$f":"ROW()","v":92},1]
[null,null,null,null,null,null,null,null,null,null,null,{"$f":"COUNTIF(N$56:N93,N93)","v":9},4,"Estado_del_arte","C",38,"",-23,null,null,null,null,null,null,null,null,4,"Vinculo","OPS - Prestación Servicios","Asistente de Investigacion contratado OPS","OPS",null,null,null,null,null,null,null,null,null,null,null,null,null,null,null,null,null,null,null,null,null,"COL0138698","Enfermedades huerfanas",{"$f":"COUNTIF(BA$4:BA93,BA93)","v":5},{"$f":"ROW()","v":93},1]
[null,null,null,null,null,null,null,null,null,null,null,{"$f":"COUNTIF(N$56:N94,N94)","v":10},4,"Estado_del_arte",{"$f":"O93","v":"C"},{"$f":"P93+1","v":39},"",-23,null,null,null,null,null,null,null,null,5,"Vinculo","Estudiante","Estudiante activo de pregrado o postgrado","EST",null,null,null,null,null,null,null,null,null,null,"Grupos que perdieron el aval",null,null,null,null,null,null,null,null,null,null,"COL0138698","Epilepsia",{"$f":"COUNTIF(BA$4:BA94,BA94)","v":6},{"$f":"ROW()","v":94},1]
[null,null,null,null,null,null,null,null,null,null,null,{"$f":"COUNTIF(N$56:N95,N95)","v":11},4,"Estado_del_arte","C",40,"",-23,null,null,null,null,null,null,null,null,6,"Vinculo","Externo a la UMNG","Docentes Investigadores externos sin vinculo lavoral al U.","EXT",null,null,null,null,null,null,null,null,null,null,null,null,null,null,null,null,null,null,null,null,null,"COL0138698","Esclerosis múltiple",{"$f":"COUNTIF(BA$4:BA95,BA95)","v":7},{"$f":"ROW()","v":95},1]
[null,null,null,null,null,null,null,null,null,null,null,{"$f":"COUNTIF(N$56:N96,N96)","v":12},4,"Estado_del_arte","C",41,"",-23,null,null,null,null,null,null,null,null,1,"NBC",11,"Programas y certificaciones básicas",11,null,null,null,null,null,null,null,null,null,null,null,null,null,null,null,null,null,null,null,null,null,"COL0138698","Movimientos anormales",{"$f":"COUNTIF(BA$4:BA96,BA96)","v":8},{"$f":"ROW()","v":96},1]
[null,null,null,null,null,null,null,null,null,null,null,{"$f":"COUNTIF(N$56:N97,N97)","v":13},4,"Estado_del_arte","C",42,"",-23,null,null,null,null,null,null,null,null,2,"NBC",21,"Alfabetización y aritmética elemental",21,null,null,null,null,null,null,null,null,null,null,null,null,null,null,null,null,null,null,null,null,null,"COL0138698","Parálisis cerebral",{"$f":"COUNTIF(BA$4:BA97,BA97)","v":9},{"$f":"ROW()","v":97},1]
[null,null,null,null,null,null,null,null,null,null,null,{"$f":"COUNTIF(N$56:N98,N98)","v":14},4,"Estado_del_arte","C",43,"",-23,null,null,null,null,null,null,null,null,3,"NBC",31,"Competencias personales y desarrollo",31,null,null,null,null,null,55,65,{"$f":"COUNTIF($AN$4:$AN$806,AL98)","v":2},65,"MED","Insight","COL0067371","C","http://scienti.colciencias.gov.co:8085/gruplac/jsp/visualiza/visualizagr.jsp?nro=00000000006698",{"$f":"$AT$2&AV98&\":\"&$AT$2&AW98","v":"BB231:BB239"},{"$f":"ROW()","v":98},{"$f":"MINA(IF(AQ98=$BA$4:$BA$401,$BD$4:$BD$401))","v":231},{"$f":"MAXA(IF(AQ98=$BA$4:$BA$401,$BD$4:$BD$401))","v":239},{"$f":"AO98","v":"MED"},null,null,"COL0138698","Retardo mental",{"$f":"COUNTIF(BA$4:BA98,BA98)","v":10},{"$f":"ROW()","v":98},1]
[null,null,null,null,null,null,null,null,null,null,null,{"$f":"COUNTIF(N$56:N99,N99)","v":15},4,"Estado_del_arte","C",44,"",-23,null,null,null,null,null,null,null,null,4,"NBC",111,"Ciencias de la educación",111,null,null,null,null,null,30,7,{"$f":"COUNTIF($AN$4:$AN$806,AL99)","v":2},7,"CIAS","Estadística, Control y Optimización","COL0136423","B","http://scienti.colciencias.gov.co:8085/gruplac/jsp/visualiza/visualizagr.jsp?nro=00000000013845",{"$f":"$AT$2&AV99&\":\"&$AT$2&AW99","v":"BB125:BB129"},{"$f":"ROW()","v":99},{"$f":"MINA(IF(AQ99=$BA$4:$BA$401,$BD$4:$BD$401))","v":125},{"$f":"MAXA(IF(AQ99=$BA$4:$BA$401,$BD$4:$BD$401))","v":129},{"$f":"AO99","v":"CIAS"},null,null,"COL0138698","Salud mental",{"$f":"COUNTIF(BA$4:BA99,BA99)","v":11},{"$f":"ROW()","v":99},1]
[null,null,null,null,null,null,null,null,null,null,null,{"$f":"COUNTIF(N$56:N100,N100)","v":16},4,"Estado_del_arte","C",45,"",-23,null,null,null,null,null,null,null,null,5,"NBC",112,"Formación para docentes de educación pre-primaría",112,null,null,null,null,null,26,5,{"$f":"COUNTIF($AN$4:$AN$806,AL100)","v":2},5,"CIAS","Grupo de Micología y Fitopatologia ","COL0013719","A1","http://scienti.colciencias.gov.co:8085/gruplac/jsp/visualiza/visualizagr.jsp?nro=00000000001127",{"$f":"$AT$2&AV100&\":\"&$AT$2&AW100","v":"BB107:BB111"},{"$f":"ROW()","v":100},{"$f":"MINA(IF(AQ100=$BA$4:$BA$401,$BD$4:$BD$401))","v":107},{"$f":"MAXA(IF(AQ100=$BA$4:$BA$401,$BD$4:$BD$401))","v":111},{"$f":"AO100","v":"CIAS"},null,null,"COL0138698","Sueño",{"$f":"COUNTIF(BA$4:BA100,BA100)","v":12},{"$f":"ROW()","v":100},1]
[null,null,null,null,null,null,null,null,null,null,null,{"$f":"COUNTIF(N$56:N101,N101)","v":17},4,"Estado_del_arte","C",46,"",-23,null,null,null,null,null,null,null,null,6,"NBC",113,"Formación para docentes sin asignatura de especialización",113,null,null,null,null,null,63,68,{"$f":"COUNTIF($AN$4:$AN$73,AL101)","v":1},"63n","MED","Grupo de Investigación en Farmacología, Toxicología y Terapéutica-UMNG","COL0114201","NA","http://scienti.colciencias.gov.co:8085/gruplac/jsp/visualiza/visualizagr.jsp?nro=00000000011524",{"$f":"$AT$2&AV101&\":\"&$AT$2&AW101","v":"BB0:BB0"},{"$f":"ROW()","v":101},{"$f":"MINA(IF(AQ101=$BA$4:$BA$401,$BD$4:$BD$401))","v":0},{"$f":"MAXA(IF(AQ101=$BA$4:$BA$401,$BD$4:$BD$401))","v":0},"MED",null,null,"COL0138698","Trastornos del neurodesarrollo",{"$f":"COUNTIF(BA$4:BA101,BA101)","v":13},{"$f":"ROW()","v":101},1]
[null,null,null,null,null,null,null,null,null,null,null,{"$f":"COUNTIF(N$56:N102,N102)","v":18},4,"Estado_del_arte","C",47,"",-23,null,null,null,null,null,null,null,null,7,"NBC",114,"Formación para docentes con asignatura de especialización",114,null,null,null,null,null,65,69,{"$f":"COUNTIF($AN$4:$AN$73,AL102)","v":1},"65n","MED","MEDICINA REGENERATIVA HMC UMNG","COL0125107","NA","http://scienti.colciencias.gov.co:8085/gruplac/jsp/visualiza/visualizagr.jsp?nro=00000000012646",{"$f":"$AT$2&AV102&\":\"&$AT$2&AW102","v":"BB0:BB0"},{"$f":"ROW()","v":102},{"$f":"MINA(IF(AQ102=$BA$4:$BA$401,$BD$4:$BD$401))","v":0},{"$f":"MAXA(IF(AQ102=$BA$4:$BA$401,$BD$4:$BD$401))","v":0},"MED",null,null,"COL0116439","Cirugía Dermatologica",{"$f":"COUNTIF(BA$4:BA102,BA102)","v":1},{"$f":"ROW()","v":102},1]
[null,null,null,null,null,null,null,null,null,null,null,{"$f":"COUNTIF(N$56:N103,N103)","v":19},4,"Estado_del_arte","C",48,"",-23,null,null,null,null,null,null,null,null,8,"NBC",211,"Técnicas audiovisuales y producción para medios de comunicación",211,null,null,null,null,null,null,null,null,null,null,null,null,null,null,null,null,null,null,null,null,null,"COL0116439","Dermatologia Pediatrica",{"$f":"COUNTIF(BA$4:BA103,BA103)","v":2},{"$f":"ROW()","v":103},1]
[null,null,null,null,null,null,null,null,null,null,null,{"$f":"COUNTIF(N$56:N104,N104)","v":20},4,"Estado_del_arte","C",49,"",-23,null,null,null,null,null,null,null,null,9,"NBC",212,"Diseño industrial, de modas e interiores",212,null,null,null,null,null,null,null,null,null,null,null,null,null,null,null,null,null,null,null,null,null,"COL0116439","Fotobiologia y Fototerapia",{"$f":"COUNTIF(BA$4:BA104,BA104)","v":3},{"$f":"ROW()","v":104},1]
[null,null,null,null,null,null,null,null,null,null,null,{"$f":"COUNTIF(N$56:N105,N105)","v":21},4,"Estado_del_arte","C",50,"",-23,null,null,null,null,null,null,null,null,10,"NBC",213,"Bellas artes",213,null,null,null,null,null,null,null,null,null,null,null,null,null,null,null,null,null,null,null,null,null,"COL0116439","Leishmaniasis",{"$f":"COUNTIF(BA$4:BA105,BA105)","v":4},{"$f":"ROW()","v":105},1]
[null,null,null,null,null,null,null,null,null,null,null,{"$f":"COUNTIF(N$56:N106,N106)","v":22},4,"Estado_del_arte","C",51,"",-23,null,null,null,null,null,null,null,null,11,"NBC",214,"Artesanías",214,null,null,null,null,null,null,null,null,null,null,null,null,null,null,null,null,null,null,null,null,null,"COL0116439","Psoriasis",{"$f":"COUNTIF(BA$4:BA106,BA106)","v":5},{"$f":"ROW()","v":106},1]
[null,null,null,null,null,null,null,null,null,null,null,{"$f":"COUNTIF(N$56:N107,N107)","v":23},4,"Estado_del_arte","C",52,"",-23,null,null,null,null,null,null,null,null,12,"NBC",215,"Música y artes escénicas",215,null,null,null,null,null,null,null,null,null,null,null,null,null,null,null,null,null,null,null,null,null,"COL0013719","Biología y Epidemiología de hongos patógenos humanos.",{"$f":"COUNTIF(BA$4:BA107,BA107)","v":1},{"$f":"ROW()","v":107},0]
[null,null,null,null,null,null,null,null,null,null,null,{"$f":"COUNTIF(N$56:N108,N108)","v":24},4,"Estado_del_arte","C",53,"",-23,null,null,null,null,null,null,null,null,13,"NBC",221,"Religión y Teología",221,null,null,null,null,null,null,null,null,null,null,null,null,null,null,null,null,null,null,null,null,null,"COL0013719","Diversidad, Ecología y Bioprospección",{"$f":"COUNTIF(BA$4:BA108,BA108)","v":2},{"$f":"ROW()","v":108},0]
[null,null,null,null,null,null,null,null,null,null,null,{"$f":"COUNTIF(N$56:N109,N109)","v":25},4,"Estado_del_arte","C",54,"",-23,null,null,null,null,null,null,null,null,14,"NBC",222,"Historia y arqueología",222,null,null,null,null,null,null,null,null,null,null,null,null,null,null,null,null,null,null,null,null,null,"COL0013719","Fitopatología",{"$f":"COUNTIF(BA$4:BA109,BA109)","v":3},{"$f":"ROW()","v":109},0]
[null,null,null,null,null,null,null,null,null,null,null,{"$f":"COUNTIF(N$56:N110,N110)","v":26},4,"Estado_del_arte","C",55,"",-23,null,null,null,null,null,null,null,null,15,"NBC",223,"Filosofía y ética",223,null,null,null,null,null,null,null,null,null,null,null,null,null,null,null,null,null,null,null,null,null,"COL0013719","Genómica y bioinformática",{"$f":"COUNTIF(BA$4:BA110,BA110)","v":4},{"$f":"ROW()","v":110},0]
[null,null,null,null,null,null,null,null,null,null,null,{"$f":"COUNTIF(N$56:N111,N111)","v":27},4,"Estado_del_arte","C",56,"",-23,null,null,null,null,null,null,null,null,16,"NBC",231,"Adquisición del lenguaje",231,null,null,null,null,null,null,null,null,null,null,null,null,null,null,null,null,null,null,null,null,null,"COL0013719","Susceptibilidad a Antifungícos",{"$f":"COUNTIF(BA$4:BA111,BA111)","v":5},{"$f":"ROW()","v":111},0]
[null,null,null,null,null,null,null,null,null,null,null,{"$f":"COUNTIF(N$56:N112,N112)","v":28},4,"Estado_del_arte","C",57,"",-23,null,null,null,null,null,null,null,null,17,"NBC",232,"Literatura y lingüística",232,null,null,null,null,null,null,null,null,null,null,null,null,null,null,null,null,null,null,null,null,null,"COL0049999","Calidad y Gestión en la Educación",{"$f":"COUNTIF(BA$4:BA112,BA112)","v":1},{"$f":"ROW()","v":112},1]
[null,null,null,null,null,null,null,null,null,null,null,{"$f":"COUNTIF(N$56:N113,N113)","v":29},4,"Estado_del_arte","C",58,"",-23,null,null,null,null,null,null,null,null,18,"NBC",311,"Economía",311,null,null,null,null,null,null,null,null,null,null,null,null,null,null,null,null,null,null,null,null,null,"COL0049999","Gestión y Proyectos",{"$f":"COUNTIF(BA$4:BA113,BA113)","v":2},{"$f":"ROW()","v":113},1]
[null,null,null,null,null,null,null,null,null,null,null,{"$f":"COUNTIF(N$56:N114,N114)","v":30},4,"Estado_del_arte","C",59,"",-23,null,null,null,null,null,null,null,null,19,"NBC",312,"Ciencias políticas y educación cívica",312,null,null,null,null,null,null,null,null,null,null,null,null,null,null,null,null,null,null,null,null,null,"COL0049999","Innovación",{"$f":"COUNTIF(BA$4:BA114,BA114)","v":3},{"$f":"ROW()","v":114},1]
[null,null,null,null,null,null,null,null,null,null,null,{"$f":"COUNTIF(N$56:N115,N115)","v":31},4,"Estado_del_arte","C",60,"",-23,null,null,null,null,null,null,null,null,20,"NBC",313,"Psicología",313,null,null,null,null,null,null,null,null,null,null,null,null,null,null,null,null,null,null,null,null,null,"COL0049999","Productividad",{"$f":"COUNTIF(BA$4:BA115,BA115)","v":4},{"$f":"ROW()","v":115},1]
[null,null,null,null,null,null,null,null,null,null,null,{"$f":"COUNTIF(N$56:N116,N116)","v":32},4,"Estado_del_arte","C",61,"",-23,null,null,null,null,null,null,null,null,21,"NBC",314,"Sociología y estudios culturales",314,null,null,null,null,null,null,null,null,null,null,null,null,null,null,null,null,null,null,null,null,null,"COL0049999","Sostenibilidad y Medio Ambiente",{"$f":"COUNTIF(BA$4:BA116,BA116)","v":5},{"$f":"ROW()","v":116},1]
[null,null,null,null,null,null,null,null,null,null,null,{"$f":"COUNTIF(N$56:N117,N117)","v":1},6,"Etica",{"$f":"O116","v":"C"},{"$f":"P116+1","v":62},"Proyecto de investigación en CTeI que involucra seres humanos",-55,null,null,null,null,null,null,null,null,22,"NBC",321,"Periodismo y reportajes",321,null,null,null,null,null,null,null,null,null,null,null,null,null,null,null,null,null,null,null,null,null,"COL0049999","Tecnología",{"$f":"COUNTIF(BA$4:BA117,BA117)","v":6},{"$f":"ROW()","v":117},1]
[null,null,null,null,null,null,null,null,null,null,null,{"$f":"COUNTIF(N$56:N118,N118)","v":2},6,"Etica",{"$f":"O117","v":"C"},{"$f":"P117+1","v":63},"¿utiliza información exclusiva o reservada por parte de terceros y prevé su forma de acceso?",-55,null,null,null,null,null,null,null,null,23,"NBC",322,"Bibliotecología, información y archivología",322,null,null,null,null,null,null,null,null,null,null,null,null,null,null,null,null,null,null,null,null,null,"COL0086179","Búsqueda de marcadores genéticos y estudio de genes ligados a la resistencia a Fusarium en clavel.",{"$f":"COUNTIF(BA$4:BA118,BA118)","v":1},{"$f":"ROW()","v":118},1]
[null,null,null,null,null,null,null,null,null,null,null,{"$f":"COUNTIF(N$56:N119,N119)","v":3},6,"Etica","C",64,"Detalles:",-55,null,null,null,null,null,null,null,null,24,"NBC",411,"Contabilidad e impuestos",411,null,null,null,null,null,null,null,null,null,null,null,null,null,null,null,null,null,null,null,null,null,"COL0086179","Estudio de la biología del mildeo velloso de la Rosa comercial.",{"$f":"COUNTIF(BA$4:BA119,BA119)","v":2},{"$f":"ROW()","v":119},1]
[null,null,null,null,null,null,null,null,null,null,null,{"$f":"COUNTIF(N$56:N120,N120)","v":4},6,"Etica","C",65,"¿utiliza información exclusiva o reservada por parte de terceros y prevé su forma de acceso?",-55,null,null,null,null,null,null,null,null,25,"NBC",412,"Gestión financiera, administración bancaria y seguros",412,null,null,null,null,null,null,null,null,null,null,null,null,null,null,null,null,null,null,null,null,null,"COL0086179","Producción de nuevas variedades de clavel resistentes a parasitos vasculares.",{"$f":"COUNTIF(BA$4:BA120,BA120)","v":3},{"$f":"ROW()","v":120},1]
[null,null,null,null,null,null,null,null,null,null,null,{"$f":"COUNTIF(N$56:N121,N121)","v":5},6,{"$f":"NbHoja(M121)","v":"Etica"},"C",66,{"$f":"CLEAN(TRIM(INDIRECT($N121&\"!\"&$O121&(P121+R121),1)))","v":"Detalles:"},-55,null,null,null,null,null,null,null,null,26,"NBC",413,"Gestión y administración",413,null,null,null,null,null,null,null,null,null,null,null,null,null,null,null,null,null,null,null,null,null,"COL0116636","Desarrollo de software y hardware embebido",{"$f":"COUNTIF(BA$4:BA121,BA121)","v":1},{"$f":"ROW()","v":121},1]
[null,null,null,null,null,null,null,null,null,null,null,{"$f":"COUNTIF(N$56:N122,N122)","v":6},6,"Etica","C",67,"¿Utiliza datos personales?",-55,null,null,null,null,null,null,null,null,27,"NBC",414,"Mercadotecnia y publicidad",414,null,null,null,null,null,null,null,null,null,null,null,null,null,null,null,null,null,null,null,null,null,"COL0116636","Procesamiento digital de seńales e imágenes",{"$f":"COUNTIF(BA$4:BA122,BA122)","v":2},{"$f":"ROW()","v":122},1]
[null,null,null,null,null,null,null,null,null,null,null,{"$f":"COUNTIF(N$56:N123,N123)","v":7},6,"Etica","C",68,"Detalles:",-55,null,null,null,null,null,null,null,null,28,"NBC",415,"Secretariado y trabajo de oficina",415,null,null,null,null,null,null,null,null,null,null,null,null,null,null,null,null,null,null,null,null,null,"COL0116636","Producción sostenible",{"$f":"COUNTIF(BA$4:BA123,BA123)","v":3},{"$f":"ROW()","v":123},1]
[null,null,null,null,null,null,null,null,null,null,null,{"$f":"COUNTIF(N$56:N124,N124)","v":8},6,"Etica","C",69,"¿utiliza información confidencial?",-55,null,null,null,null,null,null,null,null,29,"NBC",416,"Ventas al por mayor y al por menor",416,null,null,null,null,null,null,null,null,null,null,null,null,null,null,null,null,null,null,null,null,null,"COL0116636","Robótica",{"$f":"COUNTIF(BA$4:BA124,BA124)","v":4},{"$f":"ROW()","v":124},1]
[null,null,null,null,null,null,null,null,null,null,null,{"$f":"COUNTIF(N$56:N125,N125)","v":9},6,"Etica","C",70,"Detalles:",-55,null,null,null,null,null,null,null,null,30,"NBC",417,"Competencias laborales",417,null,null,null,null,null,null,null,null,null,null,null,null,null,null,null,null,null,null,null,null,null,"COL0136423","Control óptimo estocástico",{"$f":"COUNTIF(BA$4:BA125,BA125)","v":1},{"$f":"ROW()","v":125},0]
[null,null,null,null,null,null,null,null,null,null,null,{"$f":"COUNTIF(N$56:N126,N126)","v":10},6,"Etica","C",71,"¿Requiere Consentimiento informado?",-55,null,null,null,null,null,null,null,null,31,"NBC",421,"Derecho",421,null,null,null,null,null,null,null,null,null,null,null,null,null,null,null,null,null,null,null,null,null,"COL0136423","Estadística Multivariada paramétrica y no paramétrica.",{"$f":"COUNTIF(BA$4:BA126,BA126)","v":2},{"$f":"ROW()","v":126},0]
[null,null,null,null,null,null,null,null,null,null,null,{"$f":"COUNTIF(N$56:N127,N127)","v":11},6,"Etica","C",72,"Detalles:",-55,null,null,null,null,null,null,null,null,32,"NBC",511,"Biología",511,null,null,null,null,null,null,null,null,null,null,null,null,null,null,null,null,null,null,null,null,null,"COL0136423","Métodos estadísticos basados en grafos",{"$f":"COUNTIF(BA$4:BA127,BA127)","v":3},{"$f":"ROW()","v":127},0]
[null,null,null,null,null,null,null,null,null,null,null,{"$f":"COUNTIF(N$56:N128,N128)","v":12},6,"Etica",{"$f":"O127","v":"C"},{"$f":"P127+1","v":73},"¿indica un modelo de recopilación y conservación de información?",-55,null,null,null,null,null,null,null,null,33,"NBC",512,"Bioquímica",512,null,null,null,null,null,null,null,null,null,null,null,null,null,null,null,null,null,null,null,null,null,"COL0136423","Optimizacion Semidefinida",{"$f":"COUNTIF(BA$4:BA128,BA128)","v":4},{"$f":"ROW()","v":128},0]
[null,null,null,null,null,null,null,null,null,null,null,{"$f":"COUNTIF(N$56:N129,N129)","v":13},6,"Etica","C",74,"Detalles:",-55,null,null,null,null,null,null,null,null,34,"NBC",521,"Ciencias del medio ambiente",521,null,null,null,null,null,null,null,null,null,null,null,null,null,null,null,null,null,null,null,null,null,"COL0136423","Optimización Numérica. Máquinas de Vectores de Soportes.",{"$f":"COUNTIF(BA$4:BA129,BA129)","v":5},{"$f":"ROW()","v":129},0]
[null,null,null,null,null,null,null,null,null,null,null,{"$f":"COUNTIF(N$56:N130,N130)","v":14},6,"Etica","C",75,"¿Es una investigación con comunidades vulnerables (indígenas, afrodescendientes, menores o personal subordinado, entre otros)?",-55,null,null,null,null,null,null,null,null,35,"NBC",522,"Medio ambiente natural y vida silvestre",522,null,null,null,null,null,null,null,null,null,null,null,null,null,null,null,null,null,null,null,null,null,"COL0036025","Biomecatronica",{"$f":"COUNTIF(BA$4:BA130,BA130)","v":1},{"$f":"ROW()","v":130},1]
[null,null,null,null,null,null,null,null,null,null,null,{"$f":"COUNTIF(N$56:N131,N131)","v":15},6,"Etica","C",76,"Detalles:",-55,null,null,null,null,null,null,null,null,36,"NBC",531,"Química",531,null,null,null,null,null,null,null,null,null,null,null,null,null,null,null,null,null,null,null,null,null,"COL0036025","Optimización y Control de sistemas dinámicos",{"$f":"COUNTIF(BA$4:BA131,BA131)","v":2},{"$f":"ROW()","v":131},1]
[null,null,null,null,null,null,null,null,null,null,null,{"$f":"COUNTIF(N$56:N132,N132)","v":16},6,"Etica","C",77,"¿Se evidencia conocimiento previo sobre aspectos políticos, económicos sociales y culturales de las comunidades indígenas?",-55,null,null,null,null,null,null,null,null,37,"NBC",532,"Ciencias de la tierra",532,null,null,null,null,null,null,null,null,null,null,null,null,null,null,null,null,null,null,null,null,null,"COL0036025","Robótica híbrida",{"$f":"COUNTIF(BA$4:BA132,BA132)","v":3},{"$f":"ROW()","v":132},{"$f":"COUNTIF($AQ$3:$AQ$80,BA132)","v":1}]
[null,null,null,null,null,null,null,null,null,null,null,{"$f":"COUNTIF(N$56:N133,N133)","v":17},6,"Etica","C",78,"Detalles:",-55,null,null,null,null,null,null,null,null,38,"NBC",533,"Física",533,null,null,null,null,null,null,null,null,null,null,null,null,null,null,null,null,null,null,null,null,null,"COL0036025","Simulacion y Realidad Virtual",{"$f":"COUNTIF(BA$4:BA133,BA133)","v":4},{"$f":"ROW()","v":133},1]
[null,null,null,null,null,null,null,null,null,null,null,{"$f":"COUNTIF(N$56:N134,N134)","v":18},6,"Etica","C",79,"¿Realiza intervención a través cuestionarios, medicamentos, rutinas, modificación de actividades o estilo de vida?",-55,null,null,null,null,null,null,null,null,39,"NBC",541,"Matemáticas",541,null,null,null,null,null,null,null,null,null,null,null,null,null,null,null,null,null,null,null,null,null,"COL0038084","Acuaponía, recirculación e hidroponí",{"$f":"COUNTIF(BA$4:BA134,BA134)","v":1},{"$f":"ROW()","v":134},1]
[null,null,null,null,null,null,null,null,null,null,null,{"$f":"COUNTIF(N$56:N135,N135)","v":19},6,"Etica","C",80,"Detalles:",-55,null,null,null,null,null,null,null,null,40,"NBC",542,"Estadística",542,null,null,null,null,null,null,null,null,null,null,null,null,null,null,null,null,null,null,null,null,null,"COL0038084","Biología evolutiva de animales",{"$f":"COUNTIF(BA$4:BA135,BA135)","v":2},{"$f":"ROW()","v":135},1]
[null,null,null,null,null,null,null,null,null,null,null,{"$f":"COUNTIF(N$56:N136,N136)","v":20},6,"Etica","C",81,"¿incluye modelos de consentimiento informado, uso de datos personales u otro?",-55,null,null,null,null,null,null,null,null,41,"NBC",611,"Uso de computadores",611,null,null,null,null,null,null,null,null,null,null,null,null,null,null,null,null,null,null,null,null,null,"COL0038084","Ecotoxicología",{"$f":"COUNTIF(BA$4:BA136,BA136)","v":3},{"$f":"ROW()","v":136},1]
[null,null,null,null,null,null,null,null,null,null,null,{"$f":"COUNTIF(N$56:N137,N137)","v":21},6,"Etica","C",82,"Detalles:",-55,null,null,null,null,null,null,null,null,42,"NBC",612,"Diseño y administración de redes y bases de datos",612,null,null,null,null,null,null,null,null,null,null,null,null,null,null,null,null,null,null,null,null,null,"COL0038084","Energías alternas y recursos ambientales",{"$f":"COUNTIF(BA$4:BA137,BA137)","v":4},{"$f":"ROW()","v":137},1]
[null,null,null,null,null,null,null,null,null,null,null,{"$f":"COUNTIF(N$56:N138,N138)","v":22},6,"Etica","C",83,"Proyecto de investigación en CTeI involucra animales",-55,null,null,null,null,null,null,null,null,43,"NBC",613,"Desarrollo y análisis de software y aplicaciones",613,null,null,null,null,null,null,null,null,null,null,null,null,null,null,null,null,null,null,null,null,null,"COL0038084","modelamiento de especies bajo escenario de calentamiento global",{"$f":"COUNTIF(BA$4:BA138,BA138)","v":5},{"$f":"ROW()","v":138},1]
[null,null,null,null,null,null,null,null,null,null,null,{"$f":"COUNTIF(N$56:N139,N139)","v":23},6,"Etica","C",84,"¿Incluye un protocolo de investigación en animales?",-55,null,null,null,null,null,null,null,null,44,"NBC",711,"Ingeniería y procesos químicos",711,null,null,null,null,null,null,null,null,null,null,null,null,null,null,null,null,null,null,null,null,null,"COL0016999","Elementos de concreto y de mampostería",{"$f":"COUNTIF(BA$4:BA139,BA139)","v":1},{"$f":"ROW()","v":139},1]
[null,null,null,null,null,null,null,null,null,null,null,{"$f":"COUNTIF(N$56:N140,N140)","v":24},6,"Etica","C",85,"Detalles:",-55,null,null,null,null,null,null,null,null,45,"NBC",712,"Tecnología de protección del medio ambiente",712,null,null,null,null,null,null,null,null,null,null,null,null,null,null,null,null,null,null,null,null,null,"COL0016999","Instrumentación estructural y sensórica",{"$f":"COUNTIF(BA$4:BA140,BA140)","v":2},{"$f":"ROW()","v":140},1]
[null,null,null,null,null,null,null,null,null,null,null,{"$f":"COUNTIF(N$56:N141,N141)","v":25},6,"Etica","C",86,"¿Incluye un protocolo de manipulación de recursos biológicos?",-55,null,null,null,null,null,null,null,null,46,"NBC",713,"Electricidad y energía",713,null,null,null,null,null,null,null,null,null,null,null,null,null,null,null,null,null,null,null,null,null,"COL0016999","Materiales alternativos para construcción",{"$f":"COUNTIF(BA$4:BA141,BA141)","v":3},{"$f":"ROW()","v":141},1]
[null,null,null,null,null,null,null,null,null,null,null,{"$f":"COUNTIF(N$56:N142,N142)","v":26},6,"Etica","C",87,"Detalles:",-55,null,null,null,null,null,null,null,null,47,"NBC",714,"Electrónica y automatización",714,null,null,null,null,null,null,null,null,null,null,null,null,null,null,null,null,null,null,null,null,null,"COL0016999","Modelación Matemática",{"$f":"COUNTIF(BA$4:BA142,BA142)","v":4},{"$f":"ROW()","v":142},1]
[null,null,null,null,null,null,null,null,null,null,null,{"$f":"COUNTIF(N$56:N143,N143)","v":27},6,"Etica","C",88,"¿Incluye un protocolo de manejo y disposición de sustancias peligrosas, agentes infecciosos y desechos?",-55,null,null,null,null,null,null,null,null,48,"NBC",715,"Mecánica y profesiones afines a la metalistería",715,null,null,null,null,null,null,null,null,null,null,null,null,null,null,null,null,null,null,null,null,null,"COL0016999","Vulnerabilidad Sísmica",{"$f":"COUNTIF(BA$4:BA143,BA143)","v":5},{"$f":"ROW()","v":143},1]
[null,null,null,null,null,null,null,null,null,null,null,{"$f":"COUNTIF(N$56:N144,N144)","v":28},6,"Etica","C",89,"Detalles:",-55,null,null,null,null,null,null,null,null,49,"NBC",716,"Vehículos, barcos y aeronaves motorizadas",716,null,null,null,null,null,null,null,null,null,null,null,null,null,null,null,null,null,null,null,null,null,"COL0047566","Educación en ingeniería",{"$f":"COUNTIF(BA$4:BA144,BA144)","v":1},{"$f":"ROW()","v":144},1]
[null,null,null,null,null,null,null,null,null,null,null,{"$f":"COUNTIF(N$56:N145,N145)","v":29},6,"Etica","C",90,"¿hay caracterización de los animales de experimentación criterios de selección de la especie?",-55,null,null,null,null,null,null,null,null,50,"NBC",721,"Procesamiento de alimentos",721,null,null,null,null,null,null,null,null,null,null,null,null,null,null,null,null,null,null,null,null,null,"COL0047566","Evaluación económica y administrativa en ingeniería",{"$f":"COUNTIF(BA$4:BA145,BA145)","v":2},{"$f":"ROW()","v":145},1]
[null,null,null,null,null,null,null,null,null,null,null,{"$f":"COUNTIF(N$56:N146,N146)","v":30},6,"Etica","C",91,"Detalles:",-55,null,null,null,null,null,null,null,null,51,"NBC",722,"Materiales (vidrio, papel, plástico y madera)",722,null,null,null,null,null,null,null,null,null,null,null,null,null,null,null,null,null,null,null,null,null,"COL0047566","Geomatica",{"$f":"COUNTIF(BA$4:BA146,BA146)","v":3},{"$f":"ROW()","v":146},1]
[null,null,null,null,null,null,null,null,null,null,null,{"$f":"COUNTIF(N$56:N147,N147)","v":31},6,"Etica","C",92,"¿se prevé formación previa al equipo de laboratorio por parte del investigador sobre el cuidado permanente del animal y experimentación?",-55,null,null,null,null,null,null,null,null,52,"NBC",723,"Producción textiles (ropa, calzado y artículos de cuero)",723,null,null,null,null,null,null,null,null,null,null,null,null,null,null,null,null,null,null,null,null,null,"COL0047566","Gerencia de proyectos",{"$f":"COUNTIF(BA$4:BA147,BA147)","v":4},{"$f":"ROW()","v":147},1]
[null,null,null,null,null,null,null,null,null,null,null,{"$f":"COUNTIF(N$56:N148,N148)","v":32},6,"Etica","C",93,"Detalles:",-55,null,null,null,null,null,null,null,null,53,"NBC",724,"Minería y extracción",724,null,null,null,null,null,null,null,null,null,null,null,null,null,null,null,null,null,null,null,null,null,"COL0047566","Procesos estocásticos",{"$f":"COUNTIF(BA$4:BA148,BA148)","v":5},{"$f":"ROW()","v":148},1]
[null,null,null,null,null,null,null,null,null,null,null,{"$f":"COUNTIF(N$56:N149,N149)","v":33},6,"Etica","C",94,"¿se prevé declaración previa del origen y estado de los animales para experimentación?",-55,null,null,null,null,null,null,null,null,54,"NBC",731,"Arquitectura y urbanismo",731,null,null,null,null,null,null,null,null,null,null,null,null,null,null,null,null,null,null,null,null,null,"COL0047566","Productividad e impacto ambiental en proyectos de ingeniería civil (construcción sostenible)",{"$f":"COUNTIF(BA$4:BA149,BA149)","v":6},{"$f":"ROW()","v":149},1]
[null,null,null,null,null,null,null,null,null,null,null,{"$f":"COUNTIF(N$56:N150,N150)","v":34},6,"Etica","C",95,"Detalles:",-55,null,null,null,null,null,null,null,null,55,"NBC",732,"Construcción e ingeniería civil",732,null,null,null,null,null,null,null,null,null,null,null,null,null,null,null,null,null,null,null,null,null,"COL0050982","Expansión de Células Stem",{"$f":"COUNTIF(BA$4:BA150,BA150)","v":1},{"$f":"ROW()","v":150},1]
[null,null,null,null,null,null,null,null,null,null,null,{"$f":"COUNTIF(N$56:N151,N151)","v":1},12,"Impactos",{"$f":"O150","v":"C"},{"$f":"P150+1","v":96},"Describa en detalle el impacto a desarrollar en el proyecto",-89,null,null,null,null,null,null,null,null,56,"NBC",811,"Producción agrícola y ganadera",811,null,null,null,null,null,null,null,null,null,null,null,null,null,null,null,null,null,null,null,null,null,"COL0050982","Inmunoregulación",{"$f":"COUNTIF(BA$4:BA151,BA151)","v":2},{"$f":"ROW()","v":151},1]
[null,null,null,null,null,null,null,null,null,null,null,{"$f":"COUNTIF(N$56:N152,N152)","v":2},12,"Impactos",{"$f":"O151","v":"C"},{"$f":"P151+1","v":97},"Impacto principal",-89,null,null,null,null,null,null,null,null,57,"NBC",812,"Horticultura",812,null,null,null,null,null,null,null,null,null,null,null,null,null,null,null,null,null,null,null,null,null,"COL0050982","Investigación en Cáncer",{"$f":"COUNTIF(BA$4:BA152,BA152)","v":3},{"$f":"ROW()","v":152},1]
[null,null,null,null,null,null,null,null,null,null,null,{"$f":"COUNTIF(N$56:N153,N153)","v":3},12,"Impactos","C",98,"Alcance",-89,null,null,null,null,null,null,null,null,58,"NBC",821,"Silvicultura",821,null,null,null,null,null,null,null,null,null,null,null,null,null,null,null,null,null,null,null,null,null,"COL0050982","Mesénquima",{"$f":"COUNTIF(BA$4:BA153,BA153)","v":4},{"$f":"ROW()","v":153},1]
[null,null,null,null,null,null,null,null,null,null,null,{"$f":"COUNTIF(N$56:N154,N154)","v":4},12,"Impactos","C",99,"",-89,null,null,null,null,null,null,null,null,59,"NBC",831,"Pesca",831,null,null,null,null,null,null,null,null,null,null,null,null,null,null,null,null,null,null,null,null,null,"COL0129689","Cirugía Ortognática y Distracción Osteogénica",{"$f":"COUNTIF(BA$4:BA154,BA154)","v":1},{"$f":"ROW()","v":154},1]
[null,null,null,null,null,null,null,null,null,null,null,{"$f":"COUNTIF(N$56:N155,N155)","v":5},12,"Impactos","C",100,"",-89,null,null,null,null,null,null,null,null,60,"NBC",841,"Veterinaria",841,null,null,null,null,null,null,null,null,null,null,null,null,null,null,null,null,null,null,null,null,null,"COL0129689","Implantología y Cirugía Reconstructiva",{"$f":"COUNTIF(BA$4:BA155,BA155)","v":2},{"$f":"ROW()","v":155},1]
[null,null,null,null,null,null,null,null,null,null,null,{"$f":"COUNTIF(N$56:N156,N156)","v":6},12,"Impactos","C",101,"Nivel adaptación social del impacto del proyecto según los SRL (Societal Readiness Levels)",-89,null,null,null,null,null,null,null,null,61,"NBC",911,"Odontología",911,null,null,null,null,null,null,null,null,null,null,null,null,null,null,null,null,null,null,null,null,null,"COL0129689","Infecciones, Patología y Cirugía Dentoalveolar",{"$f":"COUNTIF(BA$4:BA156,BA156)","v":3},{"$f":"ROW()","v":156},1]
[null,null,null,null,null,null,null,null,null,null,null,{"$f":"COUNTIF(N$56:N157,N157)","v":7},12,"Impactos","C",102,"Estado actual del SRL",-89,null,null,null,null,null,null,null,null,62,"NBC",912,"Medicina",912,null,null,null,null,null,null,null,null,null,null,null,null,null,null,null,null,null,null,null,null,null,"COL0036749","Accesibilidad",{"$f":"COUNTIF(BA$4:BA157,BA157)","v":1},{"$f":"ROW()","v":157},1]
[null,null,null,null,null,null,null,null,null,null,null,{"$f":"COUNTIF(N$56:N158,N158)","v":8},12,"Impactos","C",103,"SRL Comprometido al finalizar el proyecto",-89,null,null,null,null,null,null,null,null,63,"NBC",913,"Enfermería y partería",913,null,null,null,null,null,null,null,null,null,null,null,null,null,null,null,null,null,null,null,null,null,"COL0036749","Multimedia Analítica",{"$f":"COUNTIF(BA$4:BA158,BA158)","v":2},{"$f":"ROW()","v":158},1]
[null,null,null,null,null,null,null,null,null,null,null,{"$f":"COUNTIF(N$56:N159,N159)","v":9},12,"Impactos","C",104,"",-89,null,null,null,null,null,null,null,null,64,"NBC",914,"Tecnología de diagnóstico y tratamiento médico",914,null,null,null,null,null,null,null,null,null,null,null,null,null,null,null,null,null,null,null,null,null,"COL0002896","Bioética Educación y Cultura",{"$f":"COUNTIF(BA$4:BA159,BA159)","v":1},{"$f":"ROW()","v":159},1]
[null,null,null,null,null,null,null,null,null,null,null,{"$f":"COUNTIF(N$56:N160,N160)","v":10},12,"Impactos","C",105,"Evolución del impacto alcanzado como resultado de proyectos anteriores",-89,null,null,null,null,null,null,null,null,65,"NBC",915,"Terapia y rehabilitación",915,null,null,null,null,null,null,null,null,null,null,null,null,null,null,null,null,null,null,null,null,null,"COL0002896","Educación y Sociedad",{"$f":"COUNTIF(BA$4:BA160,BA160)","v":2},{"$f":"ROW()","v":160},1]
[null,null,null,null,null,null,null,null,null,null,null,{"$f":"COUNTIF(N$56:N161,N161)","v":11},12,"Impactos","C",106,"",-89,null,null,null,null,null,null,null,null,66,"NBC",916,"Farmacia",916,null,null,null,null,null,null,null,null,null,null,null,null,null,null,null,null,null,null,null,null,null,"COL0002896","Educación y cultura",{"$f":"COUNTIF(BA$4:BA161,BA161)","v":3},{"$f":"ROW()","v":161},1]
[null,null,null,null,null,null,null,null,null,null,null,{"$f":"COUNTIF(N$56:N162,N162)","v":12},12,"Impactos","C",107,"Descripción de los Beneficiario(s) del impacto del proyecto",-89,null,null,null,null,null,null,null,null,67,"NBC",917,"Medicina y terapia tradicional y complementaria",917,null,null,null,null,null,null,null,null,null,null,null,null,null,null,null,null,null,null,null,null,null,"COL0066229","(EO) Estructuras Organizacionales",{"$f":"COUNTIF(BA$4:BA162,BA162)","v":1},{"$f":"ROW()","v":162},1]
[null,null,null,null,null,null,null,null,null,null,null,{"$f":"COUNTIF(N$56:N163,N163)","v":13},12,"Impactos","C",108,"",-89,null,null,null,null,null,null,null,null,68,"NBC",921,"Asistencia a adultos mayores y discapacitados",921,null,null,null,null,null,null,null,null,null,null,null,null,null,null,null,null,null,null,null,null,null,"COL0066229","(PI) Procesos de Integración",{"$f":"COUNTIF(BA$4:BA163,BA163)","v":2},{"$f":"ROW()","v":163},1]
[null,null,null,null,null,null,null,null,null,null,null,{"$f":"COUNTIF(N$56:N164,N164)","v":14},12,"Impactos","C",109,"Descripción del impacto esperado.",-89,null,null,null,null,null,null,null,null,69,"NBC",922,"Asistencia a la infancia y servicios para jóvenes",922,null,null,null,null,null,null,null,null,null,null,null,null,null,null,null,null,null,null,null,null,null,"COL0066229","(R) Regionalización",{"$f":"COUNTIF(BA$4:BA164,BA164)","v":3},{"$f":"ROW()","v":164},1]
[null,null,null,null,null,null,null,null,null,null,null,{"$f":"COUNTIF(N$56:N165,N165)","v":15},12,"Impactos","C",110,"",-89,null,null,null,null,null,null,null,null,70,"NBC",923,"Trabajo social y orientación",923,null,null,null,null,null,null,null,null,null,null,null,null,null,null,null,null,null,null,null,null,null,"COL0028767","Estudios Contemporáneos en Contabilidad y Finanzas",{"$f":"COUNTIF(BA$4:BA165,BA165)","v":1},{"$f":"ROW()","v":165},1]
[null,null,null,null,null,null,null,null,null,null,null,{"$f":"COUNTIF(N$56:N166,N166)","v":16},12,"Impactos","C",111,"",-89,null,null,null,null,null,null,null,null,71,"NBC",1011,"Servicios domésticos",1011,null,null,null,null,null,null,null,null,null,null,null,null,null,null,null,null,null,null,null,null,null,"COL0028767","Estudios Contemporáneos en Gestión y Organizaciones",{"$f":"COUNTIF(BA$4:BA166,BA166)","v":2},{"$f":"ROW()","v":166},1]
[null,null,null,null,null,null,null,null,null,null,null,{"$f":"COUNTIF(N$56:N167,N167)","v":17},12,"Impactos","C",112,"",-89,null,null,null,null,null,null,null,null,72,"NBC",1012,"Peluquería y tratamientos de belleza",1012,null,null,null,null,null,null,null,null,null,null,null,null,null,null,null,null,null,null,null,null,null,"COL0048492","Biología Molecular de organismos acuáticos, con énfasis en especies de interés comercial y amenazadas.",{"$f":"COUNTIF(BA$4:BA167,BA167)","v":1},{"$f":"ROW()","v":167},1]
[null,null,null,null,null,null,null,null,null,null,null,{"$f":"COUNTIF(N$56:N168,N168)","v":18},12,"Impactos","C",113,"",-89,null,null,null,null,null,null,null,null,73,"NBC",1013,"Hotelería, restaurantes y servicios de banquetes",1013,null,null,null,null,null,null,null,null,null,null,null,null,null,null,null,null,null,null,null,null,null,"COL0048492","Dinámica ecológica del zooplancton en el océano pacífico colombiano. Cruceros 2007-2010 de la serie ERFEN (Estudio Regional del Fenómeno el Niño)",{"$f":"COUNTIF(BA$4:BA168,BA168)","v":2},{"$f":"ROW()","v":168},1]
[null,null,null,null,null,null,null,null,null,null,null,{"$f":"COUNTIF(N$56:N169,N169)","v":19},12,"Impactos","C",114,"",-89,null,null,null,null,null,null,null,null,74,"NBC",1014,"Deportes",1014,null,null,null,null,null,null,null,null,null,null,null,null,null,null,null,null,null,null,null,null,null,"COL0048492","Estudios Morfológicos, Tróficos, Ecológicos, Bióticos y Abióticos de Humedales Colombianos, con énfasis en la Sabana de Bogotá.",{"$f":"COUNTIF(BA$4:BA169,BA169)","v":3},{"$f":"ROW()","v":169},1]
[null,null,null,null,null,null,null,null,null,null,null,{"$f":"COUNTIF(N$56:N170,N170)","v":20},12,"Impactos","C",115,"",-89,null,null,null,null,null,null,null,null,75,"NBC",1015,"Viajes, turismo y actividades recreativas",1015,null,null,null,null,null,null,null,null,null,null,null,null,null,null,null,null,null,null,null,null,null,"COL0048492","Estudios morfológicos, nutricionales, ontogénicos y de cultivo de organismos acuáticos de interés comercial.",{"$f":"COUNTIF(BA$4:BA170,BA170)","v":4},{"$f":"ROW()","v":170},1]
[null,null,null,null,null,null,null,null,null,null,null,{"$f":"COUNTIF(N$56:N171,N171)","v":21},12,"Impactos","C",116,"",-89,null,null,null,null,null,null,null,null,76,"NBC",1021,"Saneamiento de la comunidad",1021,null,null,null,null,null,null,null,null,null,null,null,null,null,null,null,null,null,null,null,null,null,"COL0077814","Producción Hortícola Limpia",{"$f":"COUNTIF(BA$4:BA171,BA171)","v":1},{"$f":"ROW()","v":171},1]
[null,null,null,null,null,null,null,null,null,null,null,{"$f":"COUNTIF(N$56:N172,N172)","v":22},12,"Impactos","C",117,"*Pueden Ocultar las Filas que no se utilicen ( Favor no eliminar filas).",-89,null,null,null,null,null,null,null,null,77,"NBC",1022,"Salud y protección laboral",1022,null,null,null,null,null,null,null,null,null,null,null,null,null,null,null,null,null,null,null,null,null,"COL0077707","Biodiversidad y Conservación",{"$f":"COUNTIF(BA$4:BA172,BA172)","v":1},{"$f":"ROW()","v":172},1]
[null,null,null,null,null,null,null,null,null,null,null,{"$f":"COUNTIF(N$56:N173,N173)","v":23},12,"Impactos","C",118,"",-89,null,null,null,null,null,null,null,null,78,"NBC",1031,"Educación militar y de defensa",1031,null,null,null,null,null,null,null,null,null,null,null,null,null,null,null,null,null,null,null,null,null,"COL0077707","Bioprospección de Comunidades Vegetales",{"$f":"COUNTIF(BA$4:BA173,BA173)","v":2},{"$f":"ROW()","v":173},1]
[null,null,null,null,null,null,null,null,null,null,null,{"$f":"COUNTIF(N$56:N174,N174)","v":24},12,"Impactos","C",119,"",-89,null,null,null,null,null,null,null,null,79,"NBC",1032,"Protección de las personas y de la propiedad",1032,null,null,null,null,null,null,null,null,null,null,null,null,null,null,null,null,null,null,null,null,null,"COL0077707","Búsqueda Biodirigida y Síntesis de Sustancias Bioactivas",{"$f":"COUNTIF(BA$4:BA174,BA174)","v":3},{"$f":"ROW()","v":174},1]
[null,null,null,null,null,null,null,null,null,null,null,{"$f":"COUNTIF(N$56:N175,N175)","v":25},12,"Impactos","C",120,"",-89,null,null,null,null,null,null,null,null,80,"NBC",1041,"Servicios de transporte",1041,null,null,null,null,null,null,null,null,null,null,null,null,null,null,null,null,null,null,null,null,null,"COL0077707","Fitopatología y ecofisiología vegetal",{"$f":"COUNTIF(BA$4:BA175,BA175)","v":4},{"$f":"ROW()","v":175},1]
[null,null,null,null,null,null,null,null,null,null,null,null,null,null,null,null,null,null,null,null,null,null,null,null,null,null,1,"Nivel",1,"Postdoctorado",{"$f":"AC176","v":1},null,null,null,null,null,null,null,null,null,null,null,null,null,null,null,null,null,null,null,null,null,"COL0077707","Metabolómica",{"$f":"COUNTIF(BA$4:BA176,BA176)","v":5},{"$f":"ROW()","v":176},1]
[null,null,null,null,null,null,null,null,null,null,null,null,null,null,null,null,null,null,null,null,null,null,null,null,null,null,2,"Nivel",2,"Doctorado",{"$f":"AC177","v":2},null,null,null,null,null,null,null,null,null,null,null,null,null,null,null,null,null,null,null,null,null,"COL0077707","Modelado Molecular y Quimioinformática",{"$f":"COUNTIF(BA$4:BA177,BA177)","v":6},{"$f":"ROW()","v":177},1]
[null,null,null,null,null,null,null,null,null,null,null,null,null,null,null,null,null,null,null,null,null,null,null,null,null,null,3,"Nivel",3,"Maestría",3,null,null,null,null,null,null,null,null,null,null,null,null,null,null,null,null,null,null,null,null,null,"COL0077707","Química Ambiental",{"$f":"COUNTIF(BA$4:BA178,BA178)","v":7},{"$f":"ROW()","v":178},1]
[null,null,null,null,null,null,null,null,null,null,null,null,null,null,null,null,null,null,null,null,null,null,null,null,null,null,4,"Nivel",4,"Esp. universitaria",4,null,null,null,null,null,null,null,null,null,null,null,null,null,null,null,null,null,null,null,null,null,"COL0077707","Química Bioorgánica",{"$f":"COUNTIF(BA$4:BA179,BA179)","v":8},{"$f":"ROW()","v":179},1]
[null,null,null,null,null,null,null,null,null,null,null,null,null,null,null,null,null,null,null,null,null,null,null,null,null,null,5,"Nivel",5,"Esp. Técnica Profesional",5,null,null,null,null,null,null,null,null,null,null,null,null,null,null,null,null,null,null,null,null,null,"COL0077707","Redes Tróficas y Agroecología",{"$f":"COUNTIF(BA$4:BA180,BA180)","v":9},{"$f":"ROW()","v":180},1]
[null,null,null,null,null,null,null,null,null,null,null,null,null,null,null,null,null,null,null,null,null,null,null,null,null,null,6,"Nivel",6,"Esp. Tecnológica",6,null,null,null,null,null,null,null,null,null,null,null,null,null,null,null,null,null,null,null,null,null,"COL0110436","Bioquímica",{"$f":"COUNTIF(BA$4:BA181,BA181)","v":1},{"$f":"ROW()","v":181},1]
[null,null,null,null,null,null,null,null,null,null,null,null,null,null,null,null,null,null,null,null,null,null,null,null,null,null,7,"Nivel",7,"Universitario",7,null,null,null,null,null,null,null,null,null,null,null,null,null,null,null,null,null,null,null,null,null,"COL0110436","Química Ambiental y Forense",{"$f":"COUNTIF(BA$4:BA182,BA182)","v":2},{"$f":"ROW()","v":182},1]
[null,null,null,null,null,null,null,null,null,null,null,null,null,null,null,null,null,null,null,null,null,null,null,null,null,null,8,"Nivel",8,"Tecnológico",8,null,null,null,null,null,null,null,null,null,null,null,null,null,null,null,null,null,null,null,null,null,"COL0110436","Química Inorgánica",{"$f":"COUNTIF(BA$4:BA183,BA183)","v":3},{"$f":"ROW()","v":183},1]
[null,null,null,null,null,null,null,null,null,null,null,null,null,null,null,null,null,null,null,null,null,null,null,null,null,null,9,"Nivel",9,"Técnico profesional",9,null,null,null,null,null,null,null,null,null,null,null,null,null,null,null,null,null,null,null,null,null,"COL0110436","Química Verde",{"$f":"COUNTIF(BA$4:BA184,BA184)","v":4},{"$f":"ROW()","v":184},1]
[null,null,null,null,null,null,null,null,null,null,null,null,null,null,null,null,null,null,null,null,null,null,null,null,null,null,10,"Nivel",10,"Estudiante pregrado",10,null,null,null,null,null,null,null,null,null,null,null,null,null,null,null,null,null,null,null,null,null,"COL0110436","Química de coordinación y catálisis ambiental",{"$f":"COUNTIF(BA$4:BA185,BA185)","v":5},{"$f":"ROW()","v":185},1]
[null,null,null,null,null,null,null,null,null,null,null,null,null,null,null,null,null,null,null,null,null,null,null,null,null,null,1,"A",100,"Puede aplicar al maximo de presupuesto dependiendo los puntos comprometidos",null,null,null,null,null,null,null,null,null,null,null,null,null,null,null,null,null,null,null,null,null,null,"COL0125134","Ayudas Auditivas Implantables",{"$f":"COUNTIF(BA$4:BA186,BA186)","v":1},{"$f":"ROW()","v":186},1]
[null,null,null,null,null,null,null,null,null,null,null,null,null,null,null,null,null,null,null,null,null,null,null,null,null,null,8,"A1",100,"Puede aplicar al maximo de presupuesto dependiendo los puntos comprometidos",null,null,null,null,null,null,null,null,null,null,null,null,null,null,null,null,null,null,null,null,null,null,"COL0125134","Base de cráneo",{"$f":"COUNTIF(BA$4:BA187,BA187)","v":2},{"$f":"ROW()","v":187},1]
[null,null,null,null,null,null,null,null,null,null,null,null,null,null,null,null,null,null,null,null,null,null,null,null,null,null,9,"B",100,"Puede aplicar al maximo de presupuesto dependiendo los puntos comprometidos",null,null,null,null,null,null,null,null,null,null,null,null,null,null,null,null,null,null,null,null,null,null,"COL0125134","Cáncer Laríngeo",{"$f":"COUNTIF(BA$4:BA188,BA188)","v":3},{"$f":"ROW()","v":188},1]
[null,null,null,null,null,null,null,null,null,null,null,null,null,null,null,null,null,null,null,null,null,null,null,null,null,null,10,"C",100,"Puede aplicar al maximo de presupuesto dependiendo los puntos comprometidos",null,null,null,null,null,null,null,null,null,null,null,null,null,null,null,null,null,null,null,null,null,null,"COL0125134","Enfermedad de Meniere",{"$f":"COUNTIF(BA$4:BA189,BA189)","v":4},{"$f":"ROW()","v":189},1]
[null,null,null,null,null,null,null,null,null,null,null,null,null,null,null,null,null,null,null,null,null,null,null,null,null,null,11,"D",50,"Puede aplicar hasta 50 millones de presupuesto dependiendo los puntos comprometidos",null,null,null,null,null,null,null,null,null,null,null,null,null,null,null,null,null,null,null,null,null,null,"COL0125134","Oído Crónico",{"$f":"COUNTIF(BA$4:BA190,BA190)","v":5},{"$f":"ROW()","v":190},1]
[null,null,null,null,null,null,null,null,null,null,null,null,null,null,null,null,null,null,null,null,null,null,null,null,null,null,2,"R",25,"Puede aplicar hasta 25 millones de presupuesto dependiendo los puntos comprometidos",null,null,null,null,null,null,null,null,null,null,null,null,null,null,null,null,null,null,null,null,null,null,"COL0125134","Rinosinusitis Crónica",{"$f":"COUNTIF(BA$4:BA191,BA191)","v":6},{"$f":"ROW()","v":191},1]
[null,null,null,null,null,null,null,null,null,null,null,null,null,null,null,null,null,null,null,null,null,null,null,null,null,null,2,"NR",25,"Puede aplicar hasta 25 millones de presupuesto dependiendo los puntos comprometidos",null,null,null,null,null,null,null,null,null,null,null,null,null,null,null,null,null,null,null,null,null,null,"COL0125134","Trauma de guerra en Otorrinolaringología",{"$f":"COUNTIF(BA$4:BA192,BA192)","v":7},{"$f":"ROW()","v":192},1]
[null,null,null,null,null,null,null,null,null,null,null,null,null,null,null,null,null,null,null,null,null,null,null,null,null,null,1,"Nivel_Inst",1,"Distrital",null,null,null,null,null,null,null,null,null,null,null,null,null,null,null,null,null,null,null,null,null,null,"COL0120281","Medicina Electrodiagnostica",{"$f":"COUNTIF(BA$4:BA193,BA193)","v":1},{"$f":"ROW()","v":193},1]
[null,null,null,null,null,null,null,null,null,null,null,null,null,null,null,null,null,null,null,null,null,null,null,null,null,null,2,"Nivel_Inst",2,"Nacional",null,null,null,null,null,null,null,null,null,null,null,null,null,null,null,null,null,null,null,null,null,null,"COL0120281","Rehabilitacion Neurologica",{"$f":"COUNTIF(BA$4:BA194,BA194)","v":2},{"$f":"ROW()","v":194},1]
[null,null,null,null,null,null,null,null,null,null,null,null,null,null,null,null,null,null,null,null,null,null,null,null,null,null,3,"Nivel_Inst",3,"Internacional",null,null,null,null,null,null,null,null,null,null,null,null,null,null,null,null,null,null,null,null,null,null,"COL0120281","Rehabilitacion cardio-pulmonar",{"$f":"COUNTIF(BA$4:BA195,BA195)","v":3},{"$f":"ROW()","v":195},1]
[null,null,null,null,null,null,null,null,null,null,null,null,null,null,null,null,null,null,null,null,null,null,null,null,null,null,null,null,null,null,null,null,null,null,null,null,null,null,null,null,null,null,null,null,null,null,null,null,null,null,null,null,"COL0120281","Rehabilitacion musculo esqueletica",{"$f":"COUNTIF(BA$4:BA196,BA196)","v":4},{"$f":"ROW()","v":196},{"$f":"COUNTIF($AQ$3:$AQ$80,BA196)","v":1}]
[null,null,null,null,null,null,null,null,null,null,null,null,null,null,null,null,null,null,null,null,null,null,null,null,null,null,null,null,null,null,null,null,null,null,null,null,null,null,null,null,null,null,null,null,null,null,null,null,null,null,null,null,"COL0120281","Rehabilitación Infantil",{"$f":"COUNTIF(BA$4:BA197,BA197)","v":5},{"$f":"ROW()","v":197},1]
[null,null,null,null,null,null,null,null,null,null,null,null,null,null,null,null,null,null,null,null,null,null,null,null,null,null,null,null,null,null,null,null,null,null,null,null,null,null,null,null,null,null,null,null,null,null,null,null,null,null,null,null,"COL0128047","Derecho de la responsabilidad y de seguros",{"$f":"COUNTIF(BA$4:BA198,BA198)","v":1},{"$f":"ROW()","v":198},1]
[null,null,null,null,null,null,null,null,null,null,null,null,null,null,null,null,null,null,null,null,null,null,null,null,null,null,null,null,null,null,null,null,null,null,null,null,null,null,null,null,null,null,null,null,null,null,null,null,null,null,null,null,"COL0128047","Derecho económico y de los negocios.",{"$f":"COUNTIF(BA$4:BA199,BA199)","v":2},{"$f":"ROW()","v":199},1]
[null,null,null,null,null,null,null,null,null,null,null,null,null,null,null,null,null,null,null,null,null,null,null,null,null,null,null,null,null,null,null,null,null,null,null,null,null,null,null,null,null,null,null,null,null,null,null,null,null,null,null,null,"COL0116538","Andrologia y Salud sexual",{"$f":"COUNTIF(BA$4:BA200,BA200)","v":1},{"$f":"ROW()","v":200},1]
[null,null,null,null,null,null,null,null,null,null,null,null,null,null,null,null,null,null,null,null,null,null,null,null,null,null,null,null,null,null,null,null,null,null,null,null,null,null,null,null,null,null,null,null,null,null,null,null,null,null,null,null,"COL0116538","Hiperplasia Prostatica",{"$f":"COUNTIF(BA$4:BA201,BA201)","v":2},{"$f":"ROW()","v":201},1]
[null,null,null,null,null,null,null,null,null,null,null,null,null,null,null,null,null,null,null,null,null,null,null,null,null,null,null,null,null,null,null,null,null,null,null,null,null,null,null,null,null,null,null,null,null,null,null,null,null,null,null,null,"COL0116538","Incontinencia Urinaria",{"$f":"COUNTIF(BA$4:BA202,BA202)","v":3},{"$f":"ROW()","v":202},1]
[null,null,null,null,null,null,null,null,null,null,null,null,null,null,null,null,null,null,null,null,null,null,null,null,null,null,null,null,null,null,null,null,null,null,null,null,null,null,null,null,null,null,null,null,null,null,null,null,null,null,null,null,"COL0116538","Litiasis y endourologia",{"$f":"COUNTIF(BA$4:BA203,BA203)","v":4},{"$f":"ROW()","v":203},1]
[null,null,null,null,null,null,null,null,null,null,null,null,null,null,null,null,null,null,null,null,null,null,null,null,null,null,null,null,null,null,null,null,null,null,null,null,null,null,null,null,null,null,null,null,null,null,null,null,null,null,null,null,"COL0116538","Oncologia Urologica",{"$f":"COUNTIF(BA$4:BA204,BA204)","v":5},{"$f":"ROW()","v":204},1]
[null,null,null,null,null,null,null,null,null,null,null,null,null,null,null,null,null,null,null,null,null,null,null,null,null,null,null,null,null,null,null,null,null,null,null,null,null,null,null,null,null,null,null,null,null,null,null,null,null,null,null,null,"COL0116538","Urologia Pediatrica",{"$f":"COUNTIF(BA$4:BA205,BA205)","v":6},{"$f":"ROW()","v":205},1]
[null,null,null,null,null,null,null,null,null,null,null,null,null,null,null,null,null,null,null,null,null,null,null,null,null,null,null,null,null,null,null,null,null,null,null,null,null,null,null,null,null,null,null,null,null,null,null,null,null,null,null,null,"COL0026486","Procesos biológicos",{"$f":"COUNTIF(BA$4:BA206,BA206)","v":1},{"$f":"ROW()","v":206},1]
[null,null,null,null,null,null,null,null,null,null,null,null,null,null,null,null,null,null,null,null,null,null,null,null,null,null,null,null,null,null,null,null,null,null,null,null,null,null,null,null,null,null,null,null,null,null,null,null,null,null,null,null,"COL0026486","Procesos de oxidación avanzada",{"$f":"COUNTIF(BA$4:BA207,BA207)","v":2},{"$f":"ROW()","v":207},1]
[null,null,null,null,null,null,null,null,null,null,null,null,null,null,null,null,null,null,null,null,null,null,null,null,null,null,null,null,null,null,null,null,null,null,null,null,null,null,null,null,null,null,null,null,null,null,null,null,null,null,null,null,"COL0026486","Procesos enzimaticos",{"$f":"COUNTIF(BA$4:BA208,BA208)","v":3},{"$f":"ROW()","v":208},1]
[null,null,null,null,null,null,null,null,null,null,null,null,null,null,null,null,null,null,null,null,null,null,null,null,null,null,null,null,null,null,null,null,null,null,null,null,null,null,null,null,null,null,null,null,null,null,null,null,null,null,null,null,"COL0031824","Bioética Global y Complejidad",{"$f":"COUNTIF(BA$4:BA209,BA209)","v":1},{"$f":"ROW()","v":209},1]
[null,null,null,null,null,null,null,null,null,null,null,null,null,null,null,null,null,null,null,null,null,null,null,null,null,null,null,null,null,null,null,null,null,null,null,null,null,null,null,null,null,null,null,null,null,null,null,null,null,null,null,null,"COL0031824","Bioética Médica y salud pública",{"$f":"COUNTIF(BA$4:BA210,BA210)","v":2},{"$f":"ROW()","v":210},1]
[null,null,null,null,null,null,null,null,null,null,null,null,null,null,null,null,null,null,null,null,null,null,null,null,null,null,null,null,null,null,null,null,null,null,null,null,null,null,null,null,null,null,null,null,null,null,null,null,null,null,null,null,"COL0031824","Bioética, Biopolítica y Biojurídica",{"$f":"COUNTIF(BA$4:BA211,BA211)","v":3},{"$f":"ROW()","v":211},1]
[null,null,null,null,null,null,null,null,null,null,null,null,null,null,null,null,null,null,null,null,null,null,null,null,null,null,null,null,null,null,null,null,null,null,null,null,null,null,null,null,null,null,null,null,null,null,null,null,null,null,null,null,"COL0031824","Bioética, educación y cultura",{"$f":"COUNTIF(BA$4:BA212,BA212)","v":4},{"$f":"ROW()","v":212},1]
[null,null,null,null,null,null,null,null,null,null,null,null,null,null,null,null,null,null,null,null,null,null,null,null,null,null,null,null,null,null,null,null,null,null,null,null,null,null,null,null,null,null,null,null,null,null,null,null,null,null,null,null,"COL0045848","Epidemiología Clínica de Diabetes e Insulino resistencia",{"$f":"COUNTIF(BA$4:BA213,BA213)","v":1},{"$f":"ROW()","v":213},1]
[null,null,null,null,null,null,null,null,null,null,null,null,null,null,null,null,null,null,null,null,null,null,null,null,null,null,null,null,null,null,null,null,null,null,null,null,null,null,null,null,null,null,null,null,null,null,null,null,null,null,null,null,"COL0045848","Genética de diabetes mellitus e insulino resistencia",{"$f":"COUNTIF(BA$4:BA214,BA214)","v":2},{"$f":"ROW()","v":214},1]
[null,null,null,null,null,null,null,null,null,null,null,null,null,null,null,null,null,null,null,null,null,null,null,null,null,null,null,null,null,null,null,null,null,null,null,null,null,null,null,null,null,null,null,null,null,null,null,null,null,null,null,null,"COL0045848","Prevención Cardiovascular",{"$f":"COUNTIF(BA$4:BA215,BA215)","v":3},{"$f":"ROW()","v":215},1]
[null,null,null,null,null,null,null,null,null,null,null,null,null,null,null,null,null,null,null,null,null,null,null,null,null,null,null,null,null,null,null,null,null,null,null,null,null,null,null,null,null,null,null,null,null,null,null,null,null,null,null,null,"COL0052163","Internet de las Cosas",{"$f":"COUNTIF(BA$4:BA216,BA216)","v":1},{"$f":"ROW()","v":216},1]
[null,null,null,null,null,null,null,null,null,null,null,null,null,null,null,null,null,null,null,null,null,null,null,null,null,null,null,null,null,null,null,null,null,null,null,null,null,null,null,null,null,null,null,null,null,null,null,null,null,null,null,null,"COL0052163","Procesamiento de Seńales",{"$f":"COUNTIF(BA$4:BA217,BA217)","v":2},{"$f":"ROW()","v":217},1]
[null,null,null,null,null,null,null,null,null,null,null,null,null,null,null,null,null,null,null,null,null,null,null,null,null,null,null,null,null,null,null,null,null,null,null,null,null,null,null,null,null,null,null,null,null,null,null,null,null,null,null,null,"COL0052163","Seguridad Informática",{"$f":"COUNTIF(BA$4:BA218,BA218)","v":3},{"$f":"ROW()","v":218},1]
[null,null,null,null,null,null,null,null,null,null,null,null,null,null,null,null,null,null,null,null,null,null,null,null,null,null,null,null,null,null,null,null,null,null,null,null,null,null,null,null,null,null,null,null,null,null,null,null,null,null,null,null,"COL0052163","Sistemas bioinspirados",{"$f":"COUNTIF(BA$4:BA219,BA219)","v":4},{"$f":"ROW()","v":219},1]
[null,null,null,null,null,null,null,null,null,null,null,null,null,null,null,null,null,null,null,null,null,null,null,null,null,null,null,null,null,null,null,null,null,null,null,null,null,null,null,null,null,null,null,null,null,null,null,null,null,null,null,null,"COL0052163","Sistemas de comunicaciones",{"$f":"COUNTIF(BA$4:BA220,BA220)","v":5},{"$f":"ROW()","v":220},1]
[null,null,null,null,null,null,null,null,null,null,null,null,null,null,null,null,null,null,null,null,null,null,null,null,null,null,null,null,null,null,null,null,null,null,null,null,null,null,null,null,null,null,null,null,null,null,null,null,null,null,null,null,"COL0066669","Estrategia y Seguridad",{"$f":"COUNTIF(BA$4:BA221,BA221)","v":1},{"$f":"ROW()","v":221},1]
[null,null,null,null,null,null,null,null,null,null,null,null,null,null,null,null,null,null,null,null,null,null,null,null,null,null,null,null,null,null,null,null,null,null,null,null,null,null,null,null,null,null,null,null,null,null,null,null,null,null,null,null,"COL0066669","Paz y Posconflicto",{"$f":"COUNTIF(BA$4:BA222,BA222)","v":2},{"$f":"ROW()","v":222},1]
[null,null,null,null,null,null,null,null,null,null,null,null,null,null,null,null,null,null,null,null,null,null,null,null,null,null,null,null,null,null,null,null,null,null,null,null,null,null,null,null,null,null,null,null,null,null,null,null,null,null,null,null,"COL0066669","Seguridad Física",{"$f":"COUNTIF(BA$4:BA223,BA223)","v":3},{"$f":"ROW()","v":223},1]
[null,null,null,null,null,null,null,null,null,null,null,null,null,null,null,null,null,null,null,null,null,null,null,null,null,null,null,null,null,null,null,null,null,null,null,null,null,null,null,null,null,null,null,null,null,null,null,null,null,null,null,null,"COL0066669","Seguridad de Personas",{"$f":"COUNTIF(BA$4:BA224,BA224)","v":4},{"$f":"ROW()","v":224},1]
[null,null,null,null,null,null,null,null,null,null,null,null,null,null,null,null,null,null,null,null,null,null,null,null,null,null,null,null,null,null,null,null,null,null,null,null,null,null,null,null,null,null,null,null,null,null,null,null,null,null,null,null,"COL0068762","Ingeniería Sostenible",{"$f":"COUNTIF(BA$4:BA225,BA225)","v":1},{"$f":"ROW()","v":225},1]
[null,null,null,null,null,null,null,null,null,null,null,null,null,null,null,null,null,null,null,null,null,null,null,null,null,null,null,null,null,null,null,null,null,null,null,null,null,null,null,null,null,null,null,null,null,null,null,null,null,null,null,null,"COL0068762","Inteligencia artificial y procesamiento de seńales",{"$f":"COUNTIF(BA$4:BA226,BA226)","v":2},{"$f":"ROW()","v":226},1]
[null,null,null,null,null,null,null,null,null,null,null,null,null,null,null,null,null,null,null,null,null,null,null,null,null,null,null,null,null,null,null,null,null,null,null,null,null,null,null,null,null,null,null,null,null,null,null,null,null,null,null,null,"COL0068762","Laboratorios virtuales e instrumentación virtual",{"$f":"COUNTIF(BA$4:BA227,BA227)","v":3},{"$f":"ROW()","v":227},1]
[null,null,null,null,null,null,null,null,null,null,null,null,null,null,null,null,null,null,null,null,null,null,null,null,null,null,null,null,null,null,null,null,null,null,null,null,null,null,null,null,null,null,null,null,null,null,null,null,null,null,null,null,"COL0068762","Sistemas Bioinspirados",{"$f":"COUNTIF(BA$4:BA228,BA228)","v":4},{"$f":"ROW()","v":228},1]
[null,null,null,null,null,null,null,null,null,null,null,null,null,null,null,null,null,null,null,null,null,null,null,null,null,null,null,null,null,null,null,null,null,null,null,null,null,null,null,null,null,null,null,null,null,null,null,null,null,null,null,null,"COL0068762","Tecnologías de la información y las comunicaciones (TIC)",{"$f":"COUNTIF(BA$4:BA229,BA229)","v":5},{"$f":"ROW()","v":229},1]
[null,null,null,null,null,null,null,null,null,null,null,null,null,null,null,null,null,null,null,null,null,null,null,null,null,null,null,null,null,null,null,null,null,null,null,null,null,null,null,null,null,null,null,null,null,null,null,null,null,null,null,null,"COL0068762","Visión de Máquina",{"$f":"COUNTIF(BA$4:BA230,BA230)","v":6},{"$f":"ROW()","v":230},1]
[null,null,null,null,null,null,null,null,null,null,null,null,null,null,null,null,null,null,null,null,null,null,null,null,null,null,null,null,null,null,null,null,null,null,null,null,null,null,null,null,null,null,null,null,null,null,null,null,null,null,null,null,"COL0067371","Desarrollo de diagnósticos físico matemáticos de la morfofisiología celular e histológica con base en geometría fractal y euclidiana.",{"$f":"COUNTIF(BA$4:BA231,BA231)","v":1},{"$f":"ROW()","v":231},0]
[null,null,null,null,null,null,null,null,null,null,null,null,null,null,null,null,null,null,null,null,null,null,null,null,null,null,null,null,null,null,null,null,null,null,null,null,null,null,null,null,null,null,null,null,null,null,null,null,null,null,null,null,"COL0067371","Desarrollo de diagnósticos físico matemáticos de la morfofisiología y la dinámica cardiaca fetal y de adultos",{"$f":"COUNTIF(BA$4:BA232,BA232)","v":2},{"$f":"ROW()","v":232},0]
[null,null,null,null,null,null,null,null,null,null,null,null,null,null,null,null,null,null,null,null,null,null,null,null,null,null,null,null,null,null,null,null,null,null,null,null,null,null,null,null,null,null,null,null,null,null,null,null,null,null,null,null,"COL0067371","Física y matemáticas aplicadas",{"$f":"COUNTIF(BA$4:BA233,BA233)","v":3},{"$f":"ROW()","v":233},0]
[null,null,null,null,null,null,null,null,null,null,null,null,null,null,null,null,null,null,null,null,null,null,null,null,null,null,null,null,null,null,null,null,null,null,null,null,null,null,null,null,null,null,null,null,null,null,null,null,null,null,null,null,"COL0067371","Predicciones en infectología",{"$f":"COUNTIF(BA$4:BA234,BA234)","v":4},{"$f":"ROW()","v":234},0]
[null,null,null,null,null,null,null,null,null,null,null,null,null,null,null,null,null,null,null,null,null,null,null,null,null,null,null,null,null,null,null,null,null,null,null,null,null,null,null,null,null,null,null,null,null,null,null,null,null,null,null,null,"COL0067371","Predicciones físicas y matemáticas en economía",{"$f":"COUNTIF(BA$4:BA235,BA235)","v":5},{"$f":"ROW()","v":235},0]
[null,null,null,null,null,null,null,null,null,null,null,null,null,null,null,null,null,null,null,null,null,null,null,null,null,null,null,null,null,null,null,null,null,null,null,null,null,null,null,null,null,null,null,null,null,null,null,null,null,null,null,null,"COL0067371","Teorías físicas y Matemáticas aplicadas al desarrollo de diagnósticos de la dinámica y morfología cardíaca",{"$f":"COUNTIF(BA$4:BA236,BA236)","v":6},{"$f":"ROW()","v":236},0]
[null,null,null,null,null,null,null,null,null,null,null,null,null,null,null,null,null,null,null,null,null,null,null,null,null,null,null,null,null,null,null,null,null,null,null,null,null,null,null,null,null,null,null,null,null,null,null,null,null,null,null,null,"COL0067371","teorías físicas y Matemáticas aplicadas a la prediccion de epidemias",{"$f":"COUNTIF(BA$4:BA237,BA237)","v":7},{"$f":"ROW()","v":237},0]
[null,null,null,null,null,null,null,null,null,null,null,null,null,null,null,null,null,null,null,null,null,null,null,null,null,null,null,null,null,null,null,null,null,null,null,null,null,null,null,null,null,null,null,null,null,null,null,null,null,null,null,null,"COL0067371","teorías físicas y Matemáticas aplicadas al de diagnósticos de Morfología y fisiología celular",{"$f":"COUNTIF(BA$4:BA238,BA238)","v":8},{"$f":"ROW()","v":238},0]
[null,null,null,null,null,null,null,null,null,null,null,null,null,null,null,null,null,null,null,null,null,null,null,null,null,null,null,null,null,null,null,null,null,null,null,null,null,null,null,null,null,null,null,null,null,null,null,null,null,null,null,null,"COL0067371","teorías físicas y Matemáticas aplicadas al desarrollo de predicciones en inmunología y biología molecular para el desarrollo de vacunas",{"$f":"COUNTIF(BA$4:BA239,BA239)","v":9},{"$f":"ROW()","v":239},0]
[null,null,null,null,null,null,null,null,null,null,null,null,null,null,null,null,null,null,null,null,null,null,null,null,null,null,null,null,null,null,null,null,null,null,null,null,null,null,null,null,null,null,null,null,null,null,null,null,null,null,null,null,"COL0110329","Didáctica de las matemáticas universitarias",{"$f":"COUNTIF(BA$4:BA240,BA240)","v":1},{"$f":"ROW()","v":240},1]
[null,null,null,null,null,null,null,null,null,null,null,null,null,null,null,null,null,null,null,null,null,null,null,null,null,null,null,null,null,null,null,null,null,null,null,null,null,null,null,null,null,null,null,null,null,null,null,null,null,null,null,null,"COL0110329","Diseńo curricular y evaluación en matemáticas universitarias",{"$f":"COUNTIF(BA$4:BA241,BA241)","v":2},{"$f":"ROW()","v":241},1]
[null,null,null,null,null,null,null,null,null,null,null,null,null,null,null,null,null,null,null,null,null,null,null,null,null,null,null,null,null,null,null,null,null,null,null,null,null,null,null,null,null,null,null,null,null,null,null,null,null,null,null,null,"COL0110329","Herramientas virtuales y enseńanza de las matemáticas universitarias",{"$f":"COUNTIF(BA$4:BA242,BA242)","v":3},{"$f":"ROW()","v":242},1]
[null,null,null,null,null,null,null,null,null,null,null,null,null,null,null,null,null,null,null,null,null,null,null,null,null,null,null,null,null,null,null,null,null,null,null,null,null,null,null,null,null,null,null,null,null,null,null,null,null,null,null,null,"COL0117052","Ambiental",{"$f":"COUNTIF(BA$4:BA243,BA243)","v":1},{"$f":"ROW()","v":243},1]
[null,null,null,null,null,null,null,null,null,null,null,null,null,null,null,null,null,null,null,null,null,null,null,null,null,null,null,null,null,null,null,null,null,null,null,null,null,null,null,null,null,null,null,null,null,null,null,null,null,null,null,null,"COL0117052","Arte y Tecnología",{"$f":"COUNTIF(BA$4:BA244,BA244)","v":2},{"$f":"ROW()","v":244},1]
[null,null,null,null,null,null,null,null,null,null,null,null,null,null,null,null,null,null,null,null,null,null,null,null,null,null,null,null,null,null,null,null,null,null,null,null,null,null,null,null,null,null,null,null,null,null,null,null,null,null,null,null,"COL0117052","Energía",{"$f":"COUNTIF(BA$4:BA245,BA245)","v":3},{"$f":"ROW()","v":245},1]
[null,null,null,null,null,null,null,null,null,null,null,null,null,null,null,null,null,null,null,null,null,null,null,null,null,null,null,null,null,null,null,null,null,null,null,null,null,null,null,null,null,null,null,null,null,null,null,null,null,null,null,null,"COL0117052","Gestión e Innovación",{"$f":"COUNTIF(BA$4:BA246,BA246)","v":4},{"$f":"ROW()","v":246},1]
[null,null,null,null,null,null,null,null,null,null,null,null,null,null,null,null,null,null,null,null,null,null,null,null,null,null,null,null,null,null,null,null,null,null,null,null,null,null,null,null,null,null,null,null,null,null,null,null,null,null,null,null,"COL0117052","Materiales",{"$f":"COUNTIF(BA$4:BA247,BA247)","v":5},{"$f":"ROW()","v":247},1]
[null,null,null,null,null,null,null,null,null,null,null,null,null,null,null,null,null,null,null,null,null,null,null,null,null,null,null,null,null,null,null,null,null,null,null,null,null,null,null,null,null,null,null,null,null,null,null,null,null,null,null,null,"COL0138796","Docencia y Didactica de la Física Universitaria",{"$f":"COUNTIF(BA$4:BA248,BA248)","v":1},{"$f":"ROW()","v":248},1]
[null,null,null,null,null,null,null,null,null,null,null,null,null,null,null,null,null,null,null,null,null,null,null,null,null,null,null,null,null,null,null,null,null,null,null,null,null,null,null,null,null,null,null,null,null,null,null,null,null,null,null,null,"COL0138796","Física Atómica, Molecular y de Agregados",{"$f":"COUNTIF(BA$4:BA249,BA249)","v":2},{"$f":"ROW()","v":249},1]
[null,null,null,null,null,null,null,null,null,null,null,null,null,null,null,null,null,null,null,null,null,null,null,null,null,null,null,null,null,null,null,null,null,null,null,null,null,null,null,null,null,null,null,null,null,null,null,null,null,null,null,null,"COL0138796","Magnetismo y Aplicaciones",{"$f":"COUNTIF(BA$4:BA250,BA250)","v":3},{"$f":"ROW()","v":250},1]
[null,null,null,null,null,null,null,null,null,null,null,null,null,null,null,null,null,null,null,null,null,null,null,null,null,null,null,null,null,null,null,null,null,null,null,null,null,null,null,null,null,null,null,null,null,null,null,null,null,null,null,null,"COL0138796","Nanotecnología y Sensórica",{"$f":"COUNTIF(BA$4:BA251,BA251)","v":4},{"$f":"ROW()","v":251},1]
[null,null,null,null,null,null,null,null,null,null,null,null,null,null,null,null,null,null,null,null,null,null,null,null,null,null,null,null,null,null,null,null,null,null,null,null,null,null,null,null,null,null,null,null,null,null,null,null,null,null,null,null,"COL0138796","Uso de radiación ionizante para la producción de imágenes médicas",{"$f":"COUNTIF(BA$4:BA252,BA252)","v":5},{"$f":"ROW()","v":252},1]
[null,null,null,null,null,null,null,null,null,null,null,null,null,null,null,null,null,null,null,null,null,null,null,null,null,null,null,null,null,null,null,null,null,null,null,null,null,null,null,null,null,null,null,null,null,null,null,null,null,null,null,null,"COL0152463","Currículo y evaluación",{"$f":"COUNTIF(BA$4:BA253,BA253)","v":1},{"$f":"ROW()","v":253},1]
[null,null,null,null,null,null,null,null,null,null,null,null,null,null,null,null,null,null,null,null,null,null,null,null,null,null,null,null,null,null,null,null,null,null,null,null,null,null,null,null,null,null,null,null,null,null,null,null,null,null,null,null,"COL0152463","Docencia y pedagogía",{"$f":"COUNTIF(BA$4:BA254,BA254)","v":2},{"$f":"ROW()","v":254},1]
[null,null,null,null,null,null,null,null,null,null,null,null,null,null,null,null,null,null,null,null,null,null,null,null,null,null,null,null,null,null,null,null,null,null,null,null,null,null,null,null,null,null,null,null,null,null,null,null,null,null,null,null,"COL0152463","Investigación clínica",{"$f":"COUNTIF(BA$4:BA255,BA255)","v":3},{"$f":"ROW()","v":255},1]
[null,null,null,null,null,null,null,null,null,null,null,null,null,null,null,null,null,null,null,null,null,null,null,null,null,null,null,null,null,null,null,null,null,null,null,null,null,null,null,null,null,null,null,null,null,null,null,null,null,null,null,null,"COL0143731","Electrónica y Telecomunicaciones en Salud",{"$f":"COUNTIF(BA$4:BA256,BA256)","v":1},{"$f":"ROW()","v":256},1]
[null,null,null,null,null,null,null,null,null,null,null,null,null,null,null,null,null,null,null,null,null,null,null,null,null,null,null,null,null,null,null,null,null,null,null,null,null,null,null,null,null,null,null,null,null,null,null,null,null,null,null,null,"COL0143731","Espectro Radioeléctrico",{"$f":"COUNTIF(BA$4:BA257,BA257)","v":2},{"$f":"ROW()","v":257},1]
[null,null,null,null,null,null,null,null,null,null,null,null,null,null,null,null,null,null,null,null,null,null,null,null,null,null,null,null,null,null,null,null,null,null,null,null,null,null,null,null,null,null,null,null,null,null,null,null,null,null,null,null,"COL0143731","Sistemas virtuales de comunicación",{"$f":"COUNTIF(BA$4:BA258,BA258)","v":3},{"$f":"ROW()","v":258},1]
[null,null,null,null,null,null,null,null,null,null,null,null,null,null,null,null,null,null,null,null,null,null,null,null,null,null,null,null,null,null,null,null,null,null,null,null,null,null,null,null,null,null,null,null,null,null,null,null,null,null,null,null,"COL0069296","Modelos de simulación en Ingeniería Civil",{"$f":"COUNTIF(BA$4:BA259,BA259)","v":1},{"$f":"ROW()","v":259},1]
[null,null,null,null,null,null,null,null,null,null,null,null,null,null,null,null,null,null,null,null,null,null,null,null,null,null,null,null,null,null,null,null,null,null,null,null,null,null,null,null,null,null,null,null,null,null,null,null,null,null,null,null,"COL0096032","Bioetica, Bioderecho, Biomedicina y Biotecnologia",{"$f":"COUNTIF(BA$4:BA260,BA260)","v":1},{"$f":"ROW()","v":260},{"$f":"COUNTIF($AQ$3:$AQ$80,BA260)","v":1}]
[null,null,null,null,null,null,null,null,null,null,null,null,null,null,null,null,null,null,null,null,null,null,null,null,null,null,null,null,null,null,null,null,null,null,null,null,null,null,null,null,null,null,null,null,null,null,null,null,null,null,null,null,"COL0096032","Células Madre & Medicina Regenerativa",{"$f":"COUNTIF(BA$4:BA261,BA261)","v":2},{"$f":"ROW()","v":261},1]
[null,null,null,null,null,null,null,null,null,null,null,null,null,null,null,null,null,null,null,null,null,null,null,null,null,null,null,null,null,null,null,null,null,null,null,null,null,null,null,null,null,null,null,null,null,null,null,null,null,null,null,null,"COL0096032","Genética Humana",{"$f":"COUNTIF(BA$4:BA262,BA262)","v":3},{"$f":"ROW()","v":262},1]
[null,null,null,null,null,null,null,null,null,null,null,null,null,null,null,null,null,null,null,null,null,null,null,null,null,null,null,null,null,null,null,null,null,null,null,null,null,null,null,null,null,null,null,null,null,null,null,null,null,null,null,null,"COL0096032","Medicina Transfusional y Cuidado Crítico",{"$f":"COUNTIF(BA$4:BA263,BA263)","v":4},{"$f":"ROW()","v":263},1]
[null,null,null,null,null,null,null,null,null,null,null,null,null,null,null,null,null,null,null,null,null,null,null,null,null,null,null,null,null,null,null,null,null,null,null,null,null,null,null,null,null,null,null,null,null,null,null,null,null,null,null,null,"COL0117722","Educación y sociedad",{"$f":"COUNTIF(BA$4:BA264,BA264)","v":1},{"$f":"ROW()","v":264},1]
[null,null,null,null,null,null,null,null,null,null,null,null,null,null,null,null,null,null,null,null,null,null,null,null,null,null,null,null,null,null,null,null,null,null,null,null,null,null,null,null,null,null,null,null,null,null,null,null,null,null,null,null,"COL0117722","Estudios Disciplinares en Contabilidad",{"$f":"COUNTIF(BA$4:BA265,BA265)","v":2},{"$f":"ROW()","v":265},1]
[null,null,null,null,null,null,null,null,null,null,null,null,null,null,null,null,null,null,null,null,null,null,null,null,null,null,null,null,null,null,null,null,null,null,null,null,null,null,null,null,null,null,null,null,null,null,null,null,null,null,null,null,"COL0126777","Animación experimental",{"$f":"COUNTIF(BA$4:BA266,BA266)","v":1},{"$f":"ROW()","v":266},1]
[null,null,null,null,null,null,null,null,null,null,null,null,null,null,null,null,null,null,null,null,null,null,null,null,null,null,null,null,null,null,null,null,null,null,null,null,null,null,null,null,null,null,null,null,null,null,null,null,null,null,null,null,"COL0126777","Audio y video",{"$f":"COUNTIF(BA$4:BA267,BA267)","v":2},{"$f":"ROW()","v":267},1]
[null,null,null,null,null,null,null,null,null,null,null,null,null,null,null,null,null,null,null,null,null,null,null,null,null,null,null,null,null,null,null,null,null,null,null,null,null,null,null,null,null,null,null,null,null,null,null,null,null,null,null,null,"COL0126777","Desarrollo Multimedia",{"$f":"COUNTIF(BA$4:BA268,BA268)","v":3},{"$f":"ROW()","v":268},1]
[null,null,null,null,null,null,null,null,null,null,null,null,null,null,null,null,null,null,null,null,null,null,null,null,null,null,null,null,null,null,null,null,null,null,null,null,null,null,null,null,null,null,null,null,null,null,null,null,null,null,null,null,"COL0126777","Narrativas digitales",{"$f":"COUNTIF(BA$4:BA269,BA269)","v":4},{"$f":"ROW()","v":269},1]
[null,null,null,null,null,null,null,null,null,null,null,null,null,null,null,null,null,null,null,null,null,null,null,null,null,null,null,null,null,null,null,null,null,null,null,null,null,null,null,null,null,null,null,null,null,null,null,null,null,null,null,null,"COL0142331","Competitividad industrial",{"$f":"COUNTIF(BA$4:BA270,BA270)","v":1},{"$f":"ROW()","v":270},1]
[null,null,null,null,null,null,null,null,null,null,null,null,null,null,null,null,null,null,null,null,null,null,null,null,null,null,null,null,null,null,null,null,null,null,null,null,null,null,null,null,null,null,null,null,null,null,null,null,null,null,null,null,"COL0142331","Innovación y educación en Ingenierěa",{"$f":"COUNTIF(BA$4:BA271,BA271)","v":2},{"$f":"ROW()","v":271},1]
[null,null,null,null,null,null,null,null,null,null,null,null,null,null,null,null,null,null,null,null,null,null,null,null,null,null,null,null,null,null,null,null,null,null,null,null,null,null,null,null,null,null,null,null,null,null,null,null,null,null,null,null,"COL0142331","Productividad industrial",{"$f":"COUNTIF(BA$4:BA272,BA272)","v":3},{"$f":"ROW()","v":272},1]
[null,null,null,null,null,null,null,null,null,null,null,null,null,null,null,null,null,null,null,null,null,null,null,null,null,null,null,null,null,null,null,null,null,null,null,null,null,null,null,null,null,null,null,null,null,null,null,null,null,null,null,null,"COL0142449","Bioética, derechos humanos y educación",{"$f":"COUNTIF(BA$4:BA273,BA273)","v":1},{"$f":"ROW()","v":273},1]
[null,null,null,null,null,null,null,null,null,null,null,null,null,null,null,null,null,null,null,null,null,null,null,null,null,null,null,null,null,null,null,null,null,null,null,null,null,null,null,null,null,null,null,null,null,null,null,null,null,null,null,null,"COL0142449","Cultura constitucional, paz y justicia transicional",{"$f":"COUNTIF(BA$4:BA274,BA274)","v":2},{"$f":"ROW()","v":274},1]
[null,null,null,null,null,null,null,null,null,null,null,null,null,null,null,null,null,null,null,null,null,null,null,null,null,null,null,null,null,null,null,null,null,null,null,null,null,null,null,null,null,null,null,null,null,null,null,null,null,null,null,null,"COL0142449","Política criminal, derecho penal y criminología",{"$f":"COUNTIF(BA$4:BA275,BA275)","v":3},{"$f":"ROW()","v":275},1]
[null,null,null,null,null,null,null,null,null,null,null,null,null,null,null,null,null,null,null,null,null,null,null,null,null,null,null,null,null,null,null,null,null,null,null,null,null,null,null,null,null,null,null,null,null,null,null,null,null,null,null,null,"COL0142449","Políticas públicas, derecho administrativo y desarrollo",{"$f":"COUNTIF(BA$4:BA276,BA276)","v":4},{"$f":"ROW()","v":276},1]
[null,null,null,null,null,null,null,null,null,null,null,null,null,null,null,null,null,null,null,null,null,null,null,null,null,null,null,null,null,null,null,null,null,null,null,null,null,null,null,null,null,null,null,null,null,null,null,null,null,null,null,null,"COL0142449","Propiedad intelectual y derechos de autor",{"$f":"COUNTIF(BA$4:BA277,BA277)","v":5},{"$f":"ROW()","v":277},1]
[null,null,null,null,null,null,null,null,null,null,null,null,null,null,null,null,null,null,null,null,null,null,null,null,null,null,null,null,null,null,null,null,null,null,null,null,null,null,null,null,null,null,null,null,null,null,null,null,null,null,null,null,"COL0142449","Sociología jurídica, derecho público y teoría jurídica",{"$f":"COUNTIF(BA$4:BA278,BA278)","v":6},{"$f":"ROW()","v":278},1]
[null,null,null,null,null,null,null,null,null,null,null,null,null,null,null,null,null,null,null,null,null,null,null,null,null,null,null,null,null,null,null,null,null,null,null,null,null,null,null,null,null,null,null,null,null,null,null,null,null,null,null,null,"COL0149359","Gestión de la educación y la academia",{"$f":"COUNTIF(BA$4:BA279,BA279)","v":1},{"$f":"ROW()","v":279},1]
[null,null,null,null,null,null,null,null,null,null,null,null,null,null,null,null,null,null,null,null,null,null,null,null,null,null,null,null,null,null,null,null,null,null,null,null,null,null,null,null,null,null,null,null,null,null,null,null,null,null,null,null,"COL0149359","Gestión de la salud publica",{"$f":"COUNTIF(BA$4:BA280,BA280)","v":2},{"$f":"ROW()","v":280},1]
[null,null,null,null,null,null,null,null,null,null,null,null,null,null,null,null,null,null,null,null,null,null,null,null,null,null,null,null,null,null,null,null,null,null,null,null,null,null,null,null,null,null,null,null,null,null,null,null,null,null,null,null,"COL0149359","Gestión de la ética y el conocimiento",{"$f":"COUNTIF(BA$4:BA281,BA281)","v":3},{"$f":"ROW()","v":281},1]
[null,null,null,null,null,null,null,null,null,null,null,null,null,null,null,null,null,null,null,null,null,null,null,null,null,null,null,null,null,null,null,null,null,null,null,null,null,null,null,null,null,null,null,null,null,null,null,null,null,null,null,null,"COL0151789","Aprovechamiento de residuos orgánicos",{"$f":"COUNTIF(BA$4:BA282,BA282)","v":1},{"$f":"ROW()","v":282},1]
[null,null,null,null,null,null,null,null,null,null,null,null,null,null,null,null,null,null,null,null,null,null,null,null,null,null,null,null,null,null,null,null,null,null,null,null,null,null,null,null,null,null,null,null,null,null,null,null,null,null,null,null,"COL0151789","Ecosostenibilidad en procesos de producción",{"$f":"COUNTIF(BA$4:BA283,BA283)","v":2},{"$f":"ROW()","v":283},1]
[null,null,null,null,null,null,null,null,null,null,null,null,null,null,null,null,null,null,null,null,null,null,null,null,null,null,null,null,null,null,null,null,null,null,null,null,null,null,null,null,null,null,null,null,null,null,null,null,null,null,null,null,"COL0151789","Estética del videojuego",{"$f":"COUNTIF(BA$4:BA284,BA284)","v":3},{"$f":"ROW()","v":284},1]
[null,null,null,null,null,null,null,null,null,null,null,null,null,null,null,null,null,null,null,null,null,null,null,null,null,null,null,null,null,null,null,null,null,null,null,null,null,null,null,null,null,null,null,null,null,null,null,null,null,null,null,null,"COL0151789","Ingeniería del terreno, geodesia y geofísica",{"$f":"COUNTIF(BA$4:BA285,BA285)","v":4},{"$f":"ROW()","v":285},1]
[null,null,null,null,null,null,null,null,null,null,null,null,null,null,null,null,null,null,null,null,null,null,null,null,null,null,null,null,null,null,null,null,null,null,null,null,null,null,null,null,null,null,null,null,null,null,null,null,null,null,null,null,"COL0151789","Museología",{"$f":"COUNTIF(BA$4:BA286,BA286)","v":5},{"$f":"ROW()","v":286},1]
[null,null,null,null,null,null,null,null,null,null,null,null,null,null,null,null,null,null,null,null,null,null,null,null,null,null,null,null,null,null,null,null,null,null,null,null,null,null,null,null,null,null,null,null,null,null,null,null,null,null,null,null,"COL0151789","Prevención y control de la contaminación",{"$f":"COUNTIF(BA$4:BA287,BA287)","v":6},{"$f":"ROW()","v":287},1]
[null,null,null,null,null,null,null,null,null,null,null,null,null,null,null,null,null,null,null,null,null,null,null,null,null,null,null,null,null,null,null,null,null,null,null,null,null,null,null,null,null,null,null,null,null,null,null,null,null,null,null,null,"COL0151789","Sensórica y sistemas inteligentes",{"$f":"COUNTIF(BA$4:BA288,BA288)","v":7},{"$f":"ROW()","v":288},1]
[null,null,null,null,null,null,null,null,null,null,null,null,null,null,null,null,null,null,null,null,null,null,null,null,null,null,null,null,null,null,null,null,null,null,null,null,null,null,null,null,null,null,null,null,null,null,null,null,null,null,null,null,"COL0152472","Autoinmunidad y Artritis Reumatoide",{"$f":"COUNTIF(BA$4:BA289,BA289)","v":1},{"$f":"ROW()","v":289},1]
[null,null,null,null,null,null,null,null,null,null,null,null,null,null,null,null,null,null,null,null,null,null,null,null,null,null,null,null,null,null,null,null,null,null,null,null,null,null,null,null,null,null,null,null,null,null,null,null,null,null,null,null,"COL0152472","Espondiloartritis",{"$f":"COUNTIF(BA$4:BA290,BA290)","v":2},{"$f":"ROW()","v":290},1]
[null,null,null,null,null,null,null,null,null,null,null,null,null,null,null,null,null,null,null,null,null,null,null,null,null,null,null,null,null,null,null,null,null,null,null,null,null,null,null,null,null,null,null,null,null,null,null,null,null,null,null,null,"COL0152319","Epidemiología Clínica",{"$f":"COUNTIF(BA$4:BA291,BA291)","v":1},{"$f":"ROW()","v":291},1]
[null,null,null,null,null,null,null,null,null,null,null,null,null,null,null,null,null,null,null,null,null,null,null,null,null,null,null,null,null,null,null,null,null,null,null,null,null,null,null,null,null,null,null,null,null,null,null,null,null,null,null,null,"COL0152319","Epidemiología General.",{"$f":"COUNTIF(BA$4:BA292,BA292)","v":2},{"$f":"ROW()","v":292},1]
[null,null,null,null,null,null,null,null,null,null,null,null,null,null,null,null,null,null,null,null,null,null,null,null,null,null,null,null,null,null,null,null,null,null,null,null,null,null,null,null,null,null,null,null,null,null,null,null,null,null,null,null,"COL0152319","Formación del Recurso Humano en Salud en Epidemiología y Salud Colectiva",{"$f":"COUNTIF(BA$4:BA293,BA293)","v":3},{"$f":"ROW()","v":293},1]
[null,null,null,null,null,null,null,null,null,null,null,null,null,null,null,null,null,null,null,null,null,null,null,null,null,null,null,null,null,null,null,null,null,null,null,null,null,null,null,null,null,null,null,null,null,null,null,null,null,null,null,null,"COL0152319","Las Tecnologías de la Información y de la comunicación en Epidemiología y Salud Colectiva",{"$f":"COUNTIF(BA$4:BA294,BA294)","v":4},{"$f":"ROW()","v":294},1]
[null,null,null,null,null,null,null,null,null,null,null,null,null,null,null,null,null,null,null,null,null,null,null,null,null,null,null,null,null,null,null,null,null,null,null,null,null,null,null,null,null,null,null,null,null,null,null,null,null,null,null,null,"COL0152319","Medicina tradicional complementaria.",{"$f":"COUNTIF(BA$4:BA295,BA295)","v":5},{"$f":"ROW()","v":295},1]
[null,null,null,null,null,null,null,null,null,null,null,null,null,null,null,null,null,null,null,null,null,null,null,null,null,null,null,null,null,null,null,null,null,null,null,null,null,null,null,null,null,null,null,null,null,null,null,null,null,null,null,null,"COL0178619","Administración, conservación, y manejo de Recursos Naturales Renovables",{"$f":"COUNTIF(BA$4:BA296,BA296)","v":1},{"$f":"ROW()","v":296},1]
[null,null,null,null,null,null,null,null,null,null,null,null,null,null,null,null,null,null,null,null,null,null,null,null,null,null,null,null,null,null,null,null,null,null,null,null,null,null,null,null,null,null,null,null,null,null,null,null,null,null,null,null,"COL0178619","Bioinnovación y educación",{"$f":"COUNTIF(BA$4:BA297,BA297)","v":2},{"$f":"ROW()","v":297},1]
[null,null,null,null,null,null,null,null,null,null,null,null,null,null,null,null,null,null,null,null,null,null,null,null,null,null,null,null,null,null,null,null,null,null,null,null,null,null,null,null,null,null,null,null,null,null,null,null,null,null,null,null,"COL0178619","Biología de poblaciones y evolutiva de plantas, animales y microorganismos",{"$f":"COUNTIF(BA$4:BA298,BA298)","v":3},{"$f":"ROW()","v":298},1]
[null,null,null,null,null,null,null,null,null,null,null,null,null,null,null,null,null,null,null,null,null,null,null,null,null,null,null,null,null,null,null,null,null,null,null,null,null,null,null,null,null,null,null,null,null,null,null,null,null,null,null,null,"COL0178619","Cambio climático",{"$f":"COUNTIF(BA$4:BA299,BA299)","v":4},{"$f":"ROW()","v":299},1]
[null,null,null,null,null,null,null,null,null,null,null,null,null,null,null,null,null,null,null,null,null,null,null,null,null,null,null,null,null,null,null,null,null,null,null,null,null,null,null,null,null,null,null,null,null,null,null,null,null,null,null,null,"COL0178619","Ecofisiología vegetal, animal y microbiana",{"$f":"COUNTIF(BA$4:BA300,BA300)","v":5},{"$f":"ROW()","v":300},1]
[null,null,null,null,null,null,null,null,null,null,null,null,null,null,null,null,null,null,null,null,null,null,null,null,null,null,null,null,null,null,null,null,null,null,null,null,null,null,null,null,null,null,null,null,null,null,null,null,null,null,null,null,"COL0178619","Servicios ecosistèmicos",{"$f":"COUNTIF(BA$4:BA301,BA301)","v":6},{"$f":"ROW()","v":301},1]
[null,null,null,null,null,null,null,null,null,null,null,null,null,null,null,null,null,null,null,null,null,null,null,null,null,null,null,null,null,null,null,null,null,null,null,null,null,null,null,null,null,null,null,null,null,null,null,null,null,null,null,null,"COL0179618","Biochips",{"$f":"COUNTIF(BA$4:BA302,BA302)","v":1},{"$f":"ROW()","v":302},1]
[null,null,null,null,null,null,null,null,null,null,null,null,null,null,null,null,null,null,null,null,null,null,null,null,null,null,null,null,null,null,null,null,null,null,null,null,null,null,null,null,null,null,null,null,null,null,null,null,null,null,null,null,"COL0179618","Diseño y fabricación de sistemas para producción de nanomateriales",{"$f":"COUNTIF(BA$4:BA303,BA303)","v":2},{"$f":"ROW()","v":303},1]
[null,null,null,null,null,null,null,null,null,null,null,null,null,null,null,null,null,null,null,null,null,null,null,null,null,null,null,null,null,null,null,null,null,null,null,null,null,null,null,null,null,null,null,null,null,null,null,null,null,null,null,null,"COL0179618","Nanofotónica, sensórica y nanotecnología",{"$f":"COUNTIF(BA$4:BA304,BA304)","v":3},{"$f":"ROW()","v":304},1]
[null,null,null,null,null,null,null,null,null,null,null,null,null,null,null,null,null,null,null,null,null,null,null,null,null,null,null,null,null,null,null,null,null,null,null,null,null,null,null,null,null,null,null,null,null,null,null,null,null,null,null,null,"COL0179618","Termo-electrónica",{"$f":"COUNTIF(BA$4:BA305,BA305)","v":4},{"$f":"ROW()","v":305},1]
[null,null,null,null,null,null,null,null,null,null,null,null,null,null,null,null,null,null,null,null,null,null,null,null,null,null,null,null,null,null,null,null,null,null,null,null,null,null,null,null,null,null,null,null,null,null,null,null,null,null,null,null,"COL0191078","Tomografia óptica coherente",{"$f":"COUNTIF(BA$4:BA306,BA306)","v":1},{"$f":"ROW()","v":306},1]
[null,null,null,null,null,null,null,null,null,null,null,null,null,null,null,null,null,null,null,null,null,null,null,null,null,null,null,null,null,null,null,null,null,null,null,null,null,null,null,null,null,null,null,null,null,null,null,null,null,null,null,null,"COL0191078","Enfermedades agudas y cronicas por exposición a agentes químicos y radiológicos",{"$f":"COUNTIF(BA$4:BA307,BA307)","v":2},{"$f":"ROW()","v":307},1]
[null,null,null,null,null,null,null,null,null,null,null,null,null,null,null,null,null,null,null,null,null,null,null,null,null,null,null,null,null,null,null,null,null,null,null,null,null,null,null,null,null,null,null,null,null,null,null,null,null,null,null,null,"COL0191078","Toxinología",{"$f":"COUNTIF(BA$4:BA308,BA308)","v":3},{"$f":"ROW()","v":308},1]
[]
[]
[]
[]
[]
[]
[]
[]
[]
[]
[]
[]
[]
[]
[]
[]
[]
[]
[]
[]
[]
[]
[]
[]
[]
[]
[]
[]
[]
[]
[]
[]
[]
[]
[]
[]
[]
[]
[]
[]
[]
[]
[]
[]
[]
[]
[]
[]
[]
[]
[]
[]
[]
[]
[]
[]
[]
[]
[]
[]
[]
[]
[]
[]
[]
[]
[]
[]
[]
[]
[]
[]
[]
[]
[]
[]
[]
[]
[]
[]
[]
[]
[]
[]
[]
[]
[]
[]
[]
[]
[]
[]
[]
[]
[]
[]
[]
[]
[]
[]
[]
[]
[]
[]
[]
[]
[]
[]
[]
[]
[]
[]
[]
[]
[]
[]
[]
[]
[]
[]
[]
[]
[]
[]
[]
[]
[]
[]
[]
[]
[]
[]
[]
[]
[]
[]
[]
[]
[]
[]
[]
[]
[]
[]
[]
[]
[]
[]
[]
[]
[]
[]
[]
[]
[]
[]
[]
[]
[]
[]
[]
[]
[]
[]
[]
[]
[]
[]
[]
[]
[]
[]
[]
[]
[]
[]
[]
[]
[]
[]
[]
[]
[]
[]
[]
[]
[]
[]
[]
[]
[]
[]
[]
[]
[]
[]
[]
[]
[]
[]
[]
[]
[]
[]
[]
[]
[]
[]
[]
[]
[]
[]
[]
[]
[]
[]
[]
[]
[]
[]
[]
[]
[]
[]
[]
[]
[]
[]
[]
[]
[]
[]
[]
[]
[]
[]
[]
[]
[]
[]
[]
[]
[]
[]
[]
[]
[]
[]
[]
[]
[]
[]
[]
[]
[]
[]
[]
[]
[]
[]
[]
[]
[]
[]
[]
[]
[]
[]
[]
[]
[]
[]
[]
[]
[]
[]
[]
[]
[]
[]
[]
[]
[]
[]
[]
[]
[]
[]
[]
[]
[]
[]
[]
[]
[]
[]
[]
[]
[]
[]
[]
[]
[]
[]
[]
[]
[]
[]
[]
[]
[]
[]
[]
[]
[]
[]
[]
[]
[]
[]
[]
[]
[]
[]
[]
[]
[]
[]
[]
[]
[]
[]
[]
[]
[]
[]
[]
[]
[]
[]
[]
[]
[]
[]
[]
[]
[]
[]
[]
[]
[]
[]
[]
[]
[]
[]
[]
[]
[]
[]
[]
[]
[]
[]
[]
[]
[]
[]
[]
[]
[]
[]
[]
[]
[]
[]
[]
[]
[]
[]
[]
[]
[]
[]
[]
[]
[]
[]
[]
[]
[]
[]
[]
[]
[]
[]
[]
[]
[]
[]
[]
[]
[]
[]
[]
[]
[]
[]
[]
[]
[]
[]
[]
[]
[]
[]
[]
[]
[]
[]
[]
[]
[]
[]
[]
[]
[]
[]
[]
[]
[]
[]
[]
[]
[]
[]
[]
[]
[]
[]
[]
[]
[]
[]
[]
[]
[]
[]
[]
[]
[]
[]
[]
[]
[]
[]
[]
[]
[]
[]
[]
[]
[]
[]
[]
[]
[]
[]
[]
[]
[]
[]
[]
[]
[]
[]
[]
[]
[]
[]
[]
[]
[]
[]
[]
[]
[]
[]
[]
[]
[]
[]
[]
[]
[]
[]
[]
[]
[]
[]
[]
[]
[]
[]
[]
[]
[]
[]
[]
[]
[]
[]
[]
[]
[]
[]
[]
[]
[]
[]
[]
[]
[]
[]
[]
[]
[]
[]
[]
[]
[]
[]
[]
[]
[]
[]
[]
[]
[]
[]
[]
[]
[]
[]
[]
[]
[]
[]
[]
[]
[]
[]
[]
[]
[]
[]
[]
[]
[]
[]
[]
[]
[]
[]
[]
[]
[]
[]
[]
[]
[]
[]
[]
[]
[]
[]
[]
[]
[]
[]
[]
[]
[]
[]
[]
[]
[]
[]
[]
[]
[]
[]
[]
[]
[]
[]
[]
[]
[]
[]
[]
[]
[]
[]
[]
[]
[]
[]
[]
[]
[]
[]
[]
[]
[]
[]
[]
[]
[]
[]
[]
[]
[]
[]
[]
[]
[]
[]
[]
[]
[]
[]
[]
[]
[]
[]
[]
[]
[]
[]
[]
[]
[]
[]
[]
[]
[]
[]
[]
[]
[]
[]
[]
[]
[]
[]
[]
[]
[]
[]
[]
[]
[]
[]
[]
[]
[]
[]
[]
[]
[]
[]
[]
[]
[]
[]
[]
[]
[]
[]
[]
[]
[]
[]
[]
[]
[]
[]
[]
[]
[]
[]
[]
[]
[]
[]
[]
[]
[]
[]
[]
[]
[]
[]
[]
[]
[]
[]
[]
[]
[]
[]
[]
[]
[]
[]
[]
[]
[]
[]
[]
[]
[]
[]
[]
[]
[]
[]
[]
[]
[]
[]
[]
[]
[]
[]
[]
[]
[]
[]
[]
[]
[]
[]
[]
[]
[]
[]
[]
[]
[]
[]
[]
[]
[]
[]
[]
[]
[]
[]
[]
[]
[]
[]
[]
[]
[]
[]
[]
[]
[]
[]
[]
[]
[]
[]
[]
[]
[]
[]
[]
[]
[]
[]
[]
[]
[]
[]
[]
[]
[]
[]
[]
[]
[]
[]
[]
[]
[]
[]
[]
[]
[]
[]
[]
[]
[]
[]
[]
[]
[]
[]
[]
[]
[]
[]
[]
[]
[]
[]
[]
[]
[]
[]
[]
[]
[]
[]
[]
[]
[]
[]
[]
[]
[]
[]
[]
[]
[]
[]
[]
[]
[]
[]
[]
[]
[]
[]
[]
[]
[]
[]
[]
[]
[]
[]
[]
[]
[]
[]
[]
[]
[]
[]
[]
[]
[]
[]
[]
[]
[]
[]
[]
[]
[]
[]
[]
[]
[]
[]
[]
[]
[]
[]
[]
[]
[]
[]
[]
[]
[]
[]
[]
[]
[]
[]
[]
[]
[]
[]
[]
[]
[]
[]
[]
[]
[]
[]
[]
[]
[]
[]
[]
[]
[]
[]
[]
[]
[]
[]
[]
[]
[]
[]
[]
[]
[]
[]
[]
[]
[]
[]
[]
[]
[]
[]
[]
[]
[]
[]
[]
[]
[]
[]
[]
[]
[]
[]
[]
[]
[]
[]
[]
[]
[]
[]
[]
[]
[]
[]
[]
[]
[]
[]
[]
[]
[]
[]
[]
[]
[]
[]
[]
[]
[]
[]
[]
[]
[]
[]
[]
[]
[]
[]
[]
[]
[]
[]
[]
[]
[]
[]
[]
[]
[]
[]
[]
[]
[]
[]
[]
[]
[]
[]
[]
[]
[]
[]
[]
[]
[]
[]
[]
[]
[]
[]
[]
[]
[]
[]
[]
[]
[]
[]
[]
[]
[]
[]
[]
[]
[]
[]
[]
[]
[]
[]
[]
[]
[]
[]
[]
[]
[]
[]
[]
[]
[]
[]
[]
[]
[]
[]
[]
[]
[]
[]
[]
[]
[]
[]
[]
[]
[]
[]
[]
[]
[]
[]
[]
[]
[]
[]
[]
[]
[]
[]
[]
[]
[]
[]
[]
[]
[]
[]
[]
[]
[]
[]
[]
[]
[]
[]
[]
[]
[]
[]
[]
[]
[]
[]
[]
[]
[]
[]
[]
[]
[]
[]
[]
[]
[]
[]
[]
[]
[]
[]
[]
[]
[]
[]
[]
[]
[]
[]
[]
[]
[]
[]
[]
[]
[]
[]
[]
[]
[]
[]
[]
[]
[]
[]
[]
[]
[]
[]
[]
[]
[]
[]
[]
[]
[]
[]
[]
[]
[]
[]
[]
[]
[]
[]
[]
[]
[]
[]
[]
[]
[]
[]
[]
[]
[]
[]
[]
[]
[]
[]
[]
[]
[]
[]
[]
[]
[]
[]
[]
[]
[]
[]
[]
[]
[]
[]
[]
[]
[]
[]
[]
[]
[]
[]
[]
[]
[]
[]
[]
[]
[]
[]
[]
[]
[]
[]
[]
[]
[]
[]
[]
[]
[]
[]
[]
[]
[]
[]
[]
[]
[]
[]
[]
[]
[]
[]
[]
[]
[]
[]
[]
[]
[]
[]
[]
[]
[]
[]
[]
[]
[]
[]
[]
[]
[]
[]
[]
[]
[]
[]
[]
[]
[]
[]
[]
[]
[]
[]
[]
[]
[]
[]
[]
[]
[]
[]
[]
[]
[]
[]
[]
[]
[]
[]
[]
[]
[]
[]
[]
[]
[]
[]
[]
[]
[]
[]
[]
[]
[]
[]
[]
[]
[]
[]
[]
[]
[]
[]
[]
[]
[]
[]
[]
[]
[]
[]
[]
[]
[]
[]
[]
[]
[]
[]
[]
[]
[]
[]
[]
[]
[]
[]
[]
[]
[]
[]
[]
[]
[]
[]
[]
[]
[]
[]
[]
[]
[]
[]
[]
[]
[]
[]
[]
[]
[]
[]
[]
[]
[]
[]
[]
[]
[]
[]
[]
[]
[]
[]
[]
[]
[]
[]
[]
[]
[]
[]
[]
[]
[]
[]
[]
[]
[]
[]
[]
[]
[]
[]
[]
[]
[]
[]
[]
[]
[]
[]
[]
[]
[]
[]
[]
[]
[]
[]
[]
[]
[]
[]
[]
[]
[]
[]
[]
[]
[]
[]
[]
[]
[]
[]
[]
[]
[]
[]
[]
[]
[]
[]
[]
[]
[]
[]
[]
[]
[]
[]
[]
[]
[]
[]
[]
[]
[]
[]
[]
[]
[]
[]
[]
[]
[]
[]
[]
[]
[]
[]
[]
[]
[]
[]
[]
[]
[]
[]
[]
[]
[]
[]
[]
[]
[]
[]
[]
[]
[]
[]
[]
[]
[]
[]
[]
[]
[]
[]
[]
[]
[]
[]
[]
[]
[]
[]
[]
[]
[]
[]
[]
[]
[]
[]
[]
[]
[]
[]
[]
[]
[]
[]
[]
[]
[]
[]
[]
[]
[]
[]
[]
[]
[]
[]
[]
[]
[]
[]
[]
[]
[]
[]
[]
[]
[]
[]
[]
[]
[]
[]
[]
[]
[]
[]
[]
[]
[]
[]
[]
[]
[]
[]
[]
[]
[]
[]
[]
[]
[]
[]
[]
[]
[]
[]
[]
[]
[]
[]
[]
[]
[]
[]
[]
[]
[]
[]
[]
[]
[]
[]
[]
[]
[]
[]
[]
[]
[]
[]
[]
[]
[]
[]
[]
[]
[]
[]
[]
[]
[]
[]
[]
[]
[]
[]
[]
[]
[]
[]
[]
[]
[]
[]
[]
[]
[]
[]
[]
[]
[]
[]
[]
[]
[]
[]
[]
[]
[]
[]
[]
[]
[]
[]
[]
[]
[]
[]
[]
[]
[]
[]
[]
[]
[]
[]
[]
[]
[]
[]
[]
[]
[]
[]
[]
[]
[]
[]
[]
[]
[]
[]
[]
[]
[]
[]
[]
[]
[]
[]
[]
[]
[]
[]
[]
[]
[]
[]
[]
[]
[]
[]
[]
[]
[]
[]
[]
[]
[]
[]
[]
[]
[]
[]
[]
[]
[]
[]
[]
[]
[]
[]
[]
[]
[]
[]
[null,null,null,null,null,null,null,null,null,null,null,null,null,null,null,null,null,null,null,null,null,null,null,null,null,null,null,null,null,null,null,null,null,null,null,null,null,null,null,null,null,null,null,null,null,null,null,null,null,null,null,null,null,null,null,null,null,null,null,null,null,null,null,null,null,null,null,null,null,null,null,null,null,null,null,null,null,null,null,null,null,null,null,null,null,null,null,null,null,null,null,null,null,null,null,null,null,null,null,null,null,null,null,null,null,null,null,null,null,null,null,null,null,null,null,null,null,null,null,null,null,null,null,null,null,null,null,null,null,null,null,null,null,null,null,null,null,null,null,null,null,null,null,null,null,null,null,null,null,null,null,null,null,null,null,null,null,null,null,null,null,null,null,null,null,null,null,null,null,null,null,null,null,null,null,null,null,null,null,null,null,null,null,null,null,null,null,null,null,null,null,null,null,null,null,null,null,null,null,null,null,null,null,null,null,null,null,null,null,null,null,null,null,null,null,null,null,null,null,null,null,null,null,null,null,null,null,null,null,null,null,null,null,null,null,null,null,null,null,null,null,null,null,null,null,null,null,null,null,null,null,null,null,null,null,null,null,null,null,null,null,null,null,null,null,null,null,null,null,null,null,null,null,null,null,null,null,null,null,null,null,null,null,null,null,null,null,null,null,null,null,null,null,null,null,null,null,null,null,null,null,null,null,null,null,null,null,null,null,null,null,null,null,null,null,null,null,null,null,null,null,null,null,null,null,null,null,null,null,null,null,null,null,null,null,null,null,null,null,null,null,null,null,null,null,null,null,null,null,null,null,null,null,null,null,null,null,null,null,null,null,null,null,null,null,null,null,null,null,null,null,null,null,null,null,null,null,null,null,null,null,null,null,null,null,null,null,null,null,null,null,null,null,null,null,null,null,null,null,null,null,null,null,null,null,null,null,null,null,null,null,null,null,null,null,null,null,null,null,null,null,null,null,null,null,null,null,null,null,null,null,null,null,null,null,null,null,null,null,null,null,null,null,null,null,null,null,null,null,null,null,null,null,null,null,null,null,null,null,null,null,null,null,null,null,null,null,null,null,null,null,null,null,null,null,null,null,null,null,null,null,null,null,null,null,null,null,null,null,null,null,null,null,null,null,null,null,null,null,null,null,null,null,null,null,null,null,null,null,null,null,null,null,null,null,null,null,null,null,null,null,null,null,null,null,null,null,null,null,null,null,null,null,null,null,null,null,null,null,null,null,null,null,null,null,null,null,null,null,null,null,null,null,null,null,null,null,null,null,null,null,null,null,null,null,null,null,null,null,null,null,null,null,null,null,null,null,null,null,null,null,null,null,null,null,null,null,null,null,null,null,null,null,null,null,null,null,null,null,null,null,null,null,null,null,null,null,null,null,null,null,null,null,null,null,null,null,null,null,null,null,null,null,null,null,null,null,null,null,null,null,null,null,null,null,null,null,null,null,null,null,null,null,"Luis.chirivi"]
[null,null,null,null,null,null,null,null,null,null,null,null,null,null,null,null,null,null,null,null,null,null,null,null,null,null,null,null,null,null,null,null,null,null,null,null,null,null,null,null,null,null,null,null,null,null,null,null,null,null,null,null,null,null,null,null,null,null,null,null,null,null,null,null,null,null,null,null,null,null,null,null,null,null,null,null,null,null,null,null,null,null,null,null,null,null,null,null,null,null,null,null,null,null,null,null,null,null,null,null,null,null,null,null,null,null,null,null,null,null,null,null,null,null,null,null,null,null,null,null,null,null,null,null,null,null,null,null,null,null,null,null,null,null,null,null,null,null,null,null,null,null,null,null,null,null,null,null,null,null,null,null,null,null,null,null,null,null,null,null,null,null,null,null,null,null,null,null,null,null,null,null,null,null,null,null,null,null,null,null,null,null,null,null,null,null,null,null,null,null,null,null,null,null,null,null,null,null,null,null,null,null,null,null,null,null,null,null,null,null,null,null,null,null,null,null,null,null,null,null,null,null,null,null,null,null,null,null,null,null,null,null,null,null,null,null,null,null,null,null,null,null,null,null,null,null,null,null,null,null,null,null,null,null,null,null,null,null,null,null,null,null,null,null,null,null,null,null,null,null,null,null,null,null,null,null,null,null,null,null,null,null,null,null,null,null,null,null,null,null,null,null,null,null,null,null,null,null,null,null,null,null,null,null,null,null,null,null,null,null,null,null,null,null,null,null,null,null,null,null,null,null,null,null,null,null,null,null,null,null,null,null,null,null,null,null,null,null,null,null,null,null,null,null,null,null,null,null,null,null,null,null,null,null,null,null,null,null,null,null,null,null,null,null,null,null,null,null,null,null,null,null,null,null,null,null,null,null,null,null,null,null,null,null,null,null,null,null,null,null,null,null,null,null,null,null,null,null,null,null,null,null,null,null,null,null,null,null,null,null,null,null,null,null,null,null,null,null,null,null,null,null,null,null,null,null,null,null,null,null,null,null,null,null,null,null,null,null,null,null,null,null,null,null,null,null,null,null,null,null,null,null,null,null,null,null,null,null,null,null,null,null,null,null,null,null,null,null,null,null,null,null,null,null,null,null,null,null,null,null,null,null,null,null,null,null,null,null,null,null,null,null,null,null,null,null,null,null,null,null,null,null,null,null,null,null,null,null,null,null,null,null,null,null,null,null,null,null,null,null,null,null,null,null,null,null,null,null,null,null,null,null,null,null,null,null,null,null,null,null,null,null,null,null,null,null,null,null,null,null,null,null,null,null,null,null,null,null,null,null,null,null,null,null,null,null,null,null,null,null,null,null,null,null,null,null,null,null,null,null,null,null,null,null,null,null,null,null,null,null,null,null,null,null,null,null,null,null,null,null,null,null,null,null,null,null,null,null,null,null,null,null,null,null,null,null,null,null,null,null,null,null,null,null,null,null,null,null,null,null,null,null,null,null,null,null,null,null,null,null,null,null,null,"Luis.chirivi"]

{"sheet":"General","index":1,"n_rows":136,"n_cols":24,"rows_kept":136,"cut":false,"hidden":false,"merged":[[40,2,40,8],[30,2,30,8],[31,2,31,6],[33,7,33,8],[39,7,39,8],[37,2,37,6],[38,2,38,6],[26,2,26,8],[32,2,32,6],[34,2,34,8],[36,2,36,8],[24,2,24,8],[55,1,55,8],[42,2,42,8],[46,2,46,8],[43,2,43,6],[44,2,44,6],[45,7,45,8],[18,2,18,8],[22,2,22,8],[1,1,2,6],[12,2,12,5],[12,7,12,8],[8,1,8,8],[9,2,9,5],[9,7,9,8],[6,2,6,5],[6,7,6,8],[10,2,10,5],[10,7,10,8],[16,2,16,8],[20,2,20,8]]}
[1,null,null,null,null,null,null,{"$f":"IFERROR(VLOOKUP($C$7,Dt!AD81:AE82,2,0),\"POS\")","v":"POS"},{"$f":"IFERROR(VLOOKUP($C$13,Dt!$AC$6:$AD$13,2,0),\"NT\")","v":"NT"},null,null,null,null,null,null,null,null,null,null,null,null,null,null,"Número de Paginas del documento final , se puede ajustar."]
[null,"PRESENTACIÓN DE PROYECTOS \nEN INVESTIGACIÓN DE POSGRADOS",null,null,null,null,null,"Fecha de Emisión: 2018/03/07","IN-IV-F-14",null,null,null,null,null,null,null,null,null,{"$f":"S3","v":"."},null,null,null,null,11]
[null,null,null,null,null,null,null,"Revision N°:\n3",{"$f":"\"Página \"&A1&\" de \"&Dt_TPG","v":"Página 1 de 11"},null,null,null,null,null,null,null,null,null,"."]
[]
["1.-","Información general del proyecto.",null,null,null,null,null,null,{"$f":"\"Vrs.- \"&TEXT(DAY($U$5),\"00\")&\".\"&(TEXT(MONTH($U$5),\"00\"))&U7","v":"Vrs.- 24.10"},null,null,null,null,null,null,null,null,null,"Fecha Actualización ",null,{"$f":"I60","v":"2019-10-24"},null,null,"Hoy es "]
[]
[null,"Convocatoria:","Fortalecimiento Posgrados",null,null,null,"Código o Radicado",null,null,null,null,null,null,null,null,null,null,null,null,null,"",null,null,{"$f":"NOW()","v":"2019-11-07T14:56:36.160"}]
[null,null,null,null,null,null,null,null,null,null,null,null,null,null,null,null,null,null,"Documento de Prueba 12 Agosto 2019"]
[null,"Formato: actualizado a 06 Nov 2019",null,null,null,null,null,null,null,null,null,null,null,null,null,null,null,null,{"$f":"Cel_Fac","v":"NT"}]
[null,"Líder: ",null,null,null,null,"Teléfonos :",null,null,null,null,null,null,null,null,null,null,null,null,null,null,null,null,"2017-03-02"]
[null,"Correo:",null,null,null,null," Sede:"]
[null,"Este proyecto es continuación de un proyecto anterior",null,null,null,"No","El proyecto tiene o ha tenido financición",null,"No"]
[null,"Facultad ",null,null,null,null,"Programa",null,null,null,null,"Clasificación Grupo Máximo"]
[]
["2.-","Información de Grupos de Investigación UMNG asociados al proyecto"]
[]
[null,"Grupo Principal",null,null,null,null,null,null,null,null,null,{"$f":"IFERROR(VLOOKUP($C17,Dt!$AP$3:$AQ$73,2,0),0)","v":0}]
[null,"Link Colciencias:",{"$f":"IFERROR(VLOOKUP(L17,Dt!$AQ$3:$AS$73,3,0),\"\")","v":""},null,null,null,null,null,{"$f":"IFERROR(VLOOKUP(L17,Dt!$AQ$3:$AS$73,2,0),\"\")","v":""},null,null,{"$f":"COUNTIF($O$7:$O$9,I18)","v":3}]
[null,"Lineas",null,null,null,null,null,null,null,null,null,{"$f":"IFERROR(\"DT!\"&VLOOKUP($C17,Dt!$AP$3:$AT$73,5,0),0)","v":0}]
[]
[{"$f":"IFERROR(VLOOKUP(D21,Dt!$AP$3:$AU$73,5,0),\"\")","v":""},"Grupo Aliado 1",null,null,null,null,null,null,null,null,null,{"$f":"IFERROR(VLOOKUP($C21,Dt!$AP$3:$AQ$73,2,0),0)","v":0}]
[null,"Link Colciencias:",{"$f":"IFERROR(VLOOKUP(L21,Dt!$AQ$3:$AS$73,3,0),\"\")","v":""},null,null,null,null,null,{"$f":"IFERROR(VLOOKUP(L21,Dt!$AQ$3:$AS$73,2,0),\"\")","v":""}]
[{"$f":"IFERROR(VLOOKUP($C23,Dt!$BB$3:$BD$293,3,0),\"\")","v":""},"Lineas",null,null,null,null,null,null,null,null,null,{"$f":"IFERROR(\"DT!\"&VLOOKUP($C21,Dt!$AP$3:$AT$73,5,0),0)","v":0}]
[]
[null,"Grupo Aliado 2",null,null,null,null,null,null,null,null,null,{"$f":"IFERROR(VLOOKUP($C25,Dt!$AP$3:$AQ$73,2,0),0)","v":0}]
[null,"Link Colciencias:",{"$f":"IFERROR(VLOOKUP(L25,Dt!$AQ$3:$AS$73,3,0),\"\")","v":""},null,null,null,null,null,{"$f":"IFERROR(VLOOKUP(L25,Dt!$AQ$3:$AS$73,2,0),\"\")","v":""}]
[null,"Lineas",null,null,null,null,null,null,null,null,null,{"$f":"IFERROR(\"DT!\"&VLOOKUP($C25,Dt!$AP$3:$AT$73,5,0),0)","v":0}]
[]
["3.-","Instituciones Externas participantes.",null,null,null,null,null,"No. de Instituciones: -->",0,null,null,{"$f":"LEN(L17&L21&L25)","v":3}]
[null,null,"s"]
[null,"Nombre 1"]
[null,"Grupo 1",null,null,null,null,null,"Clasificación"]
[null,"Investigadores",null,null,null,null,null,"Presupuesto en \nplan de compras:"]
[null," Nivel o alcance institucional de la entidad externa es :",null,null,null,null,null,{"$f":"$M$54","v":"."}]
[null,"Link Colciencias:",null,null,null,null,null,null,null,null,null,{"$f":"IFERROR(SEARCH(M35,C35,1),0)","v":0},"http://scienti.colciencias.gov.co:8085"]
[]
[null,"Nombre 2"]
[null,"Grupo 2",null,null,null,null,null,"Clasificación"]
[null,"Investigadores",null,null,null,null,null,"Presupuesto en \nplan de compras:"]
[null," Nivel o alcance institucional de la entidad externa es :",null,null,null,null,null,{"$f":"IF(I39>0,$M$54,\".\")","v":"."}]
[null,"Link Colciencias:",null,null,null,null,null,null,null,null,null,{"$f":"IFERROR(SEARCH(M41,C41,1),0)","v":0},"http://scienti.colciencias.gov.co:8085"]
[]
[null,"Nombre3"]
[null,"Grupo 3",null,null,null,null,null,"Clasificación"]
[null,"Investigadores",null,null,null,null,null,"Presupuesto en \nplan de compras:"]
[null," Nivel o alcance institucional de la entidad externa es :",null,null,null,null,null,{"$f":"IF(I45>0,$M$54,\".\")","v":"."}]
[null,"Link Colciencias:",null,null,null,null,null,null,null,null,null,{"$f":"IFERROR(SEARCH(M47,C47,1),0)","v":0},"http://scienti.colciencias.gov.co:8085"]
[]
[null,"Datos comprometidos."]
[]
[null,"Productividad  comprometida",null,{"$f":"IF(K51>0,\"Error revice productos \",V_Max)","v":0},null,"$ Vicein:",{"$f":"IF(D51>0,Presupuesto!F141,0)","v":0},null,{"$f":"\"Limite en millones \"&Integrantes!T4","v":"Limite en millones 50"},null,{"$f":"IF(Productos!P56>0,1,0)","v":0}]
[null,"* Las areas sombreadas de color azul no son editables ",null,null,null,null,null,null,null,null,null,{"$f":"SUM(I33,I39,I45)","v":0},"<-- Sumatoria Presupuesto de entidades externas en Pg General"]
[null,null,null,null,null,null,null,null,null,null,null,{"$f":"Presupuesto!I141","v":0},"<-- Sumatoria Presupuesto de entidades externas en Pg Presupuesto"]
[null,"Observaciones o recomendaciones (no valida para calificación de Propuesta):",null,null,null,null,null,null,null,null,null,{"$f":"L52-L53","v":0},{"$f":"IF(L54=0,\".\",\"   Pendiente validar dif. $\"&TEXT(L54,\"###.###.###\"))","v":"."}]
[]
[]
[]
[null,"Calificación del formato"]
[]
[null,"Observaciones : Ajustes y actualizaciones realizadas al formato.",null,null,null,null,null,null,{"$f":"MAX(I62:I201)","v":"2019-10-24"},null,null,"Pts. Pruba",10]
[]
[null,"No","Actualización, ajustes y cambios.",null,null,null,null,null,"Fecha"]
[null,{"$f":"ROW()-62","v":1},"Actualización del formato con parametros 2019 para vigencia 2020",null,null,null,null,null,"2019-10-20"]
[null,{"$f":"ROW()-62","v":2},"Ajuste  de condiciones para la convocatoria ",null,null,null,null,null,"2019-10-24"]
[null,3,"Ajuste hoja de presupuesto con los rubros pendientes de incluir",null,null,null,null,null,null,null,null,null,null,null,"Listado de Grupos de investigacion UMNG 2019"]
[null,4,0,null,null,null,null,null,null,null,null,null,null,"No","Grupo"]
[null,5,0,null,null,null,null,null,null,null,null,null,null,44,{"$f":"VLOOKUP($N67,Dt!$AN$3:$AR$73,3,0)","v":"ACCEDER"}]
[null,6,0,null,null,null,null,null,null,null,null,null,null,8,{"$f":"VLOOKUP($N68,Dt!$AN$3:$AR$73,3,0)","v":"Agrobiología de especies vegetales promisorias de clima frío"}]
[null,7,0,null,null,null,null,null,null,null,null,null,null,34,{"$f":"VLOOKUP($N69,Dt!$AN$3:$AR$73,3,0)","v":"BioethicsGroup"}]
[null,8,0,null,null,null,null,null,null,null,null,null,null,66,{"$f":"VLOOKUP($N70,Dt!$AN$3:$AR$73,3,0)","v":"BioGenEtica & BioDerecho"}]
[null,9,0,null,null,null,null,null,null,null,null,null,null,53,{"$f":"VLOOKUP($N71,Dt!$AN$3:$AR$73,3,0)","v":"BONE"}]
[null,10,0,null,null,null,null,null,null,null,null,null,null,52,{"$f":"VLOOKUP($N72,Dt!$AN$3:$AR$73,3,0)","v":"CATCH"}]
[null,11,0,null,null,null,null,null,null,null,null,null,null,59,{"$f":"VLOOKUP($N73,Dt!$AN$3:$AR$73,3,0)","v":"Células Stem Adultas"}]
[null,12,0,null,null,null,null,null,null,null,null,null,null,33,{"$f":"VLOOKUP($N74,Dt!$AN$3:$AR$73,3,0)","v":"Cultura y Desarrollo Humano"}]
[null,13,0,null,null,null,null,null,null,null,null,null,null,41,{"$f":"VLOOKUP($N75,Dt!$AN$3:$AR$73,3,0)","v":"DAVINCI"}]
[null,14,0,null,null,null,null,null,null,null,null,null,null,4,{"$f":"VLOOKUP($N76,Dt!$AN$3:$AR$73,3,0)","v":"Desarrollo e integración de estrategias alternativas para la protección de cultivos de importancia económica, con énfasis en control biológico."}]
[null,15,0,null,null,null,null,null,null,null,null,null,null,13,{"$f":"VLOOKUP($N77,Dt!$AN$3:$AR$73,3,0)","v":"DIVERSITAS"}]
[null,16,0,null,null,null,null,null,null,null,null,null,null,11,{"$f":"VLOOKUP($N78,Dt!$AN$3:$AR$73,3,0)","v":"ECMU (Evaluacion en Competencias y Matemáticas Universitarias)"}]
[null,17,0,null,null,null,null,null,null,null,null,null,null,65,{"$f":"VLOOKUP($N79,Dt!$AN$3:$AR$73,3,0)","v":"EDUMECIS"}]
[null,18,0,null,null,null,null,null,null,null,null,null,null,48,{"$f":"VLOOKUP($N80,Dt!$AN$3:$AR$73,3,0)","v":"Energia alternativa, Centro Multidisciplinario de Investigación"}]
[null,19,0,null,null,null,null,null,null,null,null,null,null,64,{"$f":"VLOOKUP($N81,Dt!$AN$3:$AR$73,3,0)","v":"Epidemiología molecular de enfermedades endocrinas"}]
[null,20,0,null,null,null,null,null,null,null,null,null,null,69,{"$f":"VLOOKUP($N82,Dt!$AN$3:$AR$73,3,0)","v":"Epidemiología y Salud Colectiva "}]
[null,21,0,null,null,null,null,null,null,null,null,null,null,42,{"$f":"VLOOKUP($N83,Dt!$AN$3:$AR$73,3,0)","v":"Estructuras y sísmica"}]
[null,null,null,null,null,null,null,null,null,null,null,null,null,29,{"$f":"VLOOKUP($N84,Dt!$AN$3:$AR$73,3,0)","v":"Estudios Internacionales y Políticos"}]
[null,null,null,null,null,null,null,null,null,null,null,null,null,5,{"$f":"VLOOKUP($N85,Dt!$AN$3:$AR$73,3,0)","v":"Fitopatologia molecular"}]
[null,null,null,null,null,null,null,null,null,null,null,null,null,1,{"$f":"VLOOKUP($N86,Dt!$AN$3:$AR$73,3,0)","v":"Fitoplasmas y Virus"}]
[null,null,null,null,null,null,null,null,null,null,null,null,null,67,{"$f":"VLOOKUP($N87,Dt!$AN$3:$AR$73,3,0)","v":"GAFRED"}]
[null,null,null,null,null,null,null,null,null,null,null,null,null,47,{"$f":"VLOOKUP($N88,Dt!$AN$3:$AR$73,3,0)","v":"GAV"}]
[null,null,null,null,null,null,null,null,null,null,null,null,null,28,{"$f":"VLOOKUP($N89,Dt!$AN$3:$AR$73,3,0)","v":"GECS (Grupo de Investigación en Contabilidad y Sociedad)"}]
[null,null,null,null,null,null,null,null,null,null,null,null,null,36,{"$f":"VLOOKUP($N90,Dt!$AN$3:$AR$73,3,0)","v":"GEOTECNIA"}]
[null,null,null,null,null,null,null,null,null,null,null,null,null,40,{"$f":"VLOOKUP($N91,Dt!$AN$3:$AR$73,3,0)","v":"GIDAM"}]
[null,null,null,null,null,null,null,null,null,null,null,null,null,49,{"$f":"VLOOKUP($N92,Dt!$AN$3:$AR$73,3,0)","v":"GI-iTEC - Grupo de Investigación e innovación Tecnológica en Electrónica y Comunicaciones"}]
[null,null,null,null,null,null,null,null,null,null,null,null,null,46,{"$f":"VLOOKUP($N93,Dt!$AN$3:$AR$73,3,0)","v":"GISSIC: Grupo de Investigacion en Seguridad y Sistemas de Comunicaciones"}]
[null,null,null,null,null,null,null,null,null,null,null,null,null,51,{"$f":"VLOOKUP($N94,Dt!$AN$3:$AR$73,3,0)","v":"GREST"}]
[null,null,null,null,null,null,null,null,null,null,null,null,null,16,{"$f":"VLOOKUP($N95,Dt!$AN$3:$AR$73,3,0)","v":"Grupo de Derecho Privado"}]
[null,null,null,null,null,null,null,null,null,null,null,null,null,15,{"$f":"VLOOKUP($N96,Dt!$AN$3:$AR$73,3,0)","v":"Grupo de derecho público "}]
[null,null,null,null,null,null,null,null,null,null,null,null,null,12,{"$f":"VLOOKUP($N97,Dt!$AN$3:$AR$73,3,0)","v":"Grupo de Docencia e Investigación en Física"}]
[null,null,null,null,null,null,null,null,null,null,null,null,null,6,{"$f":"VLOOKUP($N98,Dt!$AN$3:$AR$73,3,0)","v":"Grupo de Ecotoxicología, Evolución, Medio ambiente y conservación (E = mc2)"}]
[null,null,null,null,null,null,null,null,null,null,null,null,null,27,{"$f":"VLOOKUP($N99,Dt!$AN$3:$AR$73,3,0)","v":"Grupo de estudios contemporáneos en contabilidad, gestión y organizaciones - GECCGO"}]
[null,null,null,null,null,null,null,null,null,null,null,null,null,25,{"$f":"VLOOKUP($N100,Dt!$AN$3:$AR$73,3,0)","v":"Grupo de Estudios en Ciencias Económicas - CIE"}]
[null,null,null,null,null,null,null,null,null,null,null,null,null,26,{"$f":"VLOOKUP($N101,Dt!$AN$3:$AR$73,3,0)","v":"Grupo de Estudios Macroeconómicos"}]
[null,null,null,null,null,null,null,null,null,null,null,null,null,68,{"$f":"VLOOKUP($N102,Dt!$AN$3:$AR$73,3,0)","v":"Grupo de inmunología Clínica Aplicada (GICA)"}]
[null,null,null,null,null,null,null,null,null,null,null,null,null,2,{"$f":"VLOOKUP($N103,Dt!$AN$3:$AR$73,3,0)","v":"Grupo de investigación en Biodiversidad y ecología de abejas silvestres"}]
[null,null,null,null,null,null,null,null,null,null,null,null,null,58,{"$f":"VLOOKUP($N104,Dt!$AN$3:$AR$73,3,0)","v":"Grupo de Investigacion en Dermatologia HMC"}]
[null,null,null,null,null,null,null,null,null,null,null,null,null,7,{"$f":"VLOOKUP($N105,Dt!$AN$3:$AR$73,3,0)","v":"Grupo de Investigación en Hidrobiología Aplicada (HIDROBIA)"}]
[null,null,null,null,null,null,null,null,null,null,null,null,null,35,{"$f":"VLOOKUP($N106,Dt!$AN$3:$AR$73,3,0)","v":"Grupo de Investigación en Multimedia -GIM-"}]
[null,null,null,null,null,null,null,null,null,null,null,null,null,10,{"$f":"VLOOKUP($N107,Dt!$AN$3:$AR$73,3,0)","v":"Grupo de investigación en química ambiental y tecnologías limpias - QUATELI"}]
[null,null,null,null,null,null,null,null,null,null,null,null,null,63,{"$f":"VLOOKUP($N108,Dt!$AN$3:$AR$73,3,0)","v":"Grupo de Investigacion en Urologia HMC"}]
[null,null,null,null,null,null,null,null,null,null,null,null,null,70,{"$f":"VLOOKUP($N109,Dt!$AN$3:$AR$73,3,0)","v":"Grupo de investigaciones sobre agentes radiológicos, biológicos y químicos"}]
[null,null,null,null,null,null,null,null,null,null,null,null,null,54,{"$f":"VLOOKUP($N110,Dt!$AN$3:$AR$73,3,0)","v":"Grupo de Psoriasis e Inmunodermatologia"}]
[null,null,null,null,null,null,null,null,null,null,null,null,null,62,{"$f":"VLOOKUP($N111,Dt!$AN$3:$AR$73,3,0)","v":"Grupo de Rehabilitacion HOMIC-UMNG"}]
[null,null,null,null,null,null,null,null,null,null,null,null,null,60,{"$f":"VLOOKUP($N112,Dt!$AN$3:$AR$73,3,0)","v":"Grupo de Salud Oral y Cirugia Maxilofacial"}]
[null,null,null,null,null,null,null,null,null,null,null,null,null,9,{"$f":"VLOOKUP($N113,Dt!$AN$3:$AR$73,3,0)","v":"Grupo Integrado de Investigaciones en Química y Biología (InQuiBio)"}]
[null,null,null,null,null,null,null,null,null,null,null,null,null,57,{"$f":"VLOOKUP($N114,Dt!$AN$3:$AR$73,3,0)","v":"GRUPO NEUROCIENCIAS HMC"}]
[null,null,null,null,null,null,null,null,null,null,null,null,null,55,{"$f":"VLOOKUP($N115,Dt!$AN$3:$AR$73,3,0)","v":"Grupo para el estudio de enfermedades respiratorias en nińos. Respira"}]
[null,null,null,null,null,null,null,null,null,null,null,null,null,32,{"$f":"VLOOKUP($N116,Dt!$AN$3:$AR$73,3,0)","v":"HUMANITAS"}]
[null,null,null,null,null,null,null,null,null,null,null,null,null,24,{"$f":"VLOOKUP($N117,Dt!$AN$3:$AR$73,3,0)","v":"INAMPE"}]
[null,null,null,null,null,null,null,null,null,null,null,null,null,19,{"$f":"VLOOKUP($N118,Dt!$AN$3:$AR$73,3,0)","v":"INCONDIS"}]
[null,null,null,null,null,null,null,null,null,null,null,null,null,43,{"$f":"VLOOKUP($N119,Dt!$AN$3:$AR$73,3,0)","v":"INGENIERÍA, GEOMÁTICA Y EDUCACIÓN (IGE)"}]
[null,null,null,null,null,null,null,null,null,null,null,null,null,61,{"$f":"VLOOKUP($N120,Dt!$AN$3:$AR$73,3,0)","v":"Kokhlias."}]
[null,null,null,null,null,null,null,null,null,null,null,null,null,50,{"$f":"VLOOKUP($N121,Dt!$AN$3:$AR$73,3,0)","v":"LA TRAMOYA"}]
[null,null,null,null,null,null,null,null,null,null,null,null,null,31,{"$f":"VLOOKUP($N122,Dt!$AN$3:$AR$73,3,0)","v":"LIDERAZGO"}]
[null,null,null,null,null,null,null,null,null,null,null,null,null,3,{"$f":"VLOOKUP($N123,Dt!$AN$3:$AR$73,3,0)","v":"MATRIX"}]
[null,null,null,null,null,null,null,null,null,null,null,null,null,21,{"$f":"VLOOKUP($N124,Dt!$AN$3:$AR$73,3,0)","v":"Medios, Mediaciones y Procesos en Educación a Distancia"}]
[null,null,null,null,null,null,null,null,null,null,null,null,null,23,{"$f":"VLOOKUP($N125,Dt!$AN$3:$AR$73,3,0)","v":"Modelos de simulación ICDIST"}]
[null,null,null,null,null,null,null,null,null,null,null,null,null,14,{"$f":"VLOOKUP($N126,Dt!$AN$3:$AR$73,3,0)","v":"Nanofab"}]
[null,null,null,null,null,null,null,null,null,null,null,null,null,20,{"$f":"VLOOKUP($N127,Dt!$AN$3:$AR$73,3,0)","v":"\"PYDES\" Pedagogía y didáctica en la educación superior"}]
[null,null,null,null,null,null,null,null,null,null,null,null,null,22,{"$f":"VLOOKUP($N128,Dt!$AN$3:$AR$73,3,0)","v":"PIREO \"Procesos de Integración, Regionalización y Estructuras Organizacionales\""}]
[null,null,null,null,null,null,null,null,null,null,null,null,null,39,{"$f":"VLOOKUP($N129,Dt!$AN$3:$AR$73,3,0)","v":"PRODUCCION, INNOVACION Y TECNOLOGIA"}]
[null,null,null,null,null,null,null,null,null,null,null,null,null,18,{"$f":"VLOOKUP($N130,Dt!$AN$3:$AR$73,3,0)","v":"PROPPIO: Procesos organizacionales, programaticos y políticos para la promoción del desarrollo"}]
[null,null,null,null,null,null,null,null,null,null,null,null,null,17,{"$f":"VLOOKUP($N131,Dt!$AN$3:$AR$73,3,0)","v":"Red de estudios sociojurídicos comparados y políticas públicas"}]
[null,null,null,null,null,null,null,null,null,null,null,null,null,56,{"$f":"VLOOKUP($N132,Dt!$AN$3:$AR$73,3,0)","v":"Salud y Comportamiento"}]
[null,null,null,null,null,null,null,null,null,null,null,null,null,30,{"$f":"VLOOKUP($N133,Dt!$AN$3:$AR$73,3,0)","v":"Sociedad, Estrategia y Seguridad"}]
[null,null,null,null,null,null,null,null,null,null,null,null,null,37,{"$f":"VLOOKUP($N134,Dt!$AN$3:$AR$73,3,0)","v":"TIGUM: Grupo de Investigacion en Telemedicina Universidad Militar"}]
[null,null,null,null,null,null,null,null,null,null,null,null,null,45,{"$f":"VLOOKUP($N135,Dt!$AN$3:$AR$73,3,0)","v":"Tratamiento de agua"}]
[null,null,null,null,null,null,null,null,null,null,null,null,null,38,{"$f":"VLOOKUP($N136,Dt!$AN$3:$AR$73,3,0)","v":"VOLTA - GMCDP"}]

{"sheet":"Resumen","index":2,"n_rows":55,"n_cols":13,"rows_kept":55,"cut":false,"hidden":false,"merged":[[44,2,44,4],[41,3,41,4],[39,2,39,4],[42,3,42,4],[25,2,25,4],[26,2,26,4],[27,2,27,4],[28,2,28,4],[20,2,20,4],[21,2,21,4],[22,2,22,4],[23,2,23,4],[24,2,24,4],[8,2,8,4],[7,2,7,4],[1,2,2,2],[6,2,6,4],[19,2,19,4],[13,2,13,4],[12,2,12,4],[11,2,11,4],[10,2,10,4],[9,2,9,4]]}
[2,null,null,null,null,null,"*Pueden  Ocultar las Filas que no se utilicen."]
[null,null,{"$f":"General!B2","v":"PRESENTACIÓN DE PROYECTOS \nEN INVESTIGACIÓN DE POSGRADOS"},{"$f":"General!$H$2","v":"Fecha de Emisión: 2018/03/07"},{"$f":"General!$I$2","v":"IN-IV-F-14"},null,{"$f":"SUM(G7:G14)","v":0},"<=== N° palabras en total"]
[null,null,null,{"$f":"General!$H$3","v":"Revision N°:\n3"},{"$f":"\"Página \"&A1&\" de \"&Dt_TPG","v":"Página 2 de 11"},null,"Palabras","Largo L"]
[]
["4.-","#","Resumen de la propuesta .",null,null,null,{"$f":"SUM(G6:G15)","v":0},{"$f":"SUM(H6:H15)","v":0}]
[]
[null,{"$f":"ROW()-6","v":1},null,null,null,null,{"$f":"IF(C7=\"\",0,LEN(TRIM(C7))-LEN(SUBSTITUTE(TRIM(C7),\" \",\"\"))+1)","v":0},{"$f":"LEN(C7)","v":0}]
[null,{"$f":"ROW()-6","v":2},null,null,null,null,{"$f":"IF(C8=\"\",0,LEN(TRIM(C8))-LEN(SUBSTITUTE(TRIM(C8),\" \",\"\"))+1)","v":0},{"$f":"LEN(C8)","v":0}]
[null,3,null,null,null,null,{"$f":"IF(C9=\"\",0,LEN(TRIM(C9))-LEN(SUBSTITUTE(TRIM(C9),\" \",\"\"))+1)","v":0},0]
[null,4,null,null,null,null,0,0]
[null,5,null,null,null,null,0,0]
[null,6,null,null,null,null,0,0]
[null,7,null,null,null,null,0,0]
[null,8,null,null,null,null,0,0]
[]
[null,null,{"$f":"IF(G2>250,I16, \"-\")","v":"-"}]
[]
["5.-","#","Planteamiento y justificación de la propuesta.",null,null,null,{"$f":"SUM(G19:G302)","v":44},"<=== Palabras en total"]
[null,null,null,null,null,null,{"$f":"IF(C19=\"\",0,LEN(TRIM(C19))-LEN(SUBSTITUTE(TRIM(C19),\" \",\"\"))+1)","v":0}]
[null,{"$f":"ROW()-19","v":1},null,null,null,null,0]
[null,{"$f":"ROW()-19","v":2},null,null,null,null,0]
[null,3,null,null,null,null,0]
[null,4,null,null,null,null,0]
[null,5,null,null,null,null,0]
[null,6,null,null,null,null,0]
[null,7,null,null,null,null,0]
[null,8,null,null,null,null,0]
[null,9,null,null,null,null,0]
[null,10,null,null,null,null,0]
[null,null,null,null,null,null,0]
[null,null,null,null,null,null,0]
[]
[]
[]
[]
[null,null,null,null,null,null,{"$f":"IF(C36=\"\",0,LEN(TRIM(C36))-LEN(SUBSTITUTE(TRIM(C36),\" \",\"\"))+1)","v":0},null,null,null,"Si hay duas en riesgos (Ir al documento)"]
["5.b-","#","Tipos y probabilidad de ocurrencia de riesgos.",null,null,null,{"$f":"SUM(G38:G317)","v":22},"<=== Palabras en total",null,null,"http://www.umng.edu.co/gestion-de-riesgos-institucional"]
[null,null,null,null,null,null,{"$f":"IF(C38=\"\",0,LEN(TRIM(C38))-LEN(SUBSTITUTE(TRIM(C38),\" \",\"\"))+1)","v":0}]
[null,null,"Identificación general del riesgo .       Max 100 palabras",null,null,null,{"$f":"IF(C41=\"\",0,LEN(TRIM(C41))-LEN(SUBSTITUTE(TRIM(C41),\" \",\"\"))+1)","v":0},null,null,null,"Identificacion","Impacto","Probabilidad"]
[null,null,null,null,null,null,{"$f":"IF(C42=\"\",0,LEN(TRIM(C42))-LEN(SUBSTITUTE(TRIM(C42),\" \",\"\"))+1)","v":1},null,null,1,null,"Catastrofico","Casi seguro"]
[null,null,null,null,null,null,1,null,null,2,null,"Mayor ","Probable"]
[null,null,"Probabilidad ","Probable",null,null,7,null,null,3,null,"Moderado","Posible"]
[null,null,"Impacto","Insignificante",null,null,0,null,null,4,null,"Menor ","Improbable"]
[null,null,"Acciones de control, detección, mitigación o corrección.",null,null,null,0,null,null,5,null,"Insignificante","Rara vez"]
[null,null,null,null,null,null,0,null,null,6]
[null,null,null,null,null,null,0,null,null,7]
[null,null,null,null,null,null,0,null,null,8]
[null,null,null,null,null,null,0]
[null,null,null,null,null,null,0]
[null,null,null,null,null,null,0]
[null,null,null,null,null,null,0]
[null,null,null,null,null,null,{"$f":"IF(C52=\"\",0,LEN(TRIM(C52))-LEN(SUBSTITUTE(TRIM(C52),\" \",\"\"))+1)","v":0}]
[null,null,null,null,null,null,{"$f":"IF(C53=\"\",0,LEN(TRIM(C53))-LEN(SUBSTITUTE(TRIM(C53),\" \",\"\"))+1)","v":0}]
[null,null,null,null,null,null,{"$f":"IF(C54=\"\",0,LEN(TRIM(C54))-LEN(SUBSTITUTE(TRIM(C54),\" \",\"\"))+1)","v":0}]
[null,null,"*Pueden  Ocultar las Filas que no se utilicen ( Favor no eliminar filas).",null,null,null,{"$f":"IF(C55=\"\",0,LEN(TRIM(C55))-LEN(SUBSTITUTE(TRIM(C55),\" \",\"\"))+1)","v":13}]

{"sheet":"Estado_del_arte","index":3,"n_rows":40,"n_cols":8,"rows_kept":40,"cut":false,"hidden":false,"merged":[[35,2,35,4],[1,2,2,2],[30,2,30,4],[31,2,31,4],[32,2,32,4],[33,2,33,4],[18,2,18,4],[19,2,19,4],[20,2,20,4],[21,2,21,4],[22,2,22,4],[23,2,23,4],[12,2,12,4],[13,2,13,4],[14,2,14,4],[15,2,15,4],[16,2,16,4],[34,2,34,4],[24,2,24,4],[25,2,25,4],[26,2,26,4],[27,2,27,4],[28,2,28,4],[29,2,29,4],[17,2,17,4],[11,2,11,4],[6,2,6,4],[7,2,7,4],[8,2,8,4],[9,2,9,4],[10,2,10,4]]}
[3,null,null,null,null,null,"*Pueden  Ocultar las Filas que no se utilicen."]
[null,null,{"$f":"General!B2","v":"PRESENTACIÓN DE PROYECTOS \nEN INVESTIGACIÓN DE POSGRADOS"},{"$f":"General!$H$2","v":"Fecha de Emisión: 2018/03/07"},{"$f":"General!$I$2","v":"IN-IV-F-14"}]
[null,null,null,{"$f":"General!$H$3","v":"Revision N°:\n3"},{"$f":"\"Página \"&A1&\" de \"&Dt_TPG","v":"Página 3 de 11"},null,{"$f":"SUM(G7:G3500)","v":0},"<== Total de palabras"]
[]
["6.-","#","Estado del arte de la propuesta o  antecedesntes.",null,null,null,"Largo"]
[]
[null,{"$f":"ROW()-6","v":1},null,null,null,null,{"$f":"IF(C7=\"\",0,LEN(TRIM(C7))-LEN(SUBSTITUTE(TRIM(C7),\" \",\"\"))+1)","v":0}]
[null,{"$f":"ROW()-6","v":2},null,null,null,null,{"$f":"IF(C8=\"\",0,LEN(TRIM(C8))-LEN(SUBSTITUTE(TRIM(C8),\" \",\"\"))+1)","v":0}]
[null,3,null,null,null,null,0]
[null,4,null,null,null,null,0]
[null,5,null,null,null,null,0]
[null,6,null,null,null,null,0]
[null,7,null,null,null,null,0]
[null,8,null,null,null,null,0]
[null,9,null,null,null,null,0]
[null,10,null,null,null,null,0]
[null,11,null,null,null,null,0]
[null,12,null,null,null,null,0]
[null,13,null,null,null,null,0]
[null,14,null,null,null,null,0]
[null,15,null,null,null,null,0]
[null,16,null,null,null,null,0]
[null,17,null,null,null,null,0]
[null,18,null,null,null,null,0]
[null,19,null,null,null,null,0]
[null,20,null,null,null,null,0]
[null,21,null,null,null,null,0]
[null,22,null,null,null,null,0]
[null,23,null,null,null,null,0]
[null,24,null,null,null,null,0]
[null,25,null,null,null,null,0]
[null,26,null,null,null,null,0]
[null,27,null,null,null,null,0]
[null,28,null,null,null,null,0]
[null,29,null,null,null,null,0]
[null,30,null,null,null,null,0]
[]
[]
[]
[null,"*Pueden  Ocultar las Filas que no se utilicen ( Favor no eliminar filas)."]

{"sheet":"Objetivos","index":4,"n_rows":31,"n_cols":8,"rows_kept":31,"cut":false,"hidden":false,"merged":[[18,2,18,4],[17,2,17,4],[22,2,22,4],[21,2,21,4],[20,2,20,4],[19,2,19,4],[1,1,2,2],[7,2,7,4],[8,2,8,4],[9,2,9,4],[10,2,10,4],[6,1,6,4],[11,2,11,4],[13,2,13,4],[14,2,14,4],[15,2,15,4],[16,2,16,4],[12,2,12,4]]}
[4]
[null,{"$f":"General!B2","v":"PRESENTACIÓN DE PROYECTOS \nEN INVESTIGACIÓN DE POSGRADOS"},null,{"$f":"General!$H$2","v":"Fecha de Emisión: 2018/03/07"},{"$f":"General!$I$2","v":"IN-IV-F-14"}]
[null,null,null,{"$f":"General!$H$3","v":"Revision N°:\n3"},{"$f":"\"Página \"&A1&\" de \"&Dt_TPG","v":"Página 4 de 11"},null,{"$f":"SUM(G7:G3500)","v":0},"<== Total de palabras"]
[]
["7.-","Objetivos de la propuesta.",null,null,null,null,"Largo"]
[]
[null,"*El especio del Item (0) Cero es para definir el objetivo general los demás corresponden a objetivos especificos "]
[null,{"$f":"ROW()-8","v":0},null,null,null,null,{"$f":"IF(C8=\"\",0,LEN(TRIM(C8))-LEN(SUBSTITUTE(TRIM(C8),\" \",\"\"))+1)","v":0}]
[null,{"$f":"ROW()-8","v":1},null,null,null,null,0]
[null,2,null,null,null,null,0]
[null,3,null,null,null,null,0]
[null,4,null,null,null,null,0]
[null,5,null,null,null,null,0]
[null,6,null,null,null,null,0]
[null,7,null,null,null,null,0]
[null,8,null,null,null,null,0]
[null,9,null,null,null,null,0]
[null,10,null,null,null,null,0]
[null,11,null,null,null,null,0]
[null,12,null,null,null,null,0]
[null,13,null,null,null,null,0]
[null,14,null,null,null,null,0]
[null,15,null,null,null,null,0]
[]
[]
[]
[]
[]
[]
[]
[null,"*Pueden  Ocultar las Filas que no se utilicen ( Favor no eliminar filas)."]

{"sheet":"Etica","index":5,"n_rows":71,"n_cols":17,"rows_kept":71,"cut":false,"hidden":false,"merged":[[62,2,62,4],[64,2,64,3],[65,2,65,4],[67,2,67,4],[56,2,56,4],[57,2,57,3],[58,2,58,4],[59,2,59,3],[60,2,60,4],[61,2,61,3],[55,2,55,3],[44,2,44,4],[45,2,45,3],[46,2,46,4],[47,2,47,3],[48,2,48,3],[49,2,49,4],[50,2,50,3],[51,2,51,4],[52,2,52,3],[53,2,53,3],[54,2,54,4],[43,2,43,3],[31,2,31,4],[32,2,32,3],[33,2,33,4],[35,2,35,4],[36,2,36,3],[37,2,37,4],[38,2,38,3],[39,2,39,4],[40,2,40,3],[41,2,41,3],[42,2,42,4],[30,2,30,3],[18,2,18,4],[19,2,19,3],[20,2,20,4],[21,2,21,3],[22,2,22,4],[24,2,24,4],[25,2,25,3],[26,2,26,4],[27,2,27,3],[28,2,28,3],[29,2,29,4],[17,2,17,3],[1,2,2,2],[6,2,6,3],[7,2,7,3],[8,2,8,4],[10,2,10,4],[11,2,11,3],[12,2,12,4],[13,2,13,3],[14,2,14,4],[15,2,15,3],[16,2,16,4]]}
[5,null,null,null,null,null,"*Pueden  Ocultar las Filas que no se utilicen."]
[null,null,{"$f":"General!B2","v":"PRESENTACIÓN DE PROYECTOS \nEN INVESTIGACIÓN DE POSGRADOS"},{"$f":"General!$H$2","v":"Fecha de Emisión: 2018/03/07"},{"$f":"General!$I$2","v":"IN-IV-F-14"},null,null,null,null,"Detalles:"]
[null,null,null,{"$f":"General!$H$3","v":"Revision N°:\n3"},{"$f":"\"Página \"&A1&\" de \"&Dt_TPG","v":"Página 5 de 11"},null,{"$f":"SUM(G5:G3524)","v":445},"<== Total de palabras"]
[]
[null,null,{"$f":"$Q$13","v":"."}]
["8b.-",0,"Consideraciones e implicaciones éticas de la investigación, bioética e integridad científica",null,"( Si  / No  )",null,"Palabras",null,null,null,null,null,"Validaciones"]
[null,1,"Proyecto de investigación en CTeI que  involucra seres humanos",null,"No",null,{"$f":"IF(C7=\"\",0,LEN(TRIM(C7))-LEN(SUBSTITUTE(TRIM(C7),\" \",\"\"))+1)","v":9},{"$f":"I7-J7","v":0},{"$f":"IF(OR(E7=\"No\",E7=0),0,1)","v":0},{"$f":"MAX(I8:I23)","v":0},null,1,{"$f":"VLOOKUP($L7,$B$6:$J$68,7,0)","v":0},"CTeI que  involucra seres humanos",null,{"$f":"LEN(N7)","v":33},{"$f":"IF(M7=0,\"\",N7&\"; \")","v":""}]
[null,"1.1","¿utiliza información exclusiva o reservada por parte de terceros y prevé su forma de acceso?",null,"No",null,{"$f":"IF(C8=\"\",0,LEN(TRIM(C8))-LEN(SUBSTITUTE(TRIM(C8),\" \",\"\"))+1)","v":15},null,{"$f":"IF(OR(E8=\"No\",E8=0),0,1)","v":0},null,null,2,0,"CTeI involucra animales",null,23,""]
[null,null,{"$f":"$J$2","v":"Detalles:"},null,null,null,1,null,{"$f":"IF(OR(E9=\"No\",E9=0),0,1)","v":0},null,null,3,0,"CTeI involucra fuentes documentales",null,35,""]
[null,"1.2","¿utiliza información exclusiva o reservada por parte de terceros y prevé su forma de acceso?",null,"No",null,15,null,0,null,null,4,0,"CTeI involucra el ambiente",null,26,""]
[null,null,{"$f":"$J$2","v":"Detalles:"},null,null,null,1,null,0,null,null,5,0,"Aspectos de Integridad científica",null,33,""]
[null,"1.3","¿Utiliza datos personales?",null,"No",null,3,null,0,null,null,6,0,"otras razones que ameritan la revisión ",null,39,""]
[null,null,{"$f":"$J$2","v":"Detalles:"},null,null,null,1,null,0,null,null,null,{"$f":"LEN(N13)","v":0},{"$f":"Q7&Q8&Q9&Q10&Q11&Q12","v":""},null,null,{"$f":"IF(M13>0,\"Error, revisar el ítem: \"&N13,\".\")","v":"."}]
[null,"1.4","¿utiliza información confidencial?",null,"No",null,3,null,0]
[null,null,{"$f":"$J$2","v":"Detalles:"},null,null,null,1,null,0]
[null,"1.5","¿Requiere Consentimiento informado?",null,"No",null,3,null,0]
[null,null,{"$f":"$J$2","v":"Detalles:"},null,null,null,1,null,0]
[null,"1.6","¿indica un modelo de recopilación y conservación de información?",null,"No",null,9,null,0]
[null,null,{"$f":"$J$2","v":"Detalles:"},null,null,null,1,null,0]
[null,"1.7","¿Es una investigación con comunidades vulnerables (indígenas, afrodescendientes, menores  o personal subordinado, entre otros)?",null,"No",null,14,null,0]
[null,null,{"$f":"$J$2","v":"Detalles:"},null,null,null,1,null,0]
[null,"1.8","¿Se evidencia conocimiento previo sobre aspectos políticos, económicos sociales y culturales de las comunidades indígenas?",null,"No",null,15,null,0]
[null,null,{"$f":"$J$2","v":"Detalles:"},null,null,null,1,null,0]
[null,"1.9","¿Realiza intervención a través cuestionarios, medicamentos, rutinas, modificación de actividades o estilo de vida?",null,null,null,14,null,0]
[null,null,{"$f":"$J$2","v":"Detalles:"},null,null,null,1,null,0]
[null,"1.10","¿incluye modelos de consentimiento informado, uso de datos personales u otro?",null,"No",null,11,null,0]
[null,null,{"$f":"$J$2","v":"Detalles:"},null,null,null,1,null,0]
[null,2,"Proyecto de investigación en CTeI involucra animales",null,"No",null,7,{"$f":"I28-J28","v":0},0,{"$f":"MAX(I29:I40)","v":0}]
[null,"2.1","¿Incluye un protocolo de investigación en animales?",null,"No",null,7,null,0]
[null,null,{"$f":"$J$2","v":"Detalles:"},null,null,null,1,null,0]
[null,"2.2","¿Incluye un protocolo de manipulación de recursos biológicos?",null,"No",null,8,null,0]
[null,null,{"$f":"$J$2","v":"Detalles:"},null,null,null,1,null,0]
[null,"2.3","¿Incluye un protocolo de manejo y disposición de sustancias peligrosas, agentes infecciosos y desechos?",null,"No",null,14,null,0]
[null,null,{"$f":"$J$2","v":"Detalles:"},null,null,null,1,null,0]
[null,"2.4","¿hay caracterización de los animales de experimentación criterios de selección de la especie?",null,"No",null,13,null,0]
[null,null,{"$f":"$J$2","v":"Detalles:"},null,null,null,1,null,0]
[null,"2.5","¿se prevé formación previa al equipo de laboratorio por parte del investigador sobre el cuidado permanente del animal y experimentación?",null,"No",null,20,null,0]
[null,null,{"$f":"$J$2","v":"Detalles:"},null,null,null,1,null,0]
[null,"2.6","¿se prevé declaración previa del origen y estado de los animales para experimentación?",null,"No",null,13,null,0]
[null,null,{"$f":"$J$2","v":"Detalles:"},null,null,null,1,null,0]
[null,3,"El proyecto de investigación en CTeI involucra fuentes documentales",null,"No",null,9,{"$f":"I41-J41","v":0},0,{"$f":"MAX(I42:I47)","v":0}]
[null,"3.1","¿hace referencia a la anonimización de datos?",null,"No",null,7,null,0]
[null,null,{"$f":"$J$2","v":"Detalles:"},null,null,null,1,null,0]
[null,"3.2","¿prevé conservación de datos de consulta?",null,"No",null,6,null,0]
[null,null,{"$f":"$J$2","v":"Detalles:"},null,null,null,1,null,0]
[null,"3.3","¿se identifica objetivamente que las bases de consulta de acceso abierto pueden ser calificadas de tal manera?",null,"No",null,17,null,0]
[null,null,{"$f":"$J$2","v":"Detalles:"},null,null,null,1,null,0]
[null,4,"Proyecto de investigación en CTeI involucra el ambiente",null,"No",null,8,{"$f":"I48-J48","v":0},0,{"$f":"MAX(I49:I52)","v":0}]
[null,"4.1","¿requiere permisos o licencias ambientales como recolección de especímenes, colecciones biológicas, manipulación o movilización de recursos bilógicas?",null,"No",null,17,null,0]
[null,null,{"$f":"$J$2","v":"Detalles:"},null,null,null,1,null,0]
[null,"4.2","¿requiere uso de recursos genéticos?",null,"No",null,5,null,0]
[null,null,{"$f":"$J$2","v":"Detalles:"},null,null,null,1,null,0]
[null,5,"Aspectos de Integridad científica",null,"No",null,4,{"$f":"I53-J53","v":0},0,{"$f":"MAX(I54:I64)","v":0}]
[null,"5.1","¿Podría darse un conflicto de interés no declarado entre quienes participan en el proyecto y/o las instituciones coejecutoras y/o las instancias de aprobación y seguimiento?",null,"No",null,25,null,0]
[null,null,{"$f":"$J$2","v":"Detalles:"},null,null,null,1,null,0]
[null,"5.2","¿Hay indicios de que se han fabricado o plagiado datos en la investigación?",null,"No",null,13,null,0]
[null,null,{"$f":"$J$2","v":"Detalles:"},null,null,null,1,null,0]
[null,"5.3","¿se presume que se incluye personal vinculado al proyecto que objetivamente podría no aportar técnica ni intelectualmente al proyecto?",null,"No",null,19,null,0]
[null,null,{"$f":"$J$2","v":"Detalles:"},null,null,null,1,null,0]
[null,"5.4","¿se estima que los recursos y tiempos de dedicación solicitados exceden lo necesario para financiación del proyecto o se prevé que los productos son escasos ante las capacidades y alcance de la propuesta?",null,"No",null,33,null,0]
[null,null,{"$f":"$J$2","v":"Detalles:"},null,null,null,1,null,0]
[null,"5.5","¿Podría darse un conflicto de interés no declarado entre quienes participan en el proyecto y/o las instituciones coejecutoras y/o las instancias de aprobación y seguimiento?",null,"No",null,25,null,0]
[null,null,{"$f":"$J$2","v":"Detalles:"},null,null,null,1,null,0]
[null,null,null,null,"No",null,0,null,0]
[null,6,"Existen otras razones que ameritan la revisión por parte del comité de ética de la investigación (indique cuales).",null,"No",null,18,{"$f":"I65-J65","v":0},0,{"$f":"MAX(I66:I68)","v":0}]
[null,"6.1",{"$f":"$J$2","v":"Detalles:"},null,null,null,1,null,0]
[null,null,"especificaciones de ética de la investigación, bioética e integridad científica que deban ser ampliadas en detalle (indique cuales).",null,"No",null,18,null,0]
[null,"6.1",{"$f":"$J$2","v":"Detalles:"},null,null,null,{"$f":"IF(C68=\"\",0,LEN(TRIM(C68))-LEN(SUBSTITUTE(TRIM(C68),\" \",\"\"))+1)","v":1},null,0]
[null,null,null,null,null,null,null,null,0]
[null,null,null,null,null,null,{"$f":"IF(C70=\"\",0,LEN(TRIM(C70))-LEN(SUBSTITUTE(TRIM(C70),\" \",\"\"))+1)","v":0},null,0]
[null,null,null,null,null,null,{"$f":"IF(C71=\"\",0,LEN(TRIM(C71))-LEN(SUBSTITUTE(TRIM(C71),\" \",\"\"))+1)","v":0}]

{"sheet":"Metodología","index":6,"n_rows":44,"n_cols":8,"rows_kept":44,"cut":false,"hidden":false,"merged":[[30,2,30,4],[1,2,2,2],[24,2,24,4],[25,2,25,4],[26,2,26,4],[27,2,27,4],[12,2,12,4],[13,2,13,4],[14,2,14,4],[15,2,15,4],[16,2,16,4],[17,2,17,4],[6,2,6,4],[7,2,7,4],[8,2,8,4],[9,2,9,4],[10,2,10,4],[11,2,11,4],[28,2,28,4],[29,2,29,4],[18,2,18,4],[19,2,19,4],[20,2,20,4],[21,2,21,4],[22,2,22,4],[23,2,23,4],[33,2,33,4],[34,2,34,4],[35,2,35,4],[36,2,36,4],[37,2,37,4]]}
[5,null,null,null,null,null,"*Pueden  Ocultar las Filas que no se utilicen."]
[null,null,{"$f":"General!B2","v":"PRESENTACIÓN DE PROYECTOS \nEN INVESTIGACIÓN DE POSGRADOS"},{"$f":"General!$H$2","v":"Fecha de Emisión: 2018/03/07"},{"$f":"General!$I$2","v":"IN-IV-F-14"}]
[null,null,null,{"$f":"General!$H$3","v":"Revision N°:\n3"},{"$f":"\"Página \"&A1&\" de \"&Dt_TPG","v":"Página 5 de 11"},null,{"$f":"SUM(G7:G3504)","v":0},"<== Total de palabras"]
[]
["8.-","#","Metodología de la propuesta.",null,null,null,"Largo"]
[]
[null,{"$f":"ROW()-6","v":1},null,null,null,null,{"$f":"IF(C7=\"\",0,LEN(TRIM(C7))-LEN(SUBSTITUTE(TRIM(C7),\" \",\"\"))+1)","v":0}]
[null,{"$f":"ROW()-6","v":2},null,null,null,null,{"$f":"IF(C8=\"\",0,LEN(TRIM(C8))-LEN(SUBSTITUTE(TRIM(C8),\" \",\"\"))+1)","v":0}]
[null,3,null,null,null,null,0]
[null,4,null,null,null,null,0]
[null,5,null,null,null,null,0]
[null,6,null,null,null,null,0]
[null,7,null,null,null,null,0]
[null,8,null,null,null,null,0]
[null,9,null,null,null,null,0]
[null,10,null,null,null,null,0]
[null,11,null,null,null,null,0]
[null,12,null,null,null,null,0]
[null,13,null,null,null,null,0]
[null,14,null,null,null,null,0]
[null,15,null,null,null,null,0]
[null,16,null,null,null,null,0]
[null,17,null,null,null,null,0]
[null,18,null,null,null,null,0]
[null,19,null,null,null,null,0]
[null,20,null,null,null,null,0]
[null,21,null,null,null,null,0]
[null,22,null,null,null,null,0]
[null,23,null,null,null,null,0]
[null,24,null,null,null,null,0]
[null,25,null,null,null,null,0]
[]
["8b.-",0,"Consideraciones e implicaciones éticas de la investigación",null,null,null,"Largo"]
[null,{"$f":"B33+1","v":1},null,null,null,null,{"$f":"IF(C34=\"\",0,LEN(TRIM(C34))-LEN(SUBSTITUTE(TRIM(C34),\" \",\"\"))+1)","v":0}]
[null,{"$f":"B34+1","v":2},null,null,null,null,{"$f":"IF(C35=\"\",0,LEN(TRIM(C35))-LEN(SUBSTITUTE(TRIM(C35),\" \",\"\"))+1)","v":0}]
[null,{"$f":"B35+1","v":3},null,null,null,null,{"$f":"IF(C36=\"\",0,LEN(TRIM(C36))-LEN(SUBSTITUTE(TRIM(C36),\" \",\"\"))+1)","v":0}]
[null,{"$f":"B36+1","v":4},null,null,null,null,{"$f":"IF(C37=\"\",0,LEN(TRIM(C37))-LEN(SUBSTITUTE(TRIM(C37),\" \",\"\"))+1)","v":0}]
[null,{"$f":"B37+1","v":5},null,null,null,null,{"$f":"IF(C38=\"\",0,LEN(TRIM(C38))-LEN(SUBSTITUTE(TRIM(C38),\" \",\"\"))+1)","v":0}]
[]
[]
[]
[]
[]
[null,"*Pueden  Ocultar las Filas que no se utilicen. No eliminar filas."]

{"sheet":"Cronograma","index":7,"n_rows":33,"n_cols":12,"rows_kept":33,"cut":false,"hidden":false,"merged":[[1,1,2,2]]}
[6,null,null,null,null,null,null,null,"*Pueden  Ocultar las Filas que no se utilicen.",null,null,{"$f":"(\"* Actualmente tiene \"&G7&\" meses de ejecución no superar los \"& G5&\" meses.\")","v":"* Actualmente tiene 0 meses de ejecución no superar los 24 meses."}]
[null,{"$f":"General!B2","v":"PRESENTACIÓN DE PROYECTOS \nEN INVESTIGACIÓN DE POSGRADOS"},null,{"$f":"General!$H$2","v":"Fecha de Emisión: 2018/03/07"},{"$f":"General!$I$2","v":"IN-IV-F-14"}]
[null,null,null,{"$f":"General!$H$3","v":"Revision N°:\n3"},{"$f":"\"Página \"&A1&\" de \"&Dt_TPG","v":"Página 6 de 11"}]
[]
["9.-","Cronograma de actividades a desarrollar",null,null,{"$f":"Integrantes!J6","v":24},null,{"$f":"E5","v":24},"Meses Maximo","Palabras"]
[]
[null,"No","Descripción básica de la actividad","Mes de Inicio","Duración en mes",null,{"$f":"MAX(G8:G27)","v":0},"Meses de ejecición actuales",{"$f":"SUM(I8:I27)","v":0},"<== Total de palabras"]
[null,{"$f":"ROW()-7","v":1},null,null,0,null,{"$f":"SUM(D8:E8)","v":0},null,{"$f":"IF(C8=\"\",0,LEN(TRIM(C8))-LEN(SUBSTITUTE(TRIM(C8),\" \",\"\"))+1)","v":0}]
[null,{"$f":"ROW()-7","v":2},null,null,null,null,{"$f":"SUM(D9:E9)","v":0},null,{"$f":"IF(C9=\"\",0,LEN(TRIM(C9))-LEN(SUBSTITUTE(TRIM(C9),\" \",\"\"))+1)","v":0}]
[null,3,null,null,null,null,0,null,0]
[null,4,null,null,null,null,0,null,0]
[null,5,null,null,null,null,0,null,0]
[null,6,null,null,null,null,0,null,0]
[null,7,null,null,null,null,0,null,0]
[null,8,null,null,null,null,0,null,0]
[null,9,null,null,null,null,0,null,0]
[null,10,null,null,null,null,0,null,0]
[null,11,null,null,null,null,0,null,0]
[null,12,null,null,null,null,0,null,0]
[null,13,null,null,null,null,0,null,0]
[null,14,null,null,null,null,0,null,0]
[null,15,null,null,null,null,0,null,0]
[null,16,null,null,null,null,0,null,0]
[null,17,null,null,null,null,0,null,0]
[null,18,null,null,null,null,0,null,0]
[null,19,null,null,null,null,0,null,0]
[null,20,null,null,null,null,0,null,0]
[]
[null,null,{"$f":"IF(G7>G5,L1,\".\")","v":"."}]
[]
[]
[]
[null,"*Pueden  Ocultar las Filas que no se utilicen. No eliminen filas"]

{"sheet":"Productos","index":8,"n_rows":88,"n_cols":26,"rows_kept":88,"cut":false,"hidden":false,"merged":[[1,1,2,5]]}
[7]
[null,{"$f":"Cronograma!B2","v":"PRESENTACIÓN DE PROYECTOS \nEN INVESTIGACIÓN DE POSGRADOS"},null,null,null,null,{"$f":"General!$H$2","v":"Fecha de Emisión: 2018/03/07"},{"$f":"General!$I$2","v":"IN-IV-F-14"}]
[null,null,null,null,null,null,{"$f":"General!$H$3","v":"Revision N°:\n3"},{"$f":"\"Página \"&A1&\" de \"&Dt_TPG","v":"Página 7 de 11"},null,null,"N","Abreviatura","IdClase","POS","IMP","Clase ","Tipo de Productos","Indicadores","o","Ok"]
[null,null,null,null,null,null,{"$f":"IF(H5=\"POS\",3,0)","v":3},null,null,null,101,"101- Artículo en Cuartil 1 (Q1) del SJR (Scopus) o del JCR (Web of Science)","GNC",60,null,"Productos de Generación de Nuevo Conocimiento (GNC)",null,"Copia del sometimiento y copia del artículo enviado a la revista",null,{"$f":"SUMIF($J$7:$J$28,$K4,$F$7:$F$28)","v":0}]
["10.-","Productividad comprometida",null,null,null,"Tipo de proyecto:",null,{"$f":"General!$H$1","v":"POS"},null,null,102,"102- Artículo en Cuartil 2 (Q2) del SJR (Scopus) o del JCR (Web of Science) WoS ","GNC",50,null,"Productos de Generación de Nuevo Conocimiento (GNC)",null,"Copia del sometimiento y copia del artículo enviado a la revista",null,{"$f":"SUMIF($J$7:$J$28,$K5,$F$7:$F$28)","v":0}]
[null,null,"Selección de topes comprometidos",null,null,null,null,null,null,null,103,"103- Artículo en Cuartil 3 (Q3) del SJR (Scopus) o del JCR (Web of Science) y/o Homologada B Colciencias","GNC",40,null,"Productos de Generación de Nuevo Conocimiento (GNC)",null,"Copia del sometimiento y copia del artículo enviado a la revista",null,0]
[null,"N°","Resultado/Producto esperado","Descripción o detalles del producto esperado","Indicador","Cantidad","Total de puntos","Benefi-ciario",null,null,104,"104- Artículo en Cuartil 4 (Q4) del SJR (Scopus) o del JCR (Web of Science) y/o Homologada C Colciencias","GNC",30,null,"Productos de Generación de Nuevo Conocimiento (GNC)",null,"Copia del sometimiento y copia del artículo enviado a la revista",null,0]
[null,{"$f":"ROW()-7","v":1},null,null,{"$f":"IFERROR(VLOOKUP($C8,$L$3:$T$54,7,0),\" \")","v":" "},1,{"$f":"IFERROR(F8*VLOOKUP($C8,$L$3:$T$54,G$4,0),\" \")","v":" "},null,null,{"$f":"IFERROR(ABS(LEFT(C8,3)),0)","v":0},105,"105- Revista colombiana indexada en Publindex en A1 (Sí no está en SJR o JCR)","GNC",0,null,"Productos de Generación de Nuevo Conocimiento (GNC)",null,"Copia del sometimiento y copia del artículo enviado a la revista",null,0]
[null,{"$f":"ROW()-7","v":2},null,null," ",1," ",null,null,{"$f":"IFERROR(ABS(LEFT(C9,3)),0)","v":0},106,"106- Revista colombiana indexada en publindex en A2 (sino está en SJR o JCR)","GNC",0,null,"Productos de Generación de Nuevo Conocimiento (GNC)",null,"Copia del sometimiento y copia del artículo enviado a la revista",null,0]
[null,3,null,null," ",1," ",null,null,0,107,"107- Revista colombiana indexada en publindex en B (sino está en SJR o JCR)","GNC",0,null,"Productos de Generación de Nuevo Conocimiento (GNC)",null,"Copia del sometimiento y copia del artículo enviado a la revista",null,0]
[null,4,null,null," ",1," ",null,null,0,108,"108- Revista colombiana indexada en publindex en C (sino está en SJR o JCR)","GNC",0,null,"Productos de Generación de Nuevo Conocimiento (GNC)",null,"Copia del sometimiento y copia del artículo enviado a la revista",null,0]
[null,5,null,null," ",1," ",null,null,0,109,"109- Libro de investigación en colección indexada en Scopus o indexado en el Book Citation Index BCI (WoS) ","GNC",60,null,"Productos de Generación de Nuevo Conocimiento (GNC)",null,"Copia del sometimiento  ante editorial Neogranadina o editorial externa y copia del libro enviado a la editorial",null,0]
[null,6,null,null," ",1," ",null,null,0,110,"110- Libro de investigación  publicado por la Editorial Neogranadina o que cumple con los parámetros de Colciencias para que sea reconocido como producto de Generación de Nuevo Conocimiento","GNC",40,null,"Productos de Generación de Nuevo Conocimiento (GNC)",null,"Copia del sometimiento ante editorial Neogranadina o editorial externa y copia del libro enviado a la editorial",null,0]
[null,7,null,null," ",1," ",null,null,0,111,"111- Capítulo incluido en libro dentro de una colección indexada en Scopus o libro indexado en el Book Citation Index (WoS) ","GNC",40,null,"Productos de Generación de Nuevo Conocimiento (GNC)",null,"Copia del sometimiento ante editorial Neogranadina o editorial externa (copia del proyecto editorial de libro en el que se incluiría el capítulo y del aval de la Editorial sobre ese proyecto) y copia del capítulo de libro enviado a la editorial",null,0]
[null,8,null,null," ",1," ",null,null,0,112,"112- Capítulo en libro de la Editorial Neogranadina o en libro que cumple con los parámetros de Colciencias para que sea reconocido como producto de Generación de Nuevo Conocimiento","GNC",30,null,"Productos de Generación de Nuevo Conocimiento (GNC)",null,"Copia del sometimiento ante editorial Neogranadina o editorial externa (copia del proyecto editorial de libro en el que se incluiría el capítulo y del aval de la Editorial sobre ese proyecto) y copia del capítulo de libro enviado a la editorial",null,0]
[null,9,null,null," ",1," ",null,null,0,113,"113- Publicación en gaceta de variedades vegetales protegidas o equivalente con estado de admisión","GNC",40,null,"Productos de Generación de Nuevo Conocimiento (GNC)",null,"Solicitud de Certificado de obtentor de variedad vegetal expedido por el Instituto Colombiano Agropecuario (ICA) o solicitud de inscripción en el registro nacional de cultivadores",null,0,null,null,null,null,null,"Publicación en  la  gaceta  del  ICA,  Constancia expedida  por  el  ICA  que  indique en qué etapa  del  proceso  se  encuentra la solicitud."]
[null,10,null,null," ",1," ",null,null,0,114,"114- Nota Científica Impresa o electrónica sometida en revista indexada del SJR (Scopus) o del JCR (Web of Science) que cumpla con los parámetros de Colciencias para que sea reconocido como producto de Generación de Nuevo Conocimiento","GNC",30,null,"Productos de Generación de Nuevo Conocimiento (GNC)",null,"Copia del sometimiento y copia de la nota científica enviada a la revista",null,0]
[null,11,null,null," ",1," ",null,null,0,201,"201- Software aprobado para registro ante la DNDA, de acuerdo con procedimientos establecidos por la UMNG.","DTI",20,null,"Productos resultado de actividades de desarrollo tecnológico e innovación (DTI)",null,"Programas, archivos ejecutables, manual técnico y de ususario, solicitud de registro ante la DNDA.",null,0]
[null,12,null,null," ",1," ",null,null,0,202,"202- Esquema de trazado de circuito integrado registrado ante la SIC a través de acto administrativo que resuelva la concesión favorable.","DTI",10,null,"Productos resultado de actividades de desarrollo tecnológico e innovación (DTI)",null,"Solicitud de registro ante la SIC",null,0]
[null,13,null,null," ",1," ",null,null,0,203,"203- Regulaciones, normas, reglamentos o legislaciones implementadas internacionalmente, acorde con parámetros de Colciencias","DTI",20,null,"Productos resultado de actividades de desarrollo tecnológico e innovación (DTI)",null,"Copia de la norma, reglamento o legislación y certificado de la Entidad que emitió la reglamentación o normatividad",null,0]
[null,14,null,null," ",1," ",null,null,0,204,"204- Regulaciones, normas, reglamentos o legislaciones implementadas nacionalmente (no institucional), acorde con parámetros de Colciencias","DTI",10,null,"Productos resultado de actividades de desarrollo tecnológico e innovación (DTI)",null,"Copia de la norma, reglamento o legislación y certificado de la Entidad que emitió la reglamentación o normatividad",null,0]
[null,15,null,null," ",1," ",null,null,null,205,"205- Prototipo en estado de desarrollo TRL4","DTI",15,null,"Productos resultado de actividades de desarrollo tecnológico e innovación (DTI)",null,"Fotos, video del prototipo en funcionamiento, manual técnico y manual de usuario (Prototipo, proceso, producto con resultados investigación en TRL 4)",null,0]
[null,16,null,null," ",1," ",null,null,null,301,"301- Ponencia en evento Internacional de acuerdo a los requisitos de la resolución de movilidad vigente.","SAC",10,null,"Producción resultado de actividades de apropiación social del conocimiento (ASC)",null,"Copia del trabajo presentado en el evento y memorias del evento con ISSN o ISBN   y/o certificado de ponente",null,0]
[null,17,null,null," ",1," ",null,null,null,302,"302- Ponencia  en evento nacional de acuerdo a los requisitos de la resolución de movilidad vigente.","SAC",5,null,"Producción resultado de actividades de apropiación social del conocimiento (ASC)",null,"Copia del trabajo presentado en el evento y memorias del evento con ISSN o ISBN   y/o certificado de ponente",null,0]
[null,18,null,null," ",1," ",null,null,null,303,"303- Participación ciudadana en CTeI acorde con parámetros del modelo de medición de grupos de investigación- Colciencias","SAC",10,null,"Producción resultado de actividades de apropiación social del conocimiento (ASC)",null,"Constancia de la participación o aval de la comunidad para su inclusión en el proyecto de CTeI o espacios de encuentro",null,0]
[null,19,null,null," ",1," ",null,null,null,304,"304- Conjunto de información molecular que haya sido publicado en revista científica especializada y en una base de datos o repositorio de acceso público acorde con los parámetros del modelo de medición de grupos de investigación - Colciencias ","SAC",10,null,"Producción resultado de actividades de apropiación social del conocimiento (ASC)",null,"Certificación de la nueva secuencia genética y base de datos científica (nombre y url))",null,0]
[null,20,null,null," ",1," ",null,null,null,401,"401- Dirección o codirección de Tesis de estudiantes en programas de Doctorado de la UMNG, con temáticas asociadas a la línea de investigación a la que pertenece el proyecto","FRH",30,null,"Formación de Recurso Humano (FRH)",null,"Acta del comité de de investigacion donde se designa al director o Certificado de la unidad Academica y anteproyecto de tesis doctoral ",null,0]
[null,null,null,null,null,null,null,null,null,null,402,"402- Dirección o codirección de trabajos de grado de estudiantes en programas de Maestría de la UMNG, con temáticas asociadas a línea de investigación a la que pertenece el proyecto","FRH",15,null,"Formación de Recurso Humano (FRH)",null,"Acta del comité de de investigacion donde se designa al director o Certificado de la unidad Academica y anteproyecto de tesis de grado ",null,0]
[null,"T",{"$f":"\"En el caso de aprobacion se liquidara el proyecto con  \"&V_Max&\" Pts.\"","v":"En el caso de aprobacion se liquidara el proyecto con  0 Pts."},null,null,{"$f":"SUM(F7:F27)","v":20},{"$f":"INT(SUM(G7:G27))","v":0},null,null,null,403,"403- Vinculación por mínimo ocho meses de un Joven investigador según los criterios de la Resolución institucional que actualiza la reglamentación sobre vinculación de personal a los proyectos de investigación financiados o cofinanciados por la UMNG en los programas de CTeI o la que se encuentre vigente para el momento de la ejecución del proyecto","FRH",10,null,"Formación de Recurso Humano (FRH)",null,"Contrato OPS ",null,0]
[null,{"$f":"IF(V_Max>H40,Q56,\"\")","v":""},null,null,null,null,null,null,null,null,404,"404- Dirección o codirección de Trabajo de estudiantes en programas de pregrado de la UMNG, con temáticas asociadas a línea de investigación a la que pertenece el proyecto.","FRH",5,null,"Formación de Recurso Humano (FRH)",null,"Copia del acta sustentación del proyecto de grado",null,0]
[null,null,null,null,null,null,null,null,null,null,405,"405- Tutoría de un proyecto de iniciación científica de estudiantes de la UMNG, con temáticas asociadas a línea de investigación a la que pertenece el proyecto.","FRH",5,null,"Formación de Recurso Humano (FRH)",null,"Informe final y acta del Comité de investigaciones con el aval del cierre del PIC",null,0]
[null,"N","Sigla","Clase ",null,null,"Mínimo","No",null,null,501,"501- Nueva propuesta conducente al ingreso de recursos externos en efectivo a la UMNG, superiores a la contrapartida en especie comprometida por la UMNG. Debe estar sometida a alguna convocatoria externa arbitrada por pares y acompañarse de carta de aval de la UMNG, previa realización del procedimiento de calidad o normatividad vigente para proyectos externos.","GI",10,null,"Gestión de la Investigación (GI)",null,"Carta de aval de institucional y registro de sometimiento a la convocatoria externa o a la entidad financiadora o coordinadora de la convocatoria ",null,0]
[null,1,"GNC","Productos de Generación de Nuevo Conocimiento (GNC) ",null,null,1,{"$f":"SUMIF($M$4:$M$54,$C33,$T$4:$T$54)","v":0},null,null,502,"502- Nueva propuesta conducente a ingreso a la UMNG de recursos externos en efectivo, superiores a la contrapartida en especie comprometida por la UMNG por un valor mayor o igual a 200 SMMLV. Debe estar sometido a alguna convocatoria externa","GI",30,null,"Gestión de la Investigación (GI)",null,"Carta de aval de institucional y registro de sometimiento a la convocatoria externa o a la entidad financiadora o coordinadora de la convocatoria ",null,0]
[null,2,"DTI","Desarrollo tecnológico e innovación  (DTI)",null,null,1,{"$f":"SUMIF($M$4:$M$54,$C34,$T$4:$T$54)","v":0},null,null,503,"503- Nueva propuesta conducente a ingreso a la UMNG de recursos externos en efectivo, superiores a la contrapartida en especie comprometida por la  UMNG por un valor mayor o igual a 200 SMMLV. Debe estar sometido a alguna convocatoria externa internacional","GI",40,null,"Gestión de la Investigación (GI)",null,"Carta de aval de institucional y registro de sometimiento a la convocatoria externa o a la entidad financiadora o coordinadora de la convocatoria ",null,0]
[null,3,"FRH","Formación de Recurso Humano (FRH) ",null,null,null,{"$f":"SUMIF($M$4:$M$54,$C35,$T$4:$T$54)","v":0},null,null,504,"504- Ejecución del proyecto, sometido a la presente convocatoria, en la modalidad de cooperación a través de convenio especial de cooperación o instrumento contractual equivalente, con instituciones de carácter nacional que cumplan con el criterio de evaluación de colaboración externa, enunciado en los presentes términos de referencia.","GI",5,null,"Gestión de la Investigación (GI)",null,"Convenio perfeccionado y acta de inicio y presupuestal firmadas.",null,0]
[null,4,"SAC","Socialización y Apropiacióndel Conocimiento (SAC) ",null,null,null,{"$f":"SUMIF($M$4:$M$54,$C36,$T$4:$T$54)","v":0},null,null,505,"505- Ejecución del proyecto, sometido a la presente convocatoria, en la modalidad de cooperación a través de convenio especial de cooperación o instrumento\ncontractual equivalente, con instituciones de carácter internacional en la que mínimo una de ellas tiene domicilio en el exterior y que cumplan con el criterio\nde evaluación de colaboración externa, enunciado en los presentes términos de referencia.","GI",10,null,"Gestión de la Investigación (GI)",null,"Convenio perfeccionado y acta de inicio y presupuestal firmadas.",null,0]
[null,5,"GI","Gestión de Investigación (GI) ",null,null,null,{"$f":"SUMIF($M$4:$M$54,$C37,$T$4:$T$54)","v":0},null,null,null,null,null,null,null,null,null,null,null,14]
[]
[null,null,null,null,null,null,null,"Max Puntos"]
[null,"Cuadro validación de productos por Sigla",null,null,null,{"$f":"IF(H5=\"IMP\",3,2)","v":2},{"$f":"Gp_Max","v":0},{"$f":"IFERROR(VLOOKUP($G$40,$S$56:$U$63,$F$40,0),0)","v":0}]
[]
[null,null,"Grupo Maximo ",{"$f":"Gp_Max","v":0},{"$f":"M60& \" Pts. Maximos\"","v":"0 Pts. Maximos"},null,{"$f":"\"Con : $\"&N60&\"  Millones Max\"","v":"Con : $0  Millones Max"}]
[]
[null,null,"Validación de cumplimiento de productividad por siglas."]
[]
[]
[]
[]
[]
[]
[]
[]
[]
[]
[]
[null,null,null,null,null,null,null,null,null,null,null,null,null,null,null,{"$f":"V_Max-H40","v":0},{"$f":"\"*Nota: supera en \"&P56&\"  Pts. el limite máximo puntos por nivel de grupo de :\"&H40&\" Pts.\"","v":"*Nota: supera en 0  Pts. el limite máximo puntos por nivel de grupo de :0 Pts."},{"$f":"General!C7","v":"Fortalecimiento Posgrados"},"T","INV","IMP"]
[null,null,null,null,null,null,null,null,null,null,null,null,null,null,null,null,"* debe por lo menos tener 100 puntos para cumplir los topes requisto de la convocatoria (INV)",null,"A",199,300]
[null,"Hay error de productos si es mayor a 0",null,null,{"$f":"SUM(C54:F54)","v":0},{"$f":"TRIM(C55&D55&E55&F55)","v":""},null,null,null,null,null,null,null,"Preupuesto",null,null,null,null,"A1",199,300]
[null,{"$f":"IF(E58>0,\"Error: Debe seleccionar producto(s) de esta(s) categoria(s): \"&F58&\" \",\"OK\")","v":"OK"},null,null,null,null,null,null,null,null,null,null,"Pts Sobrantes",null,null,null,null,null,"B",199,300]
[null,"Validacion de Grupos con la mayor categoría",null,null,null,null,null,null,null,null,null,true,{"$f":"IFERROR(VLOOKUP($L$60,$L$62:$M$67,2,0),0)","v":0},{"$f":"IFERROR(VLOOKUP(L60,L62:N67,3,0),0)","v":0},"<< Tope al que aplica el proyecto",null,null,null,"C",199,300]
[null,"N","No Grpos General","Clasif","Millo por tope","Ptoy",0,null,null,null,null,null,null,null,null,null,null,null,"R",59,0]
[null,1,{"$f":"COUNTIF(Dt!$AR$3:$AR$102,D62)","v":7},"A",null,{"$f":"COUNTIF($L$71:$L$74,D62)","v":0},{"$f":"IF(G61=0,IF(F62>0,D62,0),G61)","v":0},null,null,null,null,{"$f":"V_Max>=M62","v":false},200,100,null,null,null,null,"NR",39,0]
[null,2,{"$f":"COUNTIF(Dt!$AR$3:$AR$102,D63)","v":3},"A1",null,0,0,null,null,null,null,false,100,100,null,null,null,null,"NA",0,0]
[null,3,{"$f":"COUNTIF(Dt!$AR$3:$AR$102,D64)","v":6},"B",null,0,0,null,null,null,null,false,50,0]
[null,4,{"$f":"COUNTIF(Dt!$AR$3:$AR$102,D65)","v":42},"C",null,0,0,null,null,null,null,false,40,0,null,null,null,null,"Pts",null,10]
[null,5,{"$f":"COUNTIF(Dt!$AR$3:$AR$102,D66)","v":6},"R",null,0,0,null,null,null,null,false,20,0]
[null,6,{"$f":"COUNTIF(Dt!$AR$3:$AR$102,D67)","v":9},"NR",null,0,0,null,null,null,null,false,10,0]
[null,7,{"$f":"COUNTIF(Dt!$AR$3:$AR$102,D68)","v":2},"NA",0,0,0]
[]
[null,null,null,null,"Mayor  Grupo","Final",{"$f":"G68","v":0}]
[null,null,null,null,null,null,null,null,null,null,"Clasificacion",null,null,"No","Codigo","Grupos Participantes"]
[null,null,null,null,null,null,null,null,null,null,null,{"$f":"IFERROR(VLOOKUP($P72,Dt_GrpClas,2,0),0)","v":0},null,null,1,{"$f":"General!L17","v":0},{"$f":"General!D17","v":0}]
[null,null,null,null,null,null,null,null,null,null,null,{"$f":"IFERROR(VLOOKUP($P73,Dt_GrpClas,2,0),0)","v":0},null,null,2,{"$f":"General!L21","v":0},{"$f":"General!D21","v":0}]
[null,null,null,null,null,null,null,null,null,null,null,{"$f":"IFERROR(VLOOKUP($P74,Dt_GrpClas,2,0),0)","v":0},null,null,3,{"$f":"General!L25","v":0},{"$f":"General!D25","v":0}]
[]
[null,null,null,null,null,null,null,null,null,null,null,"Tabla de Errores ",null,null,null,null,null,"Validaciones",{"$f":"MAX(S77:S90)","v":2}]
[null,null,null,null,null,null,null,null,null,null,null,{"$f":"VLOOKUP($S$76,K78:L88,2,0)","v":" Deben por lo menos tener 100  Puntos para poder cumplir con los topes de la convocatoria!"},null,null,null,null,null,"No cumple con las clases de Productividad ",{"$f":"IF(SUM(H33:H34)<1,1,0)","v":1}]
[null,null,null,null,null,null,null,null,null,null,0," ","Ok sin Error",null,null,null,null,"Si es menor de 20 Pts en productividad",{"$f":"IF(V_Max<M65,2,0)","v":2}]
[null,null,null,null,null,null,null,null,null,null,1,{"$f":"\"Error: Debe tener por lo menos un producto en SIGLAS (GNC) o (DTI).\"","v":"Error: Debe tener por lo menos un producto en SIGLAS (GNC) o (DTI)."},null,null,null,null,null,"Si hay productos sin cantidad",{"$f":"IF(U79<=V82,0,3)","v":0},null,{"$f":"COUNTA(C8:C27)","v":0}]
[null,null,null,null,null,null,null,null,null,null,2,{"$f":"\" Deben por lo menos tener \"&IF(H5=\"POS\",100,0) &\"  Puntos para poder cumplir con los topes de la convocatoria!\"","v":" Deben por lo menos tener 100  Puntos para poder cumplir con los topes de la convocatoria!"}]
[null,null,null,null,null,null,null,null,null,null,3,{"$f":"\"Error : Tiene selecionados \"&U79 &\" productos sin cantidad en algunos.\"","v":"Error : Tiene selecionados 0 productos sin cantidad en algunos."}]
[null,null,null,null,null,null,null,null,null,null,4," ",null,null,null,null,null,null,null,null,null,{"$f":"COUNTIF(F8:F27,\">\"&0)","v":20}]
[null,null,null,null,null,null,null,null,null,null,5," "]
[null,null,null,null,null,null,null,null,null,null,6," "]
[null,null,null,null,null,null,null,null,null,null,7," "]
[null,null,null,null,null,null,null,null,null,null,8," "]
[null,null,null,null,null,null,null,null,null,null,9," "]
[null,null,null,null,null,null,null,null,null,null,10," "]

{"sheet":"Integrantes","index":9,"n_rows":50,"n_cols":31,"rows_kept":50,"cut":false,"hidden":false,"merged":[[24,25,24,26],[35,1,37,1],[20,1,22,1],[23,1,25,1],[26,1,28,1],[29,1,31,1],[32,1,34,1],[21,5,21,7],[24,5,24,7],[27,5,27,7],[30,5,30,7],[33,5,33,7],[36,5,36,7],[11,1,13,1],[14,1,16,1],[17,1,19,1],[2,1,3,4],[2,6,2,7],[3,6,3,7],[8,1,10,1],[9,5,9,7],[10,3,10,7],[12,5,12,7],[18,5,18,7],[15,5,15,7]]}
[8]
[]
[null,{"$f":"Productos!B2","v":"PRESENTACIÓN DE PROYECTOS \nEN INVESTIGACIÓN DE POSGRADOS"},null,null,null,{"$f":"General!$H$2","v":"Fecha de Emisión: 2018/03/07"},"IN-IV-F-14",null,null,null,null,null,"Ok","Puntos","IP Max","IP Min","CO Max","CO Min","CR"]
[null,null,null,null,null,{"$f":"General!$H$3","v":"Revision N°:\n3"},{"$f":"\"Página \"&A1&\" de \"&Dt_TPG","v":"Página 8 de 11"},{"$f":"\"Página \"&A2&\" de \"&Dt_TPG","v":"Página  de 11"},null,20,null,null,{"$f":"IF(H6>=100,1,0)","v":0},{"$f":"S8","v":0},{"$f":"VLOOKUP($M$4,$M$8:$T$23,3,0)","v":0},{"$f":"VLOOKUP($M$4,$M$8:$T$23,4,0)","v":0},{"$f":"VLOOKUP($M$4,$M$8:$T$23,5,0)","v":0},{"$f":"VLOOKUP($M$4,$M$8:$T$23,6,0)","v":0},{"$f":"VLOOKUP($M$4,$M$8:$T$23,2,0)","v":30},{"$f":"VLOOKUP($M$4,$M$8:$T$23,8,0)","v":50}]
[]
["11.-","Investigadores Integrantes del proyecto.",null,null,null,{"$f":"Cel_TP","v":"POS"},{"$f":"Cel_Fac","v":"NT"},{"$f":"V_Max","v":0},null,{"$f":"IF(F6=\"FOR\",12,24)","v":24},null,null,null,null,null,null,null,null,null,null,null,null,"* Cuadro para tener relación entre Fincion y Tipo de Vinculo"]
[]
[null,"No","Identificacion","Nombres","Apellidos","Nivel Academico","Mes","Horas",null,"Max","Min",null,"Ok","Puntos","IP Max","IP Min","CO Max","CO Min",{"$f":"H6","v":0},"Valores",null,null,"Funcion ","y","Vinculo","Mes","Fila"]
[null,1,null,"a",null,null,{"$f":"J6","v":24},null,null,{"$f":"O4","v":0},{"$f":"P4","v":0},{"$f":"IF(OR(H9>J9,H9<K9),1,0)","v":0},{"$f":"IF(SUM($M$10:$M$23)=0,1,IF(N9=S9,1,0))","v":1},20,0,0,0,0,{"$f":"INT(S8/10)*10","v":0},25,null,null,"Investigador Principal",{"$f":"$X$8&\"9:\"&$X$8&\"10\"","v":"y9:y10"},"Doc. Carrera TC",{"$f":"G9","v":24},{"$f":"ROW()","v":9}]
[null,null,"Funcion :","Investigador Principal","Doc. Carrera TC",null,null,null,null,{"$f":"IFERROR(VLOOKUP($F10,V_IdNBC,2,0),0)","v":0},null,"Doc. Carrera MT",{"$f":"IF(N10=S10,1,0)","v":0},{"$f":"N9+10","v":30},0,0,0,0,{"$f":"INT(S9/5)*5","v":0},50,null,null,"Investigador Principal",{"$f":"$X$8&\"9:\"&$X$8&\"10\"","v":"y9:y10"},"Doc. Carrera MT",{"$f":"Z9","v":24},{"$f":"ROW()","v":10}]
[null,null,"CvLac:",null,null,null,null,null,null,{"$f":"IF($D10=$W$19,20,IFERROR(VLOOKUP($E10,$Y$8:$Z$20,2,0),$G$9))","v":24},{"$f":"IF($D10=$W$11,IF($E10=$Y$13,10,12),0)","v":0},null,0,{"$f":"N10+10","v":40},0,0,0,0,0,75,null,null,"Co_Tutores",{"$f":"$X$8&\"11:\"&$X$8&\"14\"","v":"y11:y14"},"Doc. Carrera TC",{"$f":"Z10","v":24},{"$f":"ROW()","v":11}]
[null,2,null,null,null,null,10,null,null,0,{"$f":"IF(E13=$Y$14,0,IF($D13=\"Coinvestigador\",$R$4,0))","v":0},{"$f":"IF(OR(H12>J12,H12<K12),1,0)","v":0},0,50,0,0,0,{"$f":"P12","v":0},0,100,null,null,"Co_Tutores",{"$f":"$X$8&\"11:\"&$X$8&\"14\"","v":"y11:y14"},"Doc. Carrera MT",{"$f":"Z11","v":24},{"$f":"ROW()","v":12}]
[null,{"$f":"+B12","v":2},"Funcion :","Auxiliar de Investigación.","Estímulo a estudiante",null,null,null,null,{"$f":"IFERROR(VLOOKUP($F13,V_IdNBC,2,0),0)","v":0},{"$f":"IF($D13=$K$10,\"Ok\",\"\")","v":""},null,0,60,0,0,0,{"$f":"P13","v":0},0,100,null,null,"Co_Tutores",{"$f":"$X$8&\"11:\"&$X$8&\"14\"","v":"y11:y14"},"Doc. Ocasional",10,{"$f":"ROW()","v":13}]
[null,{"$f":"+B13","v":2},"CvLac:",null,null,null,null,null,null,{"$f":"IF($D13=$W$19,20,IFERROR(VLOOKUP($E13,$Y$8:$Z$20,2,0),$G$9))","v":10},{"$f":"IF($D13=$W$11,IF($E13=$Y$13,10,12),0)","v":0},null,0,70,0,0,0,0,0,100,null,null,"Co_Tutores",{"$f":"$X$8&\"11:\"&$X$8&\"14\"","v":"y11:y14"},"Externo a la UMNG",{"$f":"Z12","v":24},{"$f":"ROW()","v":14}]
[null,{"$f":"B12+1","v":3},null,null,null,null,{"$f":"G12","v":10},null,null,0,{"$f":"IF(E16=$Y$14,0,IF($D16=\"Coinvestigador\",$R$4,0))","v":0},{"$f":"IF(OR(H15>J15,H15<K15),1,0)","v":0},0,80,0,0,0,0,0,100,null,null,"Asesor",{"$f":"$X$8&AA15&\":\"&$X$8&AA15","v":"y15:y15"},"Externo a la UMNG",{"$f":"Z14","v":24},{"$f":"ROW()","v":15}]
[null,{"$f":"+B15","v":3},"Funcion :",null,null,null,null,null,null,{"$f":"IFERROR(VLOOKUP($F16,V_IdNBC,2,0),0)","v":0},{"$f":"IF($D16=$K$10,\"Ok\",\"\")","v":"Ok"},null,0,90,0,0,0,0,0,100,null,null,"Asistente OPS","y16:y16","OPS - Prestación Servicios",10,{"$f":"ROW()","v":16}]
[null,{"$f":"+B16","v":3},"CvLac:",null,null,null,null,null,null,{"$f":"IF($D16=$W$19,20,IFERROR(VLOOKUP($E16,$Y$8:$Z$20,2,0),$G$9))","v":24},{"$f":"IF($D16=$W$11,IF($E16=$Y$13,10,12),0)","v":0},null,0,100,20,12,10,8,0,100,null,null,"Auxiliar de Investigación.","y17:y17","Estímulo a estudiante",10,{"$f":"ROW()","v":17}]
[null,{"$f":"B15+1","v":4},null,null,null,null,{"$f":"G15","v":10},null,null,{"$f":"IF($E19=$Y$15,IF($D19=$W$15,0,40),IF($D19=\"Coinvestigador\",J$9/2,40))","v":40},{"$f":"IF(E19=$Y$14,0,IF($D19=\"Coinvestigador\",$R$4,0))","v":0},{"$f":"IF(OR(H18>J18,H18<K18),1,0)","v":0},0,110,{"$f":"O17","v":20},{"$f":"P17","v":12},{"$f":"Q17","v":10},{"$f":"R17","v":8},0,100,null,null,"Joven Investigador","y18:y18","OPS - Prestación Servicios",10,{"$f":"ROW()","v":18}]
[null,{"$f":"+B18","v":4},"Funcion :",null,null,null,null,null,null,{"$f":"IFERROR(VLOOKUP($F19,V_IdNBC,2,0),0)","v":0},{"$f":"IF($D19=$K$10,\"Ok\",\"\")","v":"Ok"},null,0,120,20,12,10,8,0,100,null,null,"Asistente Graduado","y19:y19","Estímulo a estudiante",10,{"$f":"ROW()","v":19}]
[null,{"$f":"+B19","v":4},"CvLac:",null,null,null,null,null,null,{"$f":"IF($D19=$W$19,20,IFERROR(VLOOKUP($E19,$Y$8:$Z$20,2,0),$G$9))","v":24},{"$f":"IF($D19=$W$11,IF($E19=$Y$13,10,12),0)","v":0},null,0,130,20,12,10,8,0,100,null,null,"Estudiante","y20:y20","Auxiliar  de Investigación",10,{"$f":"ROW()","v":20}]
[null,{"$f":"B18+1","v":5},null,null,null,null,{"$f":"G18","v":10},null,null,{"$f":"IF($E22=$Y$15,IF($D22=$W$15,0,40),IF($D22=\"Coinvestigador\",J$9/2,40))","v":40},{"$f":"IF(E22=$Y$14,0,IF($D22=\"Coinvestigador\",$R$4,0))","v":0},{"$f":"IF(OR(H21>J21,H21<K21),1,0)","v":0},0,140,20,12,10,8,0,100]
[null,{"$f":"+B21","v":5},"Funcion :",null,null,null,null,null,null,{"$f":"IFERROR(VLOOKUP($F22,V_IdNBC,2,0),0)","v":0},{"$f":"IF($D22=$K$10,\"Ok\",\"\")","v":"Ok"},null,0,150,20,12,10,8,0,100]
[null,{"$f":"+B22","v":5},"CvLac:",null,null,null,null,null,null,{"$f":"IF($D22=$W$19,20,IFERROR(VLOOKUP($E22,$Y$8:$Z$20,2,0),$G$9))","v":24},{"$f":"IF($D22=$W$11,IF($E22=$Y$13,10,12),0)","v":0},null,0,160,20,12,10,8,0,100]
[null,{"$f":"B21+1","v":6},null,null,null,null,null,null,null,{"$f":"IF($E25=$Y$15,IF($D25=$W$15,0,40),IF($D25=\"Coinvestigador\",J$9/2,40))","v":40},{"$f":"IF(E25=$Y$14,0,IF($D25=\"Coinvestigador\",$R$4,0))","v":0},{"$f":"IF(OR(H24>J24,H24<K24),1,0)","v":0}]
[null,{"$f":"+B24","v":6},"Funcion :",null,null,null,null,null,null,{"$f":"IFERROR(VLOOKUP($F25,V_IdNBC,2,0),0)","v":0},{"$f":"IF($D25=$K$10,\"Ok\",\"\")","v":"Ok"},null,"N","Tipos",1,2,3,"No",null,null,null,null,"Clasificación de grupo máximo asociado a la propuesta ",null,null,{"$f":"Gp_Max","v":0}]
[null,{"$f":"+B25","v":6},"CvLac:",null,null,null,null,null,null,{"$f":"IF($D25=$W$19,20,IFERROR(VLOOKUP($E25,$Y$8:$Z$20,2,0),$G$9))","v":24},{"$f":"IF($D25=$W$11,IF($E25=$Y$13,10,12),0)","v":0},null,1,"Investigador Principal",null,null,null,{"$f":"COUNTIF($D$10:$D$38,$N26)","v":1},null,null,null,null,null,null,null,"Inv IP"]
[null,{"$f":"B24+1","v":7},null,null,null,null,null,null,null,{"$f":"IF($E28=$Y$15,IF($D28=$W$15,0,40),IF($D28=\"Coinvestigador\",J$9/2,40))","v":40},{"$f":"IF(E28=$Y$14,0,IF($D28=\"Coinvestigador\",$R$4,0))","v":0},{"$f":"IF(OR(H27>J27,H27<K27),1,0)","v":0},2,"Coinvestigador",null,null,null,{"$f":"COUNTIF($D$10:$D$38,$N27)","v":0},null,null,null,null,"Grupos","Millon","Entre","Max","Min"]
[null,{"$f":"+B27","v":7},"Funcion :",null,null,null,null,null,null,{"$f":"IFERROR(VLOOKUP($F28,V_IdNBC,2,0),0)","v":0},{"$f":"IF($D28=$K$10,\"Ok\",\"\")","v":"Ok"},null,3,"Asistente OPS",null,null,null,0,null,null,null,null,"Avalados ",0,0,null,null,null,null,8,4]
[null,{"$f":"+B28","v":7},"CvLac:",null,null,null,null,null,null,{"$f":"IF($D28=$W$19,20,IFERROR(VLOOKUP($E28,$Y$8:$Z$20,2,0),$G$9))","v":24},{"$f":"IF($D28=$W$11,IF($E28=$Y$13,10,12),0)","v":0},null,4,"Joven Investigador",null,null,null,0,null,null,null,null,"No reconicido",0,0,null,null,null,null,12,8]
[null,{"$f":"B27+1","v":8},null,null,null,null,null,null,null,{"$f":"IF($E31=$Y$15,IF($D31=$W$15,0,40),IF($D31=\"Coinvestigador\",J$9/2,40))","v":40},{"$f":"IF(E31=$Y$14,0,IF($D31=\"Coinvestigador\",$R$4,0))","v":0},{"$f":"IF(OR(H30>J30,H30<K30),1,0)","v":0},5,"Asistente Graduado",null,null,null,0,null,null,null,null,"Reconocidos",50,0,null,null,null,null,16,12]
[null,{"$f":"+B30","v":8},"Funcion :",null,null,null,null,null,null,{"$f":"IFERROR(VLOOKUP($F31,V_IdNBC,2,0),0)","v":0},{"$f":"IF($D31=$K$10,\"Ok\",\"\")","v":"Ok"},null,6,"Asesor",null,null,null,0,null,null,null,null,"Mayores de Cat. C",0,0,null,null,null,null,20,16]
[null,{"$f":"+B31","v":8},"CvLac:",null,null,null,null,null,null,{"$f":"IF($D31=$W$19,20,IFERROR(VLOOKUP($E31,$Y$8:$Z$20,2,0),$G$9))","v":24},{"$f":"IF($D31=$W$11,IF($E31=$Y$13,10,12),0)","v":0},null,7,"Estudiante",null,null,null,0,null,null,null,null,"Mayores de Cat. C",0,0,null,null,null,null,24,10]
[null,{"$f":"B30+1","v":9},null,null,null,null,null,null,null,{"$f":"IF($E34=$Y$15,IF($D34=$W$15,0,40),IF($D34=\"Coinvestigador\",J$9/2,40))","v":40},{"$f":"IF(E34=$Y$14,0,IF($D34=\"Coinvestigador\",$R$4,0))","v":0},{"$f":"IF(OR(H33>J33,H33<K33),1,0)","v":0},null,null,null,null,null,null,null,null,null,null,"IMP",0,0]
[null,{"$f":"+B33","v":9},"Funcion :",null,null,null,null,null,null,{"$f":"IFERROR(VLOOKUP($F34,V_IdNBC,2,0),0)","v":0},{"$f":"IF($D34=$K$10,\"Ok\",\"\")","v":"Ok"},null,"N","Nivel",null,null,null,"No"]
[null,{"$f":"+B34","v":9},"CvLac:",null,null,null,null,null,null,{"$f":"IF($D34=$W$19,20,IFERROR(VLOOKUP($E34,$Y$8:$Z$20,2,0),$G$9))","v":24},{"$f":"IF($D34=$W$11,IF($E34=$Y$13,10,12),0)","v":0},null,null,"Postdoctorado",null,null,null,{"$f":"IF($F$9=N35,1,0)","v":0},null,null,null,"No","Mensaje de Error "]
[null,{"$f":"B33+1","v":10},null,null,null,null,null,null,null,{"$f":"IF($E37=$Y$15,IF($D37=$W$15,0,40),IF($D37=\"Coinvestigador\",J$9/2,40))","v":40},{"$f":"IF(E37=$Y$14,0,IF($D37=\"Coinvestigador\",$R$4,0))","v":0},{"$f":"IF(OR(H36>J36,H36<K36),1,0)","v":0},null,"Doctorado",null,null,null,{"$f":"IF($F$9=N36,1,0)","v":0},null,null,null,0," "]
[null,{"$f":"+B36","v":10},"Funcion :",null,null,null,null,null,null,{"$f":"IFERROR(VLOOKUP($F37,V_IdNBC,2,0),0)","v":0},{"$f":"IF($D37=$K$10,\"Ok\",\"\")","v":"Ok"},null,null,"Maestría",null,null,null,{"$f":"IF($F$9=N37,1,0)","v":0},null,null,null,1,"Error: El lider del proyecto debe tener titulación doctoral."]
[null,{"$f":"+B37","v":10},"CvLac:",null,null,null,null,null,null,{"$f":"IF($D37=$W$19,20,IFERROR(VLOOKUP($E37,$Y$8:$Z$20,2,0),$G$9))","v":24},{"$f":"IF($D37=$W$11,IF($E37=$Y$13,10,12),0)","v":0},null,null,null,null,null,null,null,null,null,null,2]
[]
[null,null,null,null,null,null,null,null,null,null,null,null,"ERR",{"$f":"VLOOKUP(Y40,M41:O50,2,0)","v":"Error No tiene la productividad necesaria (100 Tps Minimo)"},null,null,null,null,null,"Validaciones",null,null,null,null,{"$f":"MAX(Y41:Y48)","v":5}]
[null,null,null,null,null,null,null,null,null,null,null,null,0," ",null,null,null,null,null,1,"Validacion Pruductividad Minima",null,null,null,0]
[null,null,null,null,null,null,null,null,null,null,null,null,1,"El Investigador Principal debe tener doctorado para proyecto de Alto Impacto.",null,null,null,null,null,2,"No hay integrantes",null,null,null,{"$f":"IF(Z42=0,2,0)","v":2},{"$f":"SUM(H9,H12,H15,H18,H21,H24,H27,H30,H33,H36)","v":0}]
[null,null,null,null,null,null,null,null,null,null,null,null,2,"Error :  hasta el momento no tiene integrantes con horas ",null,null,null,null,null,3,"Validación de las horas de investigación estan bien",null,null,null,{"$f":"IF(SUM(L36,L33,L30,L27,L24,L21,L18,L15,L12,L9)>0,2,0)","v":0}]
[null,null,null,null,null,null,null,null,null,null,null,null,3,"Error :  hay  integrantes con las horas mal diligenidas",null,null,null,null,null,4,"Validacion de contrapartida",null,null,null,{"$f":"IF(AB44=AB45,0,4)","v":0},null,null,{"$f":"Presupuesto!H24","v":0}]
[null,null,null,null,null,null,null,null,null,null,null,null,4,"Error: debe poner atención en los integrantes IP o CO que carge de contrapartida",null,null,null,null,null,5,"No tiene la productividad Necesaria",null,null,null,{"$f":"IF(H6<=100,5,0)","v":5},null,null,{"$f":"Presupuesto!P46","v":0}]
[null,null,null,null,null,null,null,null,null,null,null,null,5,"Error No tiene la productividad necesaria (100 Tps Minimo)",null,null,null,null,null,6]
[null,null,null,null,null,null,null,null,null,null,null,null,6,null,null,null,null,null,null,7]
[null,null,null,null,null,null,null,null,null,null,null,null,7,null,null,null,null,null,null,8]
[null,null,null,null,null,null,null,null,null,null,null,null,8,null,null,null,null,null,null,9]
[null,null,null,null,null,null,null,null,null,null,null,null,9,null,null,null,null,null,null,10]

{"sheet":"Presupuesto","index":10,"n_rows":153,"n_cols":29,"rows_kept":153,"cut":false,"hidden":false,"merged":[[144,4,145,8],[142,4,142,8],[144,3,145,3],[109,1,111,1],[112,1,114,1],[115,1,117,1],[118,1,120,1],[121,1,123,1],[124,1,126,1],[130,1,132,1],[127,1,129,1],[94,1,96,1],[97,1,99,1],[100,1,102,1],[103,1,105,1],[106,1,108,1],[2,1,3,6],[49,4,49,5],[50,4,50,5],[84,4,84,5],[83,4,83,5],[6,3,6,8],[7,3,7,5],[7,7,7,8],[51,4,51,5],[52,4,52,5],[53,4,53,5],[54,4,54,5],[55,4,55,5],[56,4,56,5],[57,4,57,5],[58,4,58,5],[59,4,59,5],[60,4,60,5],[61,4,61,5],[67,4,67,5],[62,4,62,5],[63,4,63,5],[64,4,64,5],[65,4,65,5],[66,4,66,5]]}
[9,null,null,null,null,null,null,null,null,null,null,null,null,null,null,null,null,"Tabla de Topes"]
[null,null,null,null,null,null,null,null,null,null,null,null,"1.-> Limite presupuestal",{"$f":"IF(MIN(N6:P6)<1, 0,MIN(N6:P6))","v":0},null,null,null,"Clasif"]
[null,{"$f":"Integrantes!B3","v":"PRESENTACIÓN DE PROYECTOS \nEN INVESTIGACIÓN DE POSGRADOS"},null,null,null,null,null,{"$f":"General!$H$2","v":"Fecha de Emisión: 2018/03/07"},{"$f":"General!$I$2","v":"IN-IV-F-14"},null,null,null,null,"Limite Grupo","Limite Producto","Limite Convo",null,"A",{"$f":"IF($H$10=\"IMP\",250,100)","v":100}]
[null,null,null,null,null,null,null,{"$f":"General!$H$3","v":"Revision N°:\n3"},{"$f":"\"Página \"&$A$1&\" de \"&Dt_TPG","v":"Página 9 de 11"},null,null,null,"Mayor Grupo",{"$f":"Productos!G70","v":0},5,100,null,"A1",{"$f":"IF($H$10=\"IMP\",250,100)","v":100}]
[null,null,null,null,null,null,null,null,null,null,null,null,null,null,null,null,null,"B",{"$f":"IF($H$10=\"IMP\",250,100)","v":100}]
[null,null,null,null,null,null,null,null,null,null,null,null,1000000,{"$f":"IF(N8>3,P6,0)","v":0},{"$f":"M6*Productos!N60","v":0},{"$f":"M6*P4","v":100000000},null,"C",{"$f":"IF($H$10=\"IMP\",250,100)","v":100}]
[null,"T","Título de la Propuesta :",{"$f":"General!B9","v":"Formato: actualizado a 06 Nov 2019"},null,null,null,null,null,null,null,null,null,null,null,null,null,"R",{"$f":"IF($H$10=\"IMP\",250,50)","v":50}]
[null,"L","Lider responsable",{"$f":"General!C10","v":0},null,null,"Codigo VICEIN:",{"$f":"CLEAN(General!H7)","v":""},null,null,null,null,1.673416039737655,{"$f":"General!L29","v":3},null,null,null,"NR",{"$f":"IF($H$10=\"IMP\",250,25)","v":25}]
[null,null,null,null,null,null,null,null,null,null,null,null,1.5,null,null,null,null,"NA",0]
["12.-","Presupuesto rubro personal asocidado a la propuesta",null,null,null,null,{"$f":"V_Max","v":0},{"$f":"Cel_TP","v":"POS"},{"$f":"Gp_Max","v":0}]
[null,null,null,null,null,null,null,null,1.66]
[null,"a.","Personal de planta o ocasional que integra al proyecto de investigación.",null,null,null,null,"Valores de Contrapartida."]
[{"$f":"ROW()","v":13},"N°","Sueldo Neto \n(Valor Devengado)","Factor ","Tipo de Vinculo UMNG","Numero de meses ","Número Horas / Semanal","Valor Final","Identificación",null,null,"*tabla de consolidacion por año para proyectos IMP"]
[null,{"$f":"ROW()-$A$13","v":1},null,{"$f":"IFERROR(VLOOKUP($E14,$M$14:$P$17,4,0),0)","v":1.673416039737655},{"$f":"INDIRECT($I$24&\"E\"&$J14+1,1)","v":"Doc. Carrera TC"},{"$f":"INDIRECT($I$24&\"G\"&$J14,1)","v":24},{"$f":"INDIRECT($I$24&\"H\"&$J14,1)","v":0},{"$f":"INT(((C14*F14)/40)*G14*$I$11)","v":0},{"$f":"INDIRECT($I$24&\"C\"&$J14,1)","v":0},9,null,0,"Tipo Vinculo UMNG","Año1","Año2",null,"Validación Presupuestal"]
[null,{"$f":"ROW()-$A$13","v":2},null,{"$f":"IFERROR(VLOOKUP($E15,$M$14:$P$17,4,0),0)","v":0},"Estímulo a estudiante",10,0,0,0,{"$f":"J14+3","v":12},null,1,"Doc. Carrera TC",{"$f":"(SUMIF($E$14:$E$23,$M15,$H$14:$H$23)/2)","v":0},{"$f":"N15","v":0},{"$f":"M8","v":1.673416039737655},{"$f":"\"Validación de \"&M38","v":"Validación de (Au.) -Auxiliar Pregrado"},null,"Ajustado por adenda no 2"]
[null,3,null,0,0,10,0,0,0,{"$f":"J15+3","v":15},null,2,"Doc. Carrera MT",{"$f":"(SUMIF($E$14:$E$23,$M16,$H$14:$H$23)/2)","v":0},{"$f":"N16","v":0},{"$f":"P15","v":1.673416039737655},"Parte","Cntidad","por uno solo","Debe ser","Error de Asistente"]
[null,4,null,0,0,10,0,0,0,18,null,3,"Doc. Ocasional",{"$f":"SUMIF($E$14:$E$23,$M17,$H$14:$H$23)","v":0},0,{"$f":"M9","v":1.5},"No de AU Preg",{"$f":"COUNTIF($E$29:$E$44,$M$38)","v":0},null,1,0,null,null,25,0.05]
[null,5,null,0,0,10,0,0,0,21,null,1,"Contrapartida Facultad  IMP:",{"$f":"SUM(N15:N17)","v":0},{"$f":"SUM(O15:O17)","v":0},null,"No Horas",{"$f":"SUMIF($E$29:$E$43,$M$38,G29:G43)","v":0},{"$f":"IFERROR(R18/R17,0)","v":0},20,{"$f":"IF(S18<=T18,0,1)","v":0},null,null,50,0.1]
[null,6,null,0,0,0,0,0,0,24,null,2,"Contrapartida Facultad  INV:",{"$f":"SUM(N15:O17)","v":0},null,null,"No Meses",{"$f":"SUMIF($E$29:$E$43,$M$38,F29:F43)","v":0},{"$f":"IFERROR(R19/R17,0)","v":0},6,{"$f":"IF(S19=T19,0,1)","v":1},null,null,75,0.15]
[null,7,null,0,0,0,0,0,0,27,null,null,null,null,null,null,null,null,null,"Si  es Mas de 1 tiene problema en Auxiliar de pregrado --->>",{"$f":"SUM(U17:U19)","v":1},null,null,100,0.15]
[null,8,null,0,0,0,0,0,0,30,null,null,null,null,null,null,"Estiimulo a estudiantes",null,{"$f":"INT(N2/1000000)","v":0},{"$f":"SUM(R36:R40)","v":0},{"$f":"IFERROR(T21/N2,0)","v":0},null,null,250,0.15]
[null,9,null,0,0,0,0,0,0,33,null,null,null,null,null,null,"Limite inferior de estimulo a estudiantes",null,null,{"$f":"IFERROR((S21*1000000)*U22,0)","v":0},{"$f":"VLOOKUP($S$21,$X$17:$Y$21,2,0)","v":{"$error":"#N/A"}}]
[null,10,null,0,0,0,0,0,0,36,null,null,null,null,null,null,null,null,null,{"$f":"ABS(T22-T21)","v":0}]
[null,null,"Sumatoria del calculo de personal de planta \"Valor contrapartida Facultades\":",null,null,null,null,{"$f":"INT(SUBTOTAL(109,H14:H23))*J24","v":0},"Integrantes!",1,null,null,"Incremento al salario"]
[null,null,null,null,null,null,null,null,null,null,null,null,0,null,null,{"$f":"(J26/6)/6","v":0}]
[null,"b. ","Asistentes externos o temporales contratados por (OPS) y/o hora cadedra.",null,null,null,null,null,null,null,null,null,"Valor SMLV","Max Mes"]
[null,">","Salario  Minimo Legal Vigente (SMIV) : ",null,null,828116,null,36885850,null,{"$f":"(F27*J29)*10","v":24843480},null,null,{"$f":"F27*(1+M25)","v":828116},{"$f":"INT(Integrantes!J6/10)*10","v":20},null,null,null,null,null,2017,"Datos Pasados No Validos "]
[]
[{"$f":"ROW()","v":29},"No","Valor mensual","Factor Salarial","Tipo de vinculación",{"$f":"\"Numero de meses\"","v":"Numero de meses"},"Número Horas / Semanal","Valor total","Valores  de entidades externas",3,"(Au.) ","No","Tipo","Valor total del contrato (10 mes)","SMMLV por 10 Meses","Valor mes contrato","Hay","Hay en $","Inicia desde","Valor total del contrato (10 mes)","SMMLV","Valor mes contrato",null,"Va desde hasta","Salarios Minimos",null,"Figuras","arranca desde","Maximo Factor"]
[null,{"$f":"ROW()-$A$29","v":1},{"$f":"IFERROR(H30/F30,0)","v":0},0,null,10,0,{"$f":"($F$27*D30*F30)/IF($E30=$M$38,10,1)*IF(COUNTIF($M$30:$M$35,$E30)=1,G30/40,1)","v":0},null,{"$f":"IF($E30=$M$38,K30,IFERROR(VLOOKUP($E30,$M$29:$O$40,2,0),0)*IF($H$10=\"IMP\",2,1))","v":0},{"$f":"IFERROR(IF(FIND($K$29,$E30,1)=1,VLOOKUP($E30,$M$38:$AC$40,2,0),0),0)/IF($E30=$M$38,10,1)","v":0},1,"(A.I.) -Técnico",{"$f":"$M$27*O30","v":16562320},20,{"$f":"N30/10","v":1656232},{"$f":"COUNTIF($E$29:$E$44,$M30)","v":0},{"$f":"SUMIF($E$30:$E$44,$M30,$H$30:$H$44)","v":0},{"$f":"U30","v":20},14754340,20,1475434,null,{"$f":"\"Y\"&ROW()","v":"Y30"},6,null,{"$f":"E30","v":0},{"$f":"IFERROR(VLOOKUP($AA30,$M$29:$S$40,7,0)/10,0)","v":0},{"$f":"IFERROR(VLOOKUP($AA30,$M$29:$R$40,3,0)/IF($AA30=$M$38,6,10),0)","v":0}]
[null,{"$f":"ROW()-$A$29","v":2},{"$f":"IFERROR(H31/F31,0)","v":0},0,null,10,0,{"$f":"($F$27*D31*F31)/IF($E31=$M$38,10,1)*IF(COUNTIF($M$30:$M$35,$E31)=1,G31/40,1)","v":0},null,{"$f":"IF($E31=$M$38,K31,IFERROR(VLOOKUP($E31,$M$29:$O$40,2,0),0)*IF($H$10=\"IMP\",2,1))","v":0},{"$f":"IFERROR(IF(FIND($K$29,$E31,1)=1,VLOOKUP($E31,$M$38:$AC$40,2,0),0),0)/IF($E31=$M$38,10,1)","v":0},2,"(A.I.) -Profesional",28984060,35,2898406,0,0,35,25820095,35,2582009.5,null,{"$f":"\"Y\"&ROW()","v":"Y31"},{"$f":"Y30-0.5","v":5.5},null,{"$f":"E31","v":0},{"$f":"IFERROR(VLOOKUP($AA31,$M$29:$S$40,7,0)/10,0)","v":0},{"$f":"IFERROR(VLOOKUP($AA31,$M$29:$R$40,3,0)/IF($AA31=$M$38,6,10),0)","v":0}]
[null,3,0,0,null,10,0,0,null,{"$f":"IFERROR(VLOOKUP($E32,$M$29:$O$40,2,0),0)*IF($H$10=\"IMP\",2,1)","v":0},0,3,"(A.I.) -Profesional especilizado",33124640,40,3312464,0,0,40,29508680,40,2950868,null,"Y32",{"$f":"Y31-0.5","v":5},null,0,0,0]
[null,4,0,0,null,10,0,0,null,0,0,4,"(A.I.) -Profesional magister",37265220,45,3726522,0,0,45,33197265,45,3319726.5,null,"Y33",4.5,null,0,0,0]
[null,5,0,0,null,10,0,0,null,0,0,5,"(A.I.) -Profesional doctorado",45546380,55,4554638,0,0,55,40574435,55,4057443.5,null,"Y34",4,null,0,0,0]
[null,6,0,0,null,10,0,0,null,0,0,6,"(J.I)  -Joven investigador",28984060,35,2898406,0,0,35,25820095,35,2582009.5,null,"Y35",3.5,null,0,0,0]
[null,7,0,0,null,10,0,0,null,0,0,7,"(A.G) -Asistente graduado Mg.",37265220,45,3726522,0,0,0.1,36885850,50,3688585,null,"Y36",3,null,0,0,0]
[null,8,0,0,null,0,0,0,null,0,0,8,"(A.G) -Asistente graduado Dr.",49686960,60,4968696,0,0,0.1,51640190,70,5164019,null,"Y37",2.5,null,0,0,0]
[null,9,0,0,null,0,0,0,null,0,0,9,"(Au.) -Auxiliar Pregrado",24843480,30,2604140,0,0,0.1,"NA","NA","NA",null,"Y38",2,null,0,0,0]
[null,10,0,0,null,0,0,0,null,0,0,10,"(Au.) -Auxiliar Prostgrado Mg.",16562320,20,{"$f":"N39/5","v":3312464},0,0,0.1,"NA","NA","NA",null,"Y39",1.5,null,{"$f":"E39","v":0},0,0]
[null,11,0,0,null,0,0,0,null,0,0,11,"(Au.) -Auxiliar Prostgrado Dr.",24843480,30,{"$f":"N40/5","v":4968696},0,0,0.1,"NA","NA","NA",null,"Y40",1,null,{"$f":"E40","v":0},0,0]
[null,12,0,0,null,0,0,0,null,0,0,null,null,"Salario 12 meses",null,null,null,null,"Validacion de estimulo a estudiantes",null,null,{"$f":"G10","v":0},null,"Y41",0.5,null,{"$f":"E41","v":0},0,0]
[null,13,0,0,null,0,0,0,null,0,0,null,null,null,null,null,null,null,null,null,"%",null,null,null,null,null,{"$f":"E42","v":0},0,0]
[null,14,0,0,null,0,0,0,null,0,0,null,"Joven investigador Colciencias",{"$f":"M27*3*12","v":29812176},null,null,null,null,true,"Estudiantes Min",{"$f":"IFERROR(VLOOKUP($S$43,$S$44:$V$48,3,0),0)","v":0},{"$f":"IFERROR(VLOOKUP($S$43,$S$44:$V$48,4,0),0)","v":0},null,null,null,null,{"$f":"E43","v":0},0,0]
[null,{"$f":"14-COUNTIF(E30:E43,\"\")","v":0},"Sumatoria del calculo de OPS  \"Valor financiado Vicein\" en rubro de (Personal):",null,null,null,{"$f":"IF(H44>N2,\"Esta superando el total de presupuesto\",\"\")","v":""},{"$f":"IFERROR(INT(SUM(H30:H43)),0)","v":0},0,{"$f":"IFERROR(VLOOKUP($E44,$M$29:$O$40,2,0),0)*IF($H$10=\"IMP\",2,1)","v":0},null,null,null,null,null,null,null,null,{"$f":"T44<$V$41","v":false},100,0.15,15000000]
[null,null,null,null,null,null,null,null,null,null,null,"Instrucción  ver Comentario… OJO VER EN ESTO IMP",null,null,null,null,null,null,{"$f":"T45<$V$41","v":false},80,0.15,15000000]
["13.-","Presupuesto detalle de Plan de compras general   .- La siguiente tabla debe diligenciarse manualmente ya que no arrastra informacion de  otros campos",null,null,null,null,null,null,null,null,null,1,"Para IMP - Contrapartida Facultad Año 1 es : ",null,{"$f":"N18","v":0},{"$f":"SUMIF($C$51:$C$86,$C$51,$H$51:$H$86)","v":0},null,null,{"$f":"T46<$V$41","v":false},60,0.15,11250000]
[null,null,null,null,null,null,null,null,null,null,null,2,"Para IMP - Contrapartida Facultad Año 2 es : ",null,{"$f":"O18","v":0},null,null,null,{"$f":"T47<$V$41","v":false},40,0.1,5000000]
[null,{"$f":"IFERROR(\"Nota : \"&VLOOKUP(I10,Dt_Limite,3,0),\" \")","v":" "},null,null,null,null,null,null,null,null,null,3,"Para Presupuesto $ VICEIN la mitad de OPS es :",null,{"$f":"H44/2","v":0},null,null,null,{"$f":"T48<$V$41","v":false},20,0.05,1250000]
[null,null,null,null,null,null,null,null,null,null,null,"Consulte sobre los items"]
[{"$f":"ROW()","v":50},"No","Rubro / Destino","Año de Vigencia","Descripción",null,"Finaciación Vicein $",{"$f":"G94","v":"$ Contrapartida Facultad"},"Contrapartida Otros $",null,null,"No","Nombre Rubro","Rubro","Limite%",{"$f":"N2","v":0},"Solicitado $Vicein","Limites de topes"]
[null,{"$f":"ROW()-$A$50","v":1},"Personal",1,"Horas de descarga académica",null,0,{"$f":"IF(H10=\"INV\",N19,N18)","v":0},null,null,{"$f":"M61","v":"Estímulo a estudiantes Posgrado"},{"$f":"ROW()-50","v":1},"Personal",611401,{"$f":"IFERROR(P51/$P$50,0)","v":0},{"$f":"SUMIF($C$50:$C$86,$M51,$G$50:$G$86)","v":0},{"$f":"IFERROR(P51/$P$50,0)","v":0},{"$f":"($P$50/100)*O51*100","v":0},"Personal",{"$f":"SUM(R30:R35)","v":0},{"$f":"SUMIF($C$51:$C$86,$S51,$G$51:$G$86)","v":0},{"$f":"U51-T51","v":0}]
[null,{"$f":"ROW()-$A$50","v":2},null,1,null,null,null,null,null,null,{"$f":"M55","v":"Materiales"},{"$f":"ROW()-50","v":2},"Equipos",632,0,0,{"$f":"IFERROR(P52/$P$50,0)","v":0},0,{"$f":"M60","v":"Estímulo a estudiantes Pregrado"},{"$f":"R38","v":0},{"$f":"SUMIF($C$51:$C$86,$S52,$G$51:$G$86)","v":0},{"$f":"U52-T52","v":0}]
[null,3,null,1,null,null,null,null,null,null,{"$f":"M57","v":"Salidas de Campo"},3,"Equipos transformables",632,0,0,0,0,{"$f":"M61","v":"Estímulo a estudiantes Posgrado"},{"$f":"SUM($R$36:$R$40)-R38","v":0},{"$f":"SUMIF($C$51:$C$86,$S53,$G$51:$G$86)","v":0},{"$f":"U53-T53","v":0}]
[null,4,null,1,null,null,null,null,null,null,{"$f":"M54","v":"Software"},4,"Software",612102,1,0,0,0,null,null,null,{"$f":"SUM(V51:V52)","v":0}]
[null,5,null,1,null,null,null,null,null,null,{"$f":"M63","v":"Licencias por suscripción"},5,"Materiales",612101,1,0,0,0]
[null,6,null,1,null,null,null,null,null,null,{"$f":"M58","v":"Servicios Técnicos"},6,"Materiales (Papelería)",612101,0,0,0,0,null,"Validación","Plan ","OPS Catedra"]
[null,7,null,1,null,null,null,null,null,null,null,7,"Salidas de Campo",612104,0.3,0,0,0,null,{"$f":"M51","v":"Personal"},{"$f":"COUNTIF($C$51:$C$85,T57)-1","v":0},{"$f":"SUM(Q30:Q35)","v":0},{"$f":"IF(U57<V57,1,0)","v":0}]
[null,8,null,1,null,null,null,null,null,null,null,8,"Servicios Técnicos",612103,1,0,0,0,null,{"$f":"M61","v":"Estímulo a estudiantes Posgrado"},{"$f":"COUNTIF($C$51:$C$85,T58)","v":0},{"$f":"SUM(Q36:Q40)","v":0},{"$f":"IF(U58<V58,1,0)","v":0}]
[null,9,null,1,null,null,null,null,null,null,null,9,"Recursos Biblograficos",633,0,0,0,0,null,"Diferencias ",null,{"$f":"IF(V54=0,0,1)","v":0},{"$f":"SUM(W57:W58)+V59","v":0}]
[null,10,null,1,null,null,null,null,null,null,null,10,"Estímulo a estudiantes Pregrado",612122,0,0,0,0]
[null,11,null,1,null,null,null,null,null,null,null,11,"Estímulo a estudiantes Posgrado",612123,1,0,0,0]
[null,12,null,1,null,null,null,null,null,null,null,12,"Movilidad",635020,0,0,0,0,{"$f":"V43","v":0},"Rubros financiables",null,null,null,null,null,null,25000000,0.05,{"$f":"AA62*AB62","v":1250000}]
[null,13,null,1,null,null,null,null,null,null,null,13,"Licencias por suscripción",636012,1,0,0,0,null,{"$f":"M61","v":"Estímulo a estudiantes Posgrado"},null,null,null,null,null,null,{"$f":"AA62+AA62","v":50000000},0.1,{"$f":"AA63*AB63","v":5000000}]
[null,14,null,1,null,null,null,null,null,null,null,14,"Viajes",612115,0,0,0,0,null,{"$f":"M55","v":"Materiales"},null,null,null,null,null,null,{"$f":"AA63+AA62","v":75000000},0.15,{"$f":"AA64*AB64","v":11250000}]
[null,15,null,1,null,null,null,null,null,null,null,15,"Mantenimiento","Pendiente",0,0,0,0,null,{"$f":"M57","v":"Salidas de Campo"},null,null,null,null,null,null,{"$f":"AA64+AA62","v":100000000},0.15,{"$f":"AA65*AB65","v":15000000}]
[null,16,null,1,null,null,null,null,null,null,null,16,"Administración",612118,0,0,0,0]
[null,17,null,1,null,null,null,null,null,null,null,17,"Construcciones","Pendiente",0,0,0,0]
[null,18,null,1,null,null,null,null,null,null,null,18,"Otros Gastos","Pendiente",0,0,0,0]
[null,19,null,1]
[null,20,null,1]
[null,21,null,1]
[null,22,null,1]
[null,23,null,1]
[null,24,null,1]
[null,25,null,1]
[null,26,null,1]
[null,27,null,1]
[null,28,null,1]
[null,29,null,1]
[null,30,null,1]
[null,31,null,1]
[null,32,null,1]
[null,33,null,1]
[null,34,null,1,null,null,null,null,null,null,null,null,"Tabla de errores posibles"]
[null,35,null,1,null,null,null,null,null,null,null,null,{"$f":"VLOOKUP(R85,L85:M109,2,0)","v":" "},null,"Verificacion de condiciones ",null,null,{"$f":"IFERROR(MAX(R86:R99),0)","v":0}]
[null,null,null,null,null,null,null,null,null,null,null,0," ",null,"Validacion de Int. Externa y Contrapartida",null,null,{"$f":"IF(E143=0,0,IF(H141=0,1,0))","v":0}]
[null,null,"Sumatoria general de plan de compras :",null,null,{"$f":"SUM(G87:I87)","v":0},{"$f":"SUM(G88:G89)","v":0},{"$f":"SUM(H88:H89)","v":0},{"$f":"SUM(I88:I89)","v":0},null,null,1,"Error:  con paricipación externa deben tener presupuesto en Contrapartida Externa.",null,"Validacion de presupuesto Maximo",null,null,{"$f":"IF(G87>E141,2,0)","v":0}]
[null,null,null,1,{"$f":"\"Total Presupuesto Año 1 \"&IF(H10=\"IMP\",\"IMP\",\"\")&\":\"","v":"Total Presupuesto Año 1 :"},null,{"$f":"IF(Cel_TP=\"FOR\",SUMIF($D$51:$D$86,$D88,G$51:G$86),SUM(G$51:G$86))","v":0},{"$f":"SUMIF($D$51:$D$86,$D88,H$51:H$86)","v":0},{"$f":"SUMIF($D$51:$D$86,$D88,I$51:I$86)","v":0},null,null,2,{"$f":"\"Error:  Supera en $\"&TEXT(F141-E141,\"###.###.###\")&\" el presupuesto maximo permitido.\"","v":"Error:  Supera en $ el presupuesto maximo permitido."},null,"Validacion de Asistentes graduados en INV",null,null,{"$f":"IF(H10=\"INV\",IF(SUM(AC36:AC37)>0,3,0),0)","v":0}]
[null,null,null,2,"Total Presupuesto Año 2 (IMP) :",null,{"$f":"IF(Cel_TP=\"FOR\",SUMIF($D$51:$D$86,$D89,G$51:G$86),SUM(G$51:G$86))","v":0},{"$f":"IF(H10=\"INV\",0,SUMIF($D$51:$D$86,$D89,H$51:H$86))","v":0},{"$f":"IF(H10=\"INV\",0,SUMIF($D$51:$D$86,$D89,I$51:I$86))","v":0},null,null,3,"Error : en convocatoria INV no se puede hacer contratacion de Asistentes graduados",null,"Verificación de Auxiliares de pregrado tiempo",null,null,{"$f":"IFERROR(IF(U20>0,0,0),0)","v":0}]
[null,null,"Firma :_______________",null,{"$f":"IF(G90>0,\"Presupuesto por definir.\",\" Error  - Supero el presupuesto en : \")","v":" Error  - Supero el presupuesto en : "},null,{"$f":"E141-G87","v":0},null,null,null,null,4,{"$f":"\"Error : Tiene mal formulado el >> \"&M38&\" << por favor Verificar los datos presupuestales\"","v":"Error : Tiene mal formulado el >> (Au.) -Auxiliar Pregrado << por favor Verificar los datos presupuestales"},null,"Verificación Movilidad",null,null,{"$f":"IF(R62<P62,6,0)","v":0},"Invalidada"]
[null,null,null,null,"Limite de presupuesto VICEIN por año :",null,{"$f":"IFERROR(IF($H$10=\"IMP\",$P$6/2,$N$2),\"0\")","v":0},null,null,null,null,5,{"$f":"\"Ojo!: Tenga en cuenta del cuadro 12b (OPS). Los items con (Au.) y (A.G) son del rubro Estimulo a estudiantes, total $\"&TEXT(T52,\"###.###\")","v":"Ojo!: Tenga en cuenta del cuadro 12b (OPS). Los items con (Au.) y (A.G) son del rubro Estimulo a estudiantes, total $"},null,"Verificación de Estímulo a estudiantes",null,null,{"$f":"IF(V52=0,0,5)","v":0}]
[null,null,null,null,null,null,null,null,null,null,null,6,{"$f":"\"Error : Supera el maximo en el rubro de Movilidad en: $ \"&TEXT(P62-R62,\"###.###.###\")","v":"Error : Supera el maximo en el rubro de Movilidad en: $ "},null,"Verificación de minimo de estimulo a estudiantes",null,null,0]
[null,null,null,null,null,null,null,null,null,null,null,7,{"$f":"\"Error :Falta presupuesto monto minimo para el rubro de estimulo a estudiantes, faltan \"&TEXT(T23,\"$ ###.###\")&\" en cuadro 12.b.\"","v":"Error :Falta presupuesto monto minimo para el rubro de estimulo a estudiantes, faltan $  en cuadro 12.b."},null,"Verificación de Diferencias en Totales",null,null,{"$f":"IF(S94=T94,0,8)","v":0},"> Ver--> se Anula por terminos"]
[null,"No","Rubro","%","Porcentaje","$ Financiación solicitada a VICEIN","$ Contrapartida Facultad","$ Contrapartida Externa","$ Total Rubro",0,null,8,{"$f":"\"Error Tiene diferecias entre el plan de compras y el cuadro consolidado, revice el plan de compras por :\"&TEXT(S94-I141,\"$ ###.###.##\")","v":"Error Tiene diferecias entre el plan de compras y el cuadro consolidado, revice el plan de compras por :$ "},null,"Verificación de Equipos",null,null,{"$f":"IF(P52>R52,9,0)","v":0},{"$f":"SUM(G87:I87)","v":0},{"$f":"SUM(I141)","v":0}]
[null,1,{"$f":"C97","v":"Personal"},{"$f":"IFERROR(F95/F97,0)","v":0},{"$f":"D95","v":0},{"$f":"SUMIFS(G$50:G$86,$C$50:$C$86,$C95,$D$50:$D$86,$J95)","v":0},0,0,{"$f":"SUM(F95:H95)","v":0},1,{"$f":"IFERROR(VLOOKUP($B95,$L$50:$Q$67,4,0),0)","v":0},9,{"$f":"\"Error : Supera el maximo en el rubro de Equipos en: $ \"&TEXT(P52-R52,\"###.###.###\")","v":"Error : Supera el maximo en el rubro de Equipos en: $ "},null,"Verificación de Salidas de Campo",null,null,{"$f":"IF(P57>R57,10,0)","v":0}]
[null,1,{"$f":"C97","v":"Personal"},{"$f":"IFERROR(F95/F97,0)","v":0},0,0,0,0,0,2,{"$f":"IFERROR(VLOOKUP($B96,$L$50:$Q$67,4,0),0)","v":0},10,{"$f":"\"Error : Supera el maximo en el rubro de salidas de campo en: $ \"&TEXT(P57-R57,\"###.###.###\")","v":"Error : Supera el maximo en el rubro de salidas de campo en: $ "},null,"Verificación de Personal y Estimulo a estudiante"]
[null,1,{"$f":"M51","v":"Personal"},{"$f":"IFERROR(VLOOKUP($B97,Dt_TblaPresu,6,0),0)","v":0},0,{"$f":"SUM(F95:F96)","v":0},{"$f":"SUM(G95:G96)","v":0},{"$f":"SUM(H95:H96)","v":0},0,3,{"$f":"IFERROR(VLOOKUP($B97,$L$50:$Q$67,4,0),0)","v":0},11,{"$f":"\"La tabla de plan de compras debe diligenciarse manualmente ya que no arrastra toda la informacion . \"&IF(V59>0,\" Dif. $ \"&TEXT(V54,\"###.###.###\"),\"\")","v":"La tabla de plan de compras debe diligenciarse manualmente ya que no arrastra toda la informacion . "},null,"Verificación  estimulos",null,null,{"$f":"IF(W59>0,11,0)","v":0}]
[null,{"$f":"B95+1","v":2},{"$f":"C100","v":"Equipos"},{"$f":"IFERROR(F98/F100,0)","v":0},0,{"$f":"SUMIFS(G$50:G$86,$C$50:$C$86,$C98,$D$50:$D$86,$J98)","v":0},0,0,0,{"$f":"J95","v":1},{"$f":"VLOOKUP($B95,$L$50:$Q$67,4,0)","v":0},12,"Pendiente : Debe contratar un Asistente Graduado por 10 meses por cada vigencia",null,"Validación asistente Gradudado  IMP",null,null,{"$f":"IF(H10=\"IMP\",IF(SUM(Q36:Q37)>0,0,12),0)","v":0}]
[null,{"$f":"B96+1","v":2},{"$f":"C100","v":"Equipos"},{"$f":"IFERROR(F98/F100,0)","v":0},0,0,0,0,0,{"$f":"J96","v":2},{"$f":"IFERROR(VLOOKUP($B99,$L$50:$Q$67,4,0),0)","v":0}]
[null,2,{"$f":"M52","v":"Equipos"},{"$f":"IFERROR(VLOOKUP($B100,$L$50:$Q$67,6,0),0)","v":0},0,{"$f":"SUM(F98:F99)","v":0},{"$f":"SUM(G98:G99)","v":0},{"$f":"SUM(H98:H99)","v":0},0,{"$f":"J97","v":3},{"$f":"IFERROR(VLOOKUP($B100,$L$50:$Q$67,4,0),0)","v":0}]
[null,3,{"$f":"C103","v":"Equipos transformables"},{"$f":"IFERROR(F101/F103,0)","v":0},0,{"$f":"SUMIFS(G$50:G$86,$C$50:$C$86,$C101,$D$50:$D$86,$J101)","v":0},0,0,0,1,{"$f":"IFERROR(VLOOKUP($B101,$L$50:$Q$67,4,0),0)","v":0}]
[null,3,{"$f":"C103","v":"Equipos transformables"},{"$f":"IFERROR(F101/F103,0)","v":0},0,0,0,0,0,2,{"$f":"IFERROR(VLOOKUP($B102,$L$50:$Q$67,4,0),0)","v":0}]
[null,3,{"$f":"M53","v":"Equipos transformables"},{"$f":"IFERROR(VLOOKUP($B103,$L$50:$Q$67,6,0),0)","v":0},0,{"$f":"SUM(F101:F102)","v":0},{"$f":"SUM(G101:G102)","v":0},{"$f":"SUM(H101:H102)","v":0},0,3,{"$f":"VLOOKUP($B103,$L$50:$Q$67,4,0)","v":0}]
[null,4,{"$f":"C106","v":"Software"},{"$f":"IFERROR(F104/F106,0)","v":0},0,{"$f":"SUMIFS(G$50:G$86,$C$50:$C$86,$C104,$D$50:$D$86,$J104)","v":0},0,0,0,1,{"$f":"IFERROR(VLOOKUP($B104,$L$50:$Q$67,4,0),0)","v":1}]
[null,4,{"$f":"C106","v":"Software"},{"$f":"IFERROR(F104/F106,0)","v":0},0,0,0,0,0,2,{"$f":"IFERROR(VLOOKUP($B105,$L$50:$Q$67,4,0),0)","v":1}]
[null,4,{"$f":"M54","v":"Software"},{"$f":"IFERROR(VLOOKUP($B106,$L$50:$Q$67,6,0),0)","v":0},0,{"$f":"SUM(F104:F105)","v":0},{"$f":"SUM(G104:G105)","v":0},{"$f":"SUM(H104:H105)","v":0},0,3,{"$f":"VLOOKUP($B106,$L$50:$Q$67,4,0)","v":1}]
[null,5,{"$f":"C109","v":"Materiales"},{"$f":"IFERROR(F107/F109,0)","v":0},0,{"$f":"SUMIFS(G$50:G$86,$C$50:$C$86,$C107,$D$50:$D$86,$J107)","v":0},0,0,0,1,{"$f":"IFERROR(VLOOKUP($B107,$L$50:$Q$67,4,0),0)","v":1}]
[null,5,{"$f":"C109","v":"Materiales"},{"$f":"IFERROR(F107/F109,0)","v":0},0,0,0,0,0,2,{"$f":"IFERROR(VLOOKUP($B108,$L$50:$Q$67,4,0),0)","v":1}]
[null,5,{"$f":"M55","v":"Materiales"},{"$f":"IFERROR(VLOOKUP($B109,$L$50:$Q$67,6,0),0)","v":0},0,{"$f":"SUM(F107:F108)","v":0},{"$f":"SUM(G107:G108)","v":0},{"$f":"SUM(H107:H108)","v":0},0,3,{"$f":"VLOOKUP($B109,$L$50:$Q$67,4,0)","v":1}]
[null,6,{"$f":"C112","v":"Materiales (Papelería)"},{"$f":"IFERROR(F110/F112,0)","v":0},0,{"$f":"SUMIFS(G$50:G$86,$C$50:$C$86,$C110,$D$50:$D$86,$J110)","v":0},0,0,0,1,{"$f":"IFERROR(VLOOKUP($B110,$L$50:$Q$67,4,0),0)","v":0}]
[null,6,{"$f":"C112","v":"Materiales (Papelería)"},{"$f":"IFERROR(F110/F112,0)","v":0},0,0,0,0,0,2,{"$f":"IFERROR(VLOOKUP($B111,$L$50:$Q$67,4,0),0)","v":0}]
[null,6,{"$f":"M56","v":"Materiales (Papelería)"},{"$f":"IFERROR(VLOOKUP($B112,$L$50:$Q$67,6,0),0)","v":0},0,{"$f":"SUM(F110:F111)","v":0},{"$f":"SUM(G110:G111)","v":0},{"$f":"SUM(H110:H111)","v":0},0,3,{"$f":"VLOOKUP($B112,$L$50:$Q$67,4,0)","v":0}]
[null,7,{"$f":"C115","v":"Salidas de Campo"},{"$f":"IFERROR(F113/F115,0)","v":0},0,{"$f":"SUMIFS(G$50:G$86,$C$50:$C$86,$C113,$D$50:$D$86,$J113)","v":0},0,0,0,1,{"$f":"IFERROR(VLOOKUP($B113,$L$50:$Q$67,4,0),0)","v":0.3}]
[null,7,{"$f":"C115","v":"Salidas de Campo"},{"$f":"IFERROR(F113/F115,0)","v":0},0,0,0,0,0,2,{"$f":"IFERROR(VLOOKUP($B114,$L$50:$Q$67,4,0),0)","v":0.3}]
[null,7,{"$f":"M57","v":"Salidas de Campo"},{"$f":"IFERROR(VLOOKUP($B115,$L$50:$Q$67,6,0),0)","v":0},0,{"$f":"SUM(F113:F114)","v":0},{"$f":"SUM(G113:G114)","v":0},{"$f":"SUM(H113:H114)","v":0},0,3,{"$f":"VLOOKUP($B115,$L$50:$Q$67,4,0)","v":0.3},null,"La siguiente tabla de plan de compras debe diligenciarse manualmente ya que no arrastra informacion de otros campos exceptuando la parte de contrapartida"]
[null,8,{"$f":"C118","v":"Servicios Técnicos"},{"$f":"IFERROR(F116/F118,0)","v":0},0,{"$f":"SUMIFS(G$50:G$86,$C$50:$C$86,$C116,$D$50:$D$86,$J116)","v":0},0,0,0,1,{"$f":"IFERROR(VLOOKUP($B116,$L$50:$Q$67,4,0),0)","v":1}]
[null,8,{"$f":"C118","v":"Servicios Técnicos"},{"$f":"IFERROR(F116/F118,0)","v":0},0,0,0,0,0,2,{"$f":"IFERROR(VLOOKUP($B117,$L$50:$Q$67,4,0),0)","v":1}]
[null,8,{"$f":"M58","v":"Servicios Técnicos"},{"$f":"IFERROR(VLOOKUP($B118,$L$50:$Q$67,6,0),0)","v":0},0,{"$f":"SUM(F116:F117)","v":0},{"$f":"SUM(G116:G117)","v":0},{"$f":"SUM(H116:H117)","v":0},0,3,{"$f":"VLOOKUP($B118,$L$50:$Q$67,4,0)","v":1}]
[null,9,{"$f":"C121","v":"Recursos Biblograficos"},{"$f":"IFERROR(F119/F121,0)","v":0},0,{"$f":"SUMIFS(G$50:G$86,$C$50:$C$86,$C119,$D$50:$D$86,$J119)","v":0},0,0,0,1,{"$f":"IFERROR(VLOOKUP($B119,$L$50:$Q$67,4,0),0)","v":0}]
[null,9,{"$f":"C121","v":"Recursos Biblograficos"},{"$f":"IFERROR(F119/F121,0)","v":0},0,0,0,0,0,2,{"$f":"IFERROR(VLOOKUP($B120,$L$50:$Q$67,4,0),0)","v":0}]
[null,9,{"$f":"M59","v":"Recursos Biblograficos"},{"$f":"IFERROR(VLOOKUP($B121,$L$50:$Q$67,6,0),0)","v":0},0,{"$f":"SUM(F119:F120)","v":0},{"$f":"SUM(G119:G120)","v":0},{"$f":"SUM(H119:H120)","v":0},0,3,{"$f":"VLOOKUP($B121,$L$50:$Q$67,4,0)","v":0}]
[null,10,{"$f":"C124","v":"Estímulo a estudiantes Pregrado"},{"$f":"IFERROR(F122/F124,0)","v":0},0,{"$f":"SUMIFS(G$50:G$86,$C$50:$C$86,$C122,$D$50:$D$86,$J122)","v":0},0,0,0,1,{"$f":"IFERROR(VLOOKUP($B122,$L$50:$Q$67,4,0),0)","v":0}]
[null,10,{"$f":"C124","v":"Estímulo a estudiantes Pregrado"},{"$f":"IFERROR(F122/F124,0)","v":0},0,0,0,0,0,2,{"$f":"IFERROR(VLOOKUP($B123,$L$50:$Q$67,4,0),0)","v":0}]
[null,10,{"$f":"M60","v":"Estímulo a estudiantes Pregrado"},{"$f":"IFERROR(VLOOKUP($B124,$L$50:$Q$67,6,0),0)","v":0},0,{"$f":"SUM(F122:F123)","v":0},{"$f":"SUM(G122:G123)","v":0},{"$f":"SUM(H122:H123)","v":0},0,3,{"$f":"VLOOKUP($B124,$L$50:$Q$67,4,0)","v":0}]
[null,11,{"$f":"C127","v":"Estímulo a estudiantes Posgrado"},{"$f":"IFERROR(F125/F127,0)","v":0},{"$f":"D125","v":0},{"$f":"SUMIFS(G$50:G$86,$C$50:$C$86,$C125,$D$50:$D$86,$J125)","v":0},0,0,0,1,{"$f":"IFERROR(VLOOKUP($B125,$L$50:$Q$67,4,0),0)","v":1}]
[null,11,{"$f":"C127","v":"Estímulo a estudiantes Posgrado"},{"$f":"IFERROR(F125/F127,0)","v":0},0,0,0,0,0,2,{"$f":"IFERROR(VLOOKUP($B126,$L$50:$Q$67,4,0),0)","v":1}]
[null,11,{"$f":"M61","v":"Estímulo a estudiantes Posgrado"},{"$f":"IFERROR(VLOOKUP($B127,$L$50:$Q$67,6,0),0)","v":0},0,{"$f":"SUM(F125:F126)","v":0},{"$f":"SUM(G125:G126)","v":0},{"$f":"SUM(H125:H126)","v":0},0,{"$f":"J124","v":3},{"$f":"VLOOKUP($B127,$L$50:$Q$67,4,0)","v":1}]
[null,{"$f":"B125+1","v":12},{"$f":"C130","v":"Movilidad"},{"$f":"IFERROR(F128/F130,0)","v":0},0,{"$f":"SUMIFS(G$50:G$86,$C$50:$C$86,$C128,$D$50:$D$86,$J128)","v":0},0,0,0,{"$f":"J116","v":1},{"$f":"IFERROR(VLOOKUP($B128,$L$50:$Q$67,4,0),0)","v":0}]
[null,12,{"$f":"C130","v":"Movilidad"},{"$f":"IFERROR(F128/F130,0)","v":0},0,0,0,0,0,2,{"$f":"IFERROR(VLOOKUP($B129,$L$50:$Q$67,4,0),0)","v":0}]
[null,12,{"$f":"M62","v":"Movilidad"},{"$f":"IFERROR(VLOOKUP($B130,$L$50:$Q$67,6,0),0)","v":0},0,{"$f":"SUM(F128:F129)","v":0},{"$f":"SUM(G128:G129)","v":0},{"$f":"SUM(H128:H129)","v":0},0,3,{"$f":"VLOOKUP($B130,$L$50:$Q$67,4,0)","v":0}]
[null,{"$f":"B128+1","v":13},{"$f":"C133","v":"Licencias por suscripción"},{"$f":"IFERROR(F131/F133,0)","v":0},0,{"$f":"SUMIFS(G$50:G$86,$C$50:$C$86,$C131,$D$50:$D$86,$J131)","v":0},0,0,{"$f":"SUM(F131:H131)","v":0},1,{"$f":"IFERROR(VLOOKUP($B131,$L$50:$Q$67,4,0),0)","v":1}]
[null,{"$f":"B131","v":13},{"$f":"C133","v":"Licencias por suscripción"},{"$f":"IFERROR(F131/F133,0)","v":0},0,0,0,0,{"$f":"SUM(F132:H132)","v":0},2,{"$f":"IFERROR(VLOOKUP($B132,$L$50:$Q$67,4,0),0)","v":1}]
[null,{"$f":"B132","v":13},{"$f":"M63","v":"Licencias por suscripción"},{"$f":"IFERROR(VLOOKUP($B133,$L$50:$Q$77,6,0),0)","v":0},0,{"$f":"SUM(F131:F132)","v":0},{"$f":"SUM(G131:G132)","v":0},{"$f":"SUM(H131:H132)","v":0},{"$f":"SUM(F133:H133)","v":0},3,{"$f":"VLOOKUP($B133,$L$50:$Q$67,4,0)","v":1}]
[null,13,"Viajes",null,null,{"$f":"SUMIFS(G$50:G$86,$C$50:$C$86,$C134,$D$50:$D$86,$J134)","v":0},{"$f":"SUMIFS(H$50:H$86,$C$50:$C$86,$C134)","v":0},0,0,{"$f":"J133","v":3},1]
[null,14,"Mantenimiento",null,null,{"$f":"SUMIFS(G$50:G$86,$C$50:$C$86,$C135,$D$50:$D$86,$J135)","v":0},0,0,0,{"$f":"J134","v":3},0]
[null,15,"Administración",null,null,{"$f":"SUMIFS(G$50:G$86,$C$50:$C$86,$C136,$D$50:$D$86,$J136)","v":0},0,0,0,{"$f":"J135","v":3},0]
[null,16,"Construcciones",null,null,{"$f":"SUMIFS(G$50:G$86,$C$50:$C$86,$C137,$D$50:$D$86,$J137)","v":0},0,0,0,{"$f":"J136","v":3},0]
[null,17,"Otros Gastos",null,null,{"$f":"SUMIFS(G$50:G$86,$C$50:$C$86,$C138,$D$50:$D$86,$J138)","v":0},0,0,0,{"$f":"J137","v":3},0]
[null,"T1","$ Total General (Año 1)",null,null,{"$f":"SUMIF($J$95:$J$133,$J139,F$95:F$133)","v":0},0,0,{"$f":"SUM(F139:H139)","v":0},1]
[null,"T2","$ Total General (Año 2)",null,null,0,0,0,0,2]
[null,"T3",{"$f":"\"TotalesPlan compras  -  (máximo):\"","v":"TotalesPlan compras  -  (máximo):"},null,{"$f":"N2","v":0},{"$f":"SUMIFS(F$95:F$138,$J$95:$J$138,$J141)","v":0},{"$f":"SUMIFS(G$95:G$138,$J$95:$J$138,$J141)","v":0},{"$f":"SUMIFS(H$95:H$138,$J$95:$J$138,$J141)","v":0},0,3]
[]
[null,"Nombre Institución Externa :",null,null,{"$f":"General!C43","v":0}]
[]
[null,null,null,"Propuesta:",{"$f":"D7","v":"Formato: actualizado a 06 Nov 2019"}]
[]
[null,null,"Firma de responsable"]
[]
[]
[]
[]
[null,null,"*Pueden  Ocultar las Filas que no se utilicen ( Favor no eliminar filas)."]
[null,null,"** en el caso de necesitar mas filas en el plan de compras (Comunicarse con la VICEIN para que se pueda realizar el ajuste)"]

{"sheet":"Impactos","index":11,"n_rows":39,"n_cols":18,"rows_kept":39,"cut":false,"hidden":false,"merged":[[19,2,19,6],[20,2,20,6],[15,2,15,6],[1,2,2,4],[13,3,13,6],[14,2,14,6],[16,2,16,6],[17,2,17,6],[18,2,18,6],[7,5,7,6],[8,5,8,6],[9,2,9,6],[11,2,11,6],[12,3,12,6]]}
[10,null,null,null,null,null,null,null,"*Pueden  Ocultar las Filas que no se utilicen."]
[null,null,{"$f":"General!B2","v":"PRESENTACIÓN DE PROYECTOS \nEN INVESTIGACIÓN DE POSGRADOS"},null,null,{"$f":"General!$H$2","v":"Fecha de Emisión: 2018/03/07"},{"$f":"General!$I$2","v":"IN-IV-F-14"}]
[null,null,null,null,null,{"$f":"General!$H$3","v":"Revision N°:\n3"},{"$f":"\"Página \"&$A$1&\" de \"&Dt_TPG","v":"Página 10 de 11"},null,{"$f":"SUM(I7:I3500)","v":0},"<== Total de palabras"]
[]
["14.-","#","Impactos asociados a la propuesta."]
[]
[null,"N°","Describa  en detalle el impacto a desarrollar en el proyecto",null,null,null,null,null,null,null,null,"No","Tipo","Duración","Tipo","Alcance","Linea","SRL"]
[null,1,"Impacto principal",null,"Principal objetivo de desarrollo sostenible:",null,null,null,null,null,null,1,"Fin de la pobreza","Corto (1 año)","Político","Regional","Transferencia e intercambio de conocimiento","SRL 0 – Identificación del problema."]
[null,2,"Alcance",null,"Lineas de apropiación social",null,null,null,null,null,null,{"$f":"L8+1","v":2},"Hambre Cero ","Medio (2 años)","Salud","Nacional","Gestión del conocimiento para la apropiación","SRL 1 – Identificación del problema y el grado de madurez social."]
[null,3,{"$f":"IFERROR(VLOOKUP($F9,$M$28:$O$31,2,0),\" \")","v":" "},null,null,null,null,null,null,null,null,3,"Salud y bienestar","Largo (3 años)","Tecnológico","Internacional","Participación ciudadana en CTeI","SRL 2 – Formulación del problema, soluciones propuestas e impacto potencial, grado de madurez social esperado; identificación de partes interesadas relevantes para el proyecto"]
[null,null,null,null,null,null,null,null,null,null,null,4,"Educación de calidad"," ","Económico",null,"Comunicación del conocimiento","SRL 3 – Pruebas iniciales de las soluciones propuestas junto con partes interesadas relevantes."]
[null,".","Nivel adaptación social del impacto del proyecto según los SRL (Societal Readiness Levels)",null,null,null,null,null,null,null,null,5,"Igualdad de genero"," ","Legal",null,null,"SRL 4 – Problema validado por medio de pruebas piloto en un entorno relevantes para justificar el impacto propuesto y el grado de madurez social"]
[null,4,"Estado actual del SRL",null,null,null,null,null,{"$f":"IFERROR(ABS(RIGHT(LEFT(D13,6),2)),0)","v":0},null,null,6,"Agua limpia y saneamiento"," ","Cultural",null,null,"SRL 5 – Soluciones propuestas validadas, ahora por las partes interesadas importantes en el área."]
[null,5,"SRL Comprometido al finalizar el proyecto",null,null,null,null,null,{"$f":"IFERROR(ABS(RIGHT(LEFT(D14,6),2)),0)","v":0},null,null,7,"Energía asequible y no contaminante"," ","Social ",null,null,"SRL 6 – Soluciones demostradas en un entorno relevante, en cooperación con las partes interasadas relevantes para obtener retroalimentación inicial subre impactos potenciales"]
[null,null,{"$f":"IF(I14<I13,J15,\" \")","v":" "},null,null,null,null,null,null,"No esta  bien definido la selección de los SRL. Por favor confirmar.",null,8,"Trabajo decente y crecimiento económico"," ","Ambiental",null,null,"SRL 7 – Refinamiento del proyecto y/o solución y, de ser necesario, aplicación de nuevas pruebas en el entorno relevante, con partes interesadas relevantes."]
[null,8,"Evolución del impacto alcanzado como resultado de proyectos anteriores",null,null,null,null,null,null,null,null,9,"Industria, innovación e infraestructura"," ",null,null,null,"SRL 8 – Soluciones propuestas, así como un plan para la adaptación social completo y certificado."]
[null,9,null,null,null,null,null,null,null,null,null,10,"Reducción de las desigualdades"," ",null,null,null,"SRL 9 – Soluciones reales del proyecto, probadas en un entorno relevante"]
[null,10,"Descripción de los Beneficiario(s) del  impacto del proyecto",null,null,null,null,null,null,null,null,11,"Ciudades y comunidades sostenibles"," "]
[null,11,null,null,null,null,null,null,null,null,null,12,"Producción y consumo responsables"," "]
[null,12,"Descripción del impacto esperado.",null,null,null,null,null,null,null,null,13,"Acción por el clima"," "]
[null,13,null,null,null,null,null,null,null,null,null,14,"Vida submarina"," "]
[null,null,null,null,null,null,null,null,null,null,null,15,"Vida de ecosistemas terrestres"," "]
[null,null,null,null,null,null,null,null,null,null,null,16,"Paz, justicia e instituciones sólidas"," "]
[null,null,null,null,null,null,null,null,null,null,null,17,"Alianzas para lograr los objetivos"," "]
[]
[]
[]
[null,null,"*Pueden  Ocultar las Filas que no se utilicen ( Favor no eliminar filas).",null,null,null,null,null,null,null,null,null,"Transferencia e intercambio de conocimiento","Promover el desarrollo de iniciativas de extensión y transferencia del conocimiento científico y tecnológico que permitan su efectiva integración a contextos locales y sociales específicos, contribuyendo a su desarrollo."]
[null,null,null,null,null,null,null,null,null,null,null,null,"Gestión del conocimiento para la apropiación","Incentivar el desarrollo de mecanismos de formación y medición para construir conocimiento acerca de las diversas formas en que el conocimiento científico tecnológico es apropiado en la sociedad colombiana, por los diversos grupos e individuos que la componen"]
[null,null,null,null,null,null,null,null,null,null,null,null,"Participación ciudadana en CTeI","Fomentar la participación ciudadana en la construcción de política pública en CTI, fortaleciendo las capacidades de la sociedad para tomar decisiones que contribuyan a la resolución de conflictos que involucran conocimientos científico-tecnológicos."]
[null,null,null,null,null,null,null,null,null,null,null,null,"Comunicación del conocimiento","Favorecer el desarrollo de proyectos de comunicación reflexivos y contextualizados para la comprensión, el diálogo y la formación de opinión sobre las relaciones ciencia, tecnología, innovación y sociedad."]
[]
[]
[]
[]
[]
[]
[]
[null,"*Pueden  Ocultar las Filas que no se utilicen."]

{"sheet":"Bibliografía","index":12,"n_rows":39,"n_cols":8,"rows_kept":39,"cut":false,"hidden":false,"merged":[[34,2,34,4],[23,2,23,4],[24,2,24,4],[25,2,25,4],[26,2,26,4],[27,2,27,4],[28,2,28,4],[29,2,29,4],[30,2,30,4],[31,2,31,4],[32,2,32,4],[33,2,33,4],[22,2,22,4],[11,2,11,4],[12,2,12,4],[13,2,13,4],[14,2,14,4],[15,2,15,4],[16,2,16,4],[17,2,17,4],[18,2,18,4],[19,2,19,4],[20,2,20,4],[21,2,21,4],[10,2,10,4],[1,2,2,2],[6,2,6,4],[7,2,7,4],[8,2,8,4],[9,2,9,4]]}
[11,null,null,null,null,null,"*Pueden  Ocultar las Filas que no se utilicen."]
[null,null,{"$f":"General!B2","v":"PRESENTACIÓN DE PROYECTOS \nEN INVESTIGACIÓN DE POSGRADOS"},{"$f":"General!$H$2","v":"Fecha de Emisión: 2018/03/07"},{"$f":"General!$I$2","v":"IN-IV-F-14"}]
[null,null,null,{"$f":"General!$H$3","v":"Revision N°:\n3"},{"$f":"\"Página \"&$A$1&\" de \"&Dt_TPG","v":"Página 11 de 11"},null,{"$f":"SUM(G7:G3500)","v":0},"<== Total de palabras"]
[]
["15.-","#","Bibliografía de la propuesta.",null,null,null,"Largo"]
[]
[null,{"$f":"ROW()-6","v":1},null,null,null,null,{"$f":"IF(C7=\"\",0,LEN(TRIM(C7))-LEN(SUBSTITUTE(TRIM(C7),\" \",\"\"))+1)","v":0}]
[null,{"$f":"ROW()-6","v":2},null,null,null,null,{"$f":"IF(C8=\"\",0,LEN(TRIM(C8))-LEN(SUBSTITUTE(TRIM(C8),\" \",\"\"))+1)","v":0}]
[null,3,null,null,null,null,0]
[null,4,null,null,null,null,0]
[null,5,null,null,null,null,0]
[null,6,null,null,null,null,0]
[null,7,null,null,null,null,0]
[null,8,null,null,null,null,0]
[null,9,null,null,null,null,0]
[null,10,null,null,null,null,0]
[null,11,null,null,null,null,0]
[null,12,null,null,null,null,0]
[null,13,null,null,null,null,0]
[null,14,null,null,null,null,0]
[null,15,null,null,null,null,0]
[null,16,null,null,null,null,0]
[null,17,null,null,null,null,0]
[null,18,null,null,null,null,0]
[null,19,null,null,null,null,0]
[null,20,null,null,null,null,0]
[null,21,null,null,null,null,0]
[null,22,null,null,null,null,0]
[null,23,null,null,null,null,0]
[null,24,null,null,null,null,0]
[null,25,null,null,null,null,0]
[null,26,null,null,null,null,0]
[null,27,null,null,null,null,0]
[null,28,null,null,null,null,0]
[null,29,null,null,null,null,0]
[]
[]
[]
[null,"*Pueden  Ocultar las Filas que no se utilicen ( Favor no eliminar filas)."]